{"text_format":"1","workbook":"xlsx","n_sheets":3,"sheets":["Общее","Лист1","Параметры"],"not_rendered":{"charts":0,"images":0,"macros":1,"external_links":0,"defined_names":194,"comments":0,"pivot_tables":0},"unopened":[],"bounds":{"document_bytes":16777216,"sheet_cells":100000,"rows_first":2000,"rows_last":500,"rows_between":2000,"halvings":0,"cell_chars":16384,"cell_head_chars":4096},"cells_cut":0,"cells_raw":0,"read":"whole","date_system":"1900"}

{"sheet":"Общее","index":0,"n_rows":446,"n_cols":42,"rows_kept":446,"cut":false,"hidden":false,"merged":[[0,1,0,3],[194,8,212,8],[194,20,212,20],[194,21,212,21],[194,22,212,22],[194,18,212,18],[194,19,212,19],[194,9,212,9],[194,10,212,10],[194,11,212,11],[194,12,212,12],[194,13,212,13],[194,14,212,14],[194,15,212,15],[194,16,212,16],[194,17,212,17],[162,10,170,10],[86,15,89,15],[153,15,154,15],[86,14,89,14],[45,14,60,14],[14,14,15,14],[117,10,118,10],[264,9,264,12],[299,22,303,22],[299,21,303,21],[299,20,303,20],[299,19,303,19],[299,18,303,18],[299,11,303,11],[299,10,303,10],[299,9,303,9],[299,17,303,17],[299,16,303,16],[299,15,303,15],[299,14,303,14],[299,13,303,13],[299,12,303,12],[285,31,287,31],[391,13,392,13],[391,12,392,12],[391,11,392,11],[391,10,392,10],[391,9,392,9],[391,8,392,8],[391,30,392,30],[391,31,392,31],[351,29,353,29],[351,30,353,30],[323,30,326,30],[323,31,326,31],[323,29,326,29],[351,17,353,17],[351,16,353,16],[351,15,353,15],[351,14,353,14],[351,13,353,13],[351,12,353,12],[323,17,326,17],[323,16,326,16],[323,15,326,15],[323,14,326,14],[351,11,353,11],[351,10,353,10],[351,9,353,9],[351,8,353,8],[86,22,89,22],[86,18,89,18],[86,19,89,19],[86,21,89,21],[86,13,89,13],[86,12,89,12],[86,11,89,11],[86,10,89,10],[86,9,89,9],[323,13,326,13],[323,12,326,12],[323,11,326,11],[323,10,326,10],[323,9,326,9],[227,17,229,17],[227,18,229,18],[227,19,229,19],[227,20,229,20],[227,21,229,21],[227,22,229,22],[391,22,392,22],[391,21,392,21],[391,20,392,20],[391,19,392,19],[391,18,392,18],[391,17,392,17],[391,16,392,16],[391,15,392,15],[391,14,392,14],[385,4,386,4],[385,30,386,30],[385,22,386,22],[385,21,386,21],[385,20,386,20],[385,19,386,19],[385,18,386,18],[385,17,386,17],[385,16,386,16],[385,15,386,15],[385,14,386,14],[385,13,386,13],[385,12,386,12],[385,11,386,11],[385,10,386,10],[385,9,386,9],[385,8,386,8],[233,18,234,18],[233,19,234,19],[233,20,234,20],[185,30,190,30],[133,25,134,25],[135,25,136,25],[185,20,190,20],[185,18,190,18],[185,19,190,19],[162,25,169,25],[185,25,190,25],[185,22,190,22],[133,21,134,21],[133,19,134,19],[133,22,134,22],[185,21,190,21],[233,21,234,21],[233,22,234,22],[233,25,234,25],[133,31,134,31],[185,31,190,31],[162,18,169,18],[162,19,169,19],[222,18,223,18],[222,19,223,19],[153,18,154,18],[222,22,223,22],[162,21,169,21],[162,22,169,22],[222,21,223,21],[153,22,154,22],[162,30,169,30],[162,29,169,29],[162,31,169,31],[135,18,136,18],[135,20,136,20],[222,8,223,8],[233,8,234,8],[222,9,223,9],[162,16,170,16],[233,10,234,10],[222,12,223,12],[233,11,234,11],[233,15,234,15],[233,12,234,12],[233,13,234,13],[233,14,234,14],[233,9,234,9],[227,8,229,8],[227,9,229,9],[227,10,229,10],[227,11,229,11],[227,12,229,12],[222,10,223,10],[222,11,223,11],[185,15,190,15],[227,13,229,13],[227,14,229,14],[162,15,170,15],[227,15,229,15],[227,16,229,16],[29,21,30,21],[29,20,30,20],[29,19,30,19],[111,20,112,20],[111,19,112,19],[222,20,223,20],[153,20,154,20],[86,16,89,16],[162,17,170,17],[116,18,118,18],[111,21,112,21],[222,13,223,13],[222,14,223,14],[222,15,223,15],[153,19,154,19],[153,21,154,21],[131,15,132,15],[116,15,118,15],[116,14,118,14],[116,19,118,19],[131,19,132,19],[131,21,132,21],[14,15,15,15],[45,20,60,20],[45,21,60,21],[45,31,60,31],[45,30,60,30],[14,17,15,17],[14,16,15,16],[29,31,30,31],[45,19,60,19],[29,17,30,17],[29,16,30,16],[29,15,30,15],[29,30,30,30],[29,29,30,29],[45,15,60,15],[111,25,112,25],[29,22,30,22],[14,22,15,22],[45,25,60,25],[86,17,89,17],[11,41,12,41],[11,40,12,40],[11,39,12,39],[11,38,12,38],[11,37,12,37],[11,36,12,36],[11,35,12,35],[11,34,12,34],[11,33,12,33],[45,22,60,22],[42,22,43,22],[42,21,43,21],[42,20,43,20],[42,19,43,19],[42,18,43,18],[42,31,43,31],[22,30,24,30],[14,31,15,31],[14,21,15,21],[5,41,6,41],[5,40,6,40],[5,39,6,39],[5,38,6,38],[5,37,6,37],[5,36,6,36],[5,35,6,35],[5,34,6,34],[5,33,6,33],[7,41,8,41],[7,40,8,40],[7,39,8,39],[7,38,8,38],[7,37,8,37],[7,36,8,36],[7,35,8,35],[7,34,8,34],[7,33,8,33],[3,33,4,33],[3,41,4,41],[3,40,4,40],[3,39,4,39],[3,38,4,38],[3,37,4,37],[3,36,4,36],[3,35,4,35],[3,34,4,34],[14,11,15,11],[14,9,15,9],[14,8,15,8],[14,10,15,10],[111,8,112,8],[45,8,60,8],[45,10,60,10],[45,11,60,11],[111,9,112,9],[29,8,30,8],[29,9,30,9],[29,11,30,11],[29,10,30,10],[45,9,60,9],[86,8,89,8],[111,10,112,10],[42,8,43,8],[14,12,15,12],[133,12,134,12],[133,13,134,13],[133,15,134,15],[45,13,60,13],[111,15,112,15],[111,14,112,14],[111,13,112,13],[162,20,169,20],[153,12,154,12],[29,12,30,12],[45,12,60,12],[133,20,134,20],[14,13,15,13],[14,19,15,19],[14,20,15,20],[111,18,112,18],[131,18,132,18],[116,13,118,13],[29,14,30,14],[29,13,30,13],[29,18,30,18],[131,20,132,20],[116,20,118,20],[45,18,60,18],[131,9,132,9],[185,9,190,9],[185,10,190,10],[185,11,190,11],[133,10,134,10],[116,11,118,11],[116,12,118,12],[133,11,134,11],[135,11,136,11],[135,15,136,15],[135,14,136,14],[185,13,190,13],[185,14,190,14],[185,12,190,12],[117,9,118,9],[131,22,132,22],[135,21,136,21],[135,19,136,19],[135,22,136,22],[135,9,136,9],[162,9,170,9],[162,11,170,11],[133,9,134,9],[135,10,136,10],[162,13,170,13],[162,14,170,14],[135,12,136,12],[133,18,134,18],[131,12,132,12],[131,13,132,13],[153,11,154,11],[135,8,136,8],[133,14,134,14],[135,13,136,13],[153,10,154,10],[131,14,132,14],[153,14,154,14],[153,13,154,13],[42,11,43,11],[42,10,43,10],[42,9,43,9],[153,9,154,9],[153,8,154,8],[153,4,154,4],[131,8,132,8],[131,10,132,10],[131,11,132,11],[117,8,118,8],[116,22,118,22],[116,21,118,21],[111,22,112,22],[111,11,112,11],[111,12,112,12],[1,20,2,20],[1,19,2,19],[22,8,24,8],[22,9,24,9],[22,10,24,10],[22,14,24,14],[22,13,24,13],[22,12,24,12],[22,11,24,11],[22,22,24,22],[22,21,24,21],[22,20,24,20],[22,19,24,19],[22,18,24,18],[22,17,24,17],[22,16,24,16],[22,15,24,15],[42,13,43,13],[42,14,43,14],[1,31,2,31],[1,30,2,30],[1,26,1,27],[1,29,2,29],[1,28,2,28],[1,25,2,25],[1,24,2,24],[1,22,2,22],[1,21,2,21],[1,23,2,23],[285,10,287,10],[285,9,287,9],[1,5,2,5],[1,7,2,7],[1,9,2,9],[1,8,2,8],[1,4,2,4],[1,0,2,0],[1,18,2,18],[1,17,2,17],[1,16,2,16],[1,15,2,15],[1,14,2,14],[1,13,2,13],[1,12,2,12],[1,11,2,11],[1,10,2,10],[1,1,2,3],[185,8,190,8],[133,8,134,8],[162,8,170,8],[162,12,170,12],[42,15,43,15],[42,12,43,12],[3,1,6,1],[3,2,6,2],[3,3,6,3],[7,3,12,3],[285,30,287,30],[285,22,287,22],[285,21,287,21],[285,20,287,20],[285,19,287,19],[285,18,287,18],[285,17,287,17],[285,24,287,24],[285,29,287,29],[285,28,287,28],[285,27,287,27],[285,26,287,26],[285,25,287,25],[285,8,287,8],[285,16,287,16],[285,15,287,15],[285,14,287,14],[285,13,287,13],[285,12,287,12],[285,11,287,11]]}
[null,1,null,null,2,3,null,5,6,7,8,9,10,11,12,13,14,15,16,17,18,19,20,21,22,23,24,25,26,27,null,29]
[null,"Договора",null,null,"Территория","Электроснабжения объекта, расположенного по адресу",null,"Льгота","Подземная комиссия","Дополнительные согласования, ТУ","Передано кадастровому инженеру","Подготовлен акт выбора трассы","Заявление на выдачу разрешения на размещение","Получено разрешение на размещение","Заявление на проведение земляных работ","Получен ордер на проведние земляных работ","Заявление на снос зелёных насаждений","Разрешение на снос зелёных насаждений","ВЛ 0,4 кВ\nм","ВЛ 6(10) кВ\nм","КЛ 0,4 кВ\nм","КЛ 6(10) кВ\nм","ТП-10(6)/\n0,4 кВ, шт","Мощность, кВт","Проблемный\n(! - контроль директора,\n+ - проблемный)","ГП/500","Поступление материалов на склад",null,"Объект передан в работу","Закрытие",null,"Комментарий"]
[null,null,null,null,null,null,null,null,null,null,null,null,null,null,null,null,null,null,null,null,null,null,null,null,null,null,"Опережающие","Плановые",null,null,null,null,null,"Льгота",1,"100% к стройке",0.5,"50% к стройке","550 р.","550 р. к стройке","Без льготы","Без льготы к стройке"]
[null,"Номер","Дата заключения договора","№ договора","ЕМР","Общие длины",null,"-",28,1,22,14,16,7,7,5,null,null,10185,9648,431,6810,14,"-",23,"-",null,null,null,null,null,"-",null,"ЕМР",42,9,3,1,30,5,0,0]
[null,null,null,null,"ЕМР","К строительству",null,null,null,null,null,null,null,null,null,null,null,null,298,{"$f":"SUM(T33+#REF!+#REF!+#REF!+#REF!+T115+#REF!+#REF!)","v":{"$error":"#REF!"}},131,415,1,"-",3,"-"]
[null,null,null,null,"ПКГО","Общие длины",null,null,29,18,0,6,3,19,2,14,2,1,3156,517,8441,3215,13,"-",34,"-",null,null,null,null,null,null,null,"ПКГО",33,3,2,0,29,4,1,0]
[null,null,null,null,"ПКГО","К строительству",null,"-",null,null,null,null,null,null,null,null,null,null,126,0,1242,970,4,"-",4,"-",null,null,null,null,null,"-"]
[null,null,null,{"$f":"CONCATENATE(\"ОТП-\",IF(COUNTIF(C446,\"*2016*\"),2016,IF(COUNTIF(C446,\"*2017*\"),2017,IF(COUNTIF(C446,\"*2018*\"),2018,IF(COUNTIF(C446,\"*2019*\"),2019,IF(COUNTIF(C446,\"*2020*\"),2020,IF(COUNTIF(C446,\"*2021*\"),2021,IF(COUNTIF(C446,\"*2022*\"),2022,IF(COUNTIF(C446,\"*2023*\"),2023,IF(COUNTIF(C446,\"*2024*\"),2024,IF(COUNTIF(C446,\"*2025*\"),2025,\"добавьте значения в формулу, плиз (или введите правильную дату\"))))))))))-2000,\"-\",B446,\" от \",C446)","v":"ОТП-20-548 от 15.04.2020"},"ЕГП","Общие длины",null,"-",0,1,1,2,0,5,2,4,0,0,1355,850,1310,20,3,"-",11,"-",null,null,null,null,null,null,null,"ЕГП",3,0,1,0,21,8,0,0]
[null,null,null,null,"ЕГП","К строительству",null,"-",null,null,null,null,null,null,null,null,null,null,0,{"$f":"#REF!","v":{"$error":"#REF!"}},150,{"$f":"#REF!","v":{"$error":"#REF!"}},{"$f":"#REF!","v":{"$error":"#REF!"}},"-",1,"-",null,null,null,null,null,"-"]
[null,null,null,null,"ВГП","Общие длины",null,"-",0,0,0,0,0,0,0,0,0,0]
[null,null,null,null,"ВГП"]
[null,null,null,null,"МРЭС","Общие длины",null,null,0,0,0,0,0,0,0,0,null,null,0,0,0,0,0,"-","-","-",null,null,null,null,null,null,null,"Мильково",0,null,0,null,0,null,0,0]
[null,null,null,null,"МРЭС","К строительству",null,"-",null,null,null,null,null,null,null,null,null,null,0,0,0,0,0,"-",null,"-",null,null,null,null,null,"-"]
[null,null,null,"ОТП-18-00771 от 10.12.2018","ПКГО","\"Сооружения Автостоянка (парковка)\", расположенный по адресу:  установлено относительно ориентира, расположенного за пределами участка. Почтовый адрес ориентира: Камчатский край, г. Петропавловск-Камчатский (в районе ул. Фролова)",null,1,"27.05.2019 - согласование завершено\n28.02.2019 - начало согласования","16.05.2019 - получены ТУ от МКУ САД\n23.04.2019 - повторный запрос ТУ\n12.03.2019","23.04.2019 - корректировки\n10.04.2019","2019-04-23","2019-05-28","№ 680/19 от 06.06.19 (до 06.06.21)","03.02.2020 - на продление\n19.06.2019","Ордер № 40 от 19.02.2020 (до 31.10.2020)  Ордер № 290 от 28.06.2019 (до 31.12.2019)","Не требуется","Не требуется",0,0,362,0,0,100,"!","-"]
[null,null,null,"ОТП-18-00764 от 10.12.2018","ПКГО","\"Автостоянка (парковка)\", расположенный по адресу: Камчатский край, г. Петропавловск-Камчатский, ул. Кавказская",null,1,"20.06.19 - передано на печать ПКГО\n24.05.2019 - замечания устранены\n23.05.2019 - получены замечания\n23.05.2019 - начало согласования.\n16.05.2019 - приступили к разработке","13.06.2019 - получено согласование\n06.06.2019 - запрос ТУ в МКУ \"САД ПКГО\" ","2019-06-03","2019-06-03","2019-07-01","№ 902/19 от 08.07.2019 (до 08.07.2021)","2019-07-25","№ 373 от 29.07.2019 (до 24.06.2020)","Не требуется","Не требуется",0,0,230,0,0,40,"!","-",null,null,null,null,null,"Весь коридор проходит по земельному участку дороги ул. Кавказская (14:233), по сведениям ЕГРН этот участок никому не предоставлен (есть только одно обременение - сервитут), т.е. гос. собственность не разграничена\nРеконструкция -  в РУ-0,4 кВ ТП-426 на 2 секцию установить панель ЩО-70-1-02"]
[null,null,null,"ОТП-18-00766 от 10.12.2018","ПКГО","\"Сооружения Автостоянка (парковка)\", расположенный по адресу: Камчатский край, г. Петропавловск-Камчатский, ул. Кавказская, д. 17 ",null,1,null,null,null,null,null,null,null,null,null,null,0,null,null,null,null,40,"!","-"]
[null,null,null,"ОТП-18-00578 от 14.09.2018","ПКГО","\"Индивидуальный жилой дом\", расположенный по адресу: участок находится примерно в 136 м\nпо направлению на северо-запад от ориентира жилой дом, расположенного за пределами участка, адрес ориентира: Камчатский край, ул. Гастелло, д. 11а",null,"550 р.","20.08.2019 приступили к разработке","-","-","2019-09-02","2019-09-13","26.09.2019 №1731/19","от 14.10.2019 №591","№ 591 от 14.10.2019 ",null,null,89,0,0,0,0,15,"!"]
[null,null,null,"-","ПКГО","\"Установка электрических котлов взамен существующей котельной № 13 \"Октябрьская\" Петропавловск-Камчатского городского округа\", расположенный по адресу: г. Петропавловск-Камчатский, на неразграниченном земельном участке с многоквартирным жилым домом по ул. Октябрьская, д. 5а",null,"-","13.09.19-согласование 100%,     27.05.2019 приступили к разработке","ТУ № 3465/19/08 от 30.09.2019г., 19.09.19-запрос ТУ в МКУ САД","2019-09-30","2019-10-01","повторное заяв-ие от 29.10.19,     отказ от 17.10.19 № 010801/7516/19, 04.10.2019-подали на размещение","№1987/19 от 07.11.2019","2019-11-14","№ 666 от 19.11.2019 (до 14.11.2021)",null,null,0,0,380,0,0,395,"!",null,null,null,null,"+"]
[null,null,null,"ОТП-18-00306 от 30.05.2018","ЕМР","\"Хозяйственные постройки\", расположенный по адресу: Камчатский край,\nЕлизовский район, район реки Мутная-1",null,"550 р.","25.04.2019 - согласована на 100%\n12.04.2019-согласована на 60%","Необходимо заключение сервитута с ТУ Росимущества в КК + проект рекультивации земель","13.05.2019 - повторно\n25.04.2019 - Г.Г. Белоусову","2019-06-10","2019-10-01","Отказ № 2491 от 26.06.2019","-","заключен сервитут",null,null,750,0,0,0,0,15,"!",null,null,null,null,null,null,"27.02.2020- на согласовании дс к сервитуту с увеличенными границами сервитута. Сервитут передан в оплату. 24.10.2019 Сервитут на согласовании в ЦЭС  На 23.08.2019 - проект сервитута готов, проект рекультивации земель изготавливается.\nНа 26.07.2019 - Проект сервитута на согласовании у юристов, необходимо изготовление проекта рекультивации земель."]
[null,null,null,"ОТП-19-00239 от 13.05.2019","ПКГО","\"Размещение объектов автотранспорта\", расположенный по адресу: местоположение установлено относительно ориентира, расположенного за пределами участка. Почтовый адрес ориентира: Камчатский ркай, г. Петропавловск-Камчатский, ул. Вольского",null,1,"16.10.2019 - новая трасс 20.06.19 на печать ПКГО\n07.06.2019 - трасса разработана\n21.05.2019 приступили к разработке","ТУ № 3700/19 от 22.10.19г,           ТУ- МКУ САД-ЗАПРОС 17.10.2019","-","2019-06-26","от 01.11.2019 № 12-08-00/8027/19 отказ - от 23.09.2019 № 01-08021/6862  Повторное заявление 09.09.2019.   11.07.2019 - отказ\n01.07.2019","от 12.11.2019 № 2006/19","2019-11-19","от 22.11.2019 №672",null,null,0,0,220,0,0,140,"!",null,null,null,null,null,null,"01.11.2019 подготовлено заявление на размещение  .2019 трасса на согласовании"]
[null,null,null,"ОТП-18-00709 от 21.11.2018","ПКГО","\"Крестьянское (фермерское) хозяйство\", расположенный по адресу: Камчатский край, г. Петропавловск-Камчатский",null,1,"16.10.2019 - скорректирована трасса, \n05.09.2019-согласование 100%,\n25.07.2019 - начало согласования\n23.07.2019 - Разработаны 5 вариантов трассы","ТУ от 19.09.2019 № 3371/19/08 МКУ САД-запрос ТУ 09.09.2019","2019-09-24","2019-09-24","01.11.2019 заявление на размещение, 09.10.2019 - отказ\n30.09.2019","№1986/19 от 07.11.2019","2019-11-14","№ 665 от 19.11.2019 (до 18.11.2021)",null,null,230,0,0,0,0,150,"!",null,null,null,null,null,null,"Можно объеденить с ОТП-18-00708!"]
[null,null,null,"ОТП-18-00767 от 10.12.2018","ПКГО","\"Автостоянка (парковка)\", расположенный по адресу: Камчатский край, г. Петропавловск-Камчатский, пр-кт Рыбаков",null,1,"06.06.2019- согласование завершено\n23.05.2019 - начало согласования\n16.05.2019 - приступили к разработке","-","2019-06-03","2019-06-04","не требуется","не требуется","21.10.219","№ 608 от 22.10.2019 (до 28.11.2019)",null,null,0,0,100,0,0,30,"!","-",null,null,null,null,null,"Коридор полностью в границах ЗУ 18:416, по сведениям ЕГРН этот участок предоставлен в аренду (скорее всего - заявителю на это ТП). Необходимо найти правообладателя и заключить сервитут."]
[null,null,null,"ОТП-18-00768 от 03.12.2018","ПКГО","\"Автостоянка (парковка)\", расположенный по адресу: установлено относительно ориентира, расположенного за пределами участка. Почтовый адрес ориентира: Камчатский край, г. Петропавловск-Камчатский (район пр. Циолковского)",null,1,"02.04.2020 - трасса разработана\n23.03.2020 - внесен второй договор Внучковой\n27.12.2019 - разработана трасса на оба объекта, \n17.12.2019 - внесена Внучкова\n30.07.2019 - согласовано\n23.05.2019 - начало согласования.\n16.05.2019 - приступили к разработке","11.02.2020- направлен запрос на ТУ МКУ САД 05.07.2019 - получены ТУ от МКУ \"БГ ПКГО\"\n31.05.2019 - запрос ТУ в МКУ \"СБ ПКГО\"","24.02.2020-Акт выбора Кристина 03.06.2019  - ООО \"Камчачтинвестснаб\"","28.02.2020 - подготовлен.  12.08.2019 - исправленный\n04.06.2019  - ООО \"Камчачтинвестснаб\"","15.10.2019 - 03.10.2019 - ООО \"Камчачтинвестснаб\"",null,null,null,null,null,0,0,100,330,1,30,"!","-",null,null,null,null,null,"02.03.2020 зарос в тэц для согласования прохождения кабельной линии в границах участка ПАО Камчатскэнерго\" предоставленного для строительства теплотрассы. Отказ в размещении , сформировался новый земельный участок. Реконструкция - в РУ-0,4 кВ ТП-426 на 2 секцию установить панель ЩО-70-1-02"]
[null,null,null,"ОТП-19-00759 от 12.12.19","ПКГО","Административное здание, пр. Циолковского",null,null,null,null,null,null,null,null,null,null,null,null,null,null,null,null,null,100]
[null,null,null,"ОТП-20-00075 от 19.03.2020","ПКГО","\"Административное здание\", расположенное по адресу: Российская Федерация, Камчатский край, г. Петропавловск-Камчатский, пр-кт Циолковского",null,1,null,null,null,null,null,null,null,null,null,null,null,null,null,null,null,140]
[null,null,null,"ОТП-18-00769 от 03.12.2018","ПКГО","\"Сооружения Автостоянка (парковка)\", расположенный по адресу: установлено относительно ориентира, расположенного за пределами участка. Почтовый адрес ориентира: Камчатский край, г. Петропавловск-Камчатский, б-р Рыбацкой Славы.",null,1,"06.06.2019 - согласование завершено\n23.05.2019 - начало согласования.\n16.05.2019 - приступили к разработке","-","2019-06-03","12.08.2019 - исправленный\n04.06.2019",null,null,null,null,null,null,0,0,70,0,0,30,"!","-",null,null,null,null,null,"Необходимо заключение сервитута с арендатором участка 41:01:0010118:622.\nРеконструкция - в РУ-0,4 кВ ТП-425 установить РЩ с АВ расчётного тока."]
[null,null,null,"ОТП-18-00759 от 03.12.2018","ПКГО","\"Автостоянка (парковка)\", расположенный по адресу: установлено относительно ориентира, расположенного за пределами участка. Почтовый адрес ориентира: Камчатский край, г. Петропавловск-Камчатский, пр-кт Карла Маркса",null,1,"30.05.2019 - согласование завершено\n07.02.2019 - начало согласования","30.05.2019 - получены ТУ от МКУ \"САД ПКГО\"\n27.05.2019 - проведена встреча с представителем МКУ \"САД ПКГО\", переданы все ранее направленные документы.\n23.04.2019 - повторный запрос ТУ\n12.03.2019","2019-04-10","2019-04-23",null,null,null,null,null,null,0,0,270,0,0,25,"!","-",null,null,null,null,null,"В январе подана заявка в росимущество на размещение. Необходим сервитут с МКУ САД.  Необходимо заключение сервитута с арендатором участка под ТЦ \"Атом\""]
[null,null,null,"ОТП-18-00765 от 10.12.2018","ПКГО","\"Сооружения Автостоянка (парковка)\", расположенный по адресу:  Российская Федерация, Камчатский край, г. Петропавловск-Камчатский, пр. Карла Маркса ",null,1,"19.06.19 - согласование завершено\n24.05.2019 - замечания устранены\n23.05.2019 - получены замечания\n23.05.2019 - начало согласования.\n16.05.2019 - приступили к разработке","ТУ от МКУ \"САД ПКГО\" № 2131/19 от 24.06.2019\n06.06.2019 - запрос ТУ в МКУ \"САД ПКГО\" ","2019-06-03","05.03.2020 направлены документы в МКУ САД на установление сервитута 25.01.2020 - напрвлены документы на заключения разрешения на размещение в РОСИМУЩЕСТВО          04.06.2019-отказ",null,null,null,null,null,null,0,0,180,0,0,30,"!","-",null,null,null,null,null,"10.02.2020-подано заявление в росимущество на установление сервитута. ( необходимо подготовить схему границ сервитута в МКУ САД и акт выдора для подачи в Архитектуру) Корректировка трассы.   Участок 14:84 по сведениям ЕГРН находится в Федеральной собственности - необходимо заключение сервитута.\nРеконструкция -  в РУ-0,4 кВ ТП-413 на 2 секцию установить панель ЩО-70-1-02"]
[null,null,null,"ОТП-19-00103 от 12.03.2019","ЕМР","\"Жилой дом\", расположенный по адресу: Камчатский край, п. Раздольный",null,"550 р.","новая трасса на согласовании 29.10.19 согласовано 10.07.2019 - начало согласования\n10.07.2019 - трасса разработана\n08.07.2019 - трасса принята в разработку","-","-","07.11.2019 - новая трасса",null,null,null,null,null,null,45,0,0,0,0,15,"!","-",null,null,null,null,null,"Необходима корректировка трассы"]
[null,null,null,"ОТП-19-00604 от 22.10.2019","ЕМР","\"Осуществление рекреационной деятельности\", расположенный по адресу: Камчатский край, Елизовский район, Елизовское лесничество, квартал 265 выдел 5 Петропавловского участкового лесничества (б. Авачинское) ",null,1,"21.10.2019 - поступил в работу","25.10.2019 - направлен запрос выписки из лесного реестра (вх. № 59/2026 от 25.10.2019)",null,null,null,null,null,null,null,null,null,null,null,null,null,15,"!",null,null,null,null,null,null,"31.01.2020 Утвержден проект освоения лесов и подана лесная (31.01.2020).  декларация 24.10.2019 проведена встреча с представителями Елизовского лесничества и Агентства лесного хозяйства и охраны животного мира Камчатского края\nНеобходимо уточнить местоположение участков заявителей."]
[null,null,null,"ОТП-19-00605 от 22.10.2019","ЕМР","\"Осуществление рекреационной деятельности\", расположенный по адресу: Камчатский край, Елизовский район, Елизовское лесничество, квартал 265 выдел 5 Петропавловского участкового лесничества (б. Авачинское) ",null,1,null,null,null,null,null,null,null,null,null,null,null,null,null,null,null,15,"!"]
[null,null,null,"ОТП-17-00718 от 08.09.2017","ЕМР","Гараж, Камчатский край, Елизовский район",null,"550 р.","30.05.2019 приступили к разработке","Нет информации","Нет информации","Нет информации","Нет информации","Заключен сервитут с Росимуществом от 26.02.2020 №02","подано","Нет информации","Нет информации","Нет информации",50,500,0,0,1,15,"!","ГП-50 от 07.11.2018"]
[null,null,null,"ОТП-18-00077 от 02.03.2018","ЕМР",null,null,1,"02.04.2019 - печати\n25.03.2019 - согласования\n11.10.2018 - старый образец","-","2019-02-20","2019-03-21","2019-04-03","2019-04-11","2019-04-16","Ордер № 06/19 от 18.04.2019 (до 31.12.2019)","2019-05-06","Порубочный № 2 от 08.05.2019 (до 31.12.2019)",0,0,131,0,0,140,"+","-",null,null,null,"31.07.2019",null,"Необходимо устранить замечания по проектной документации и заключить сервитут с ФКУ ДСД!\nПроектная документация на пересечение федеральной дороги на согласовании в ФКУ ДСД."]
[null,null,null,"ОТП-18-00077 от 02.03.2018","ПКГО",null,null,1,"100%. Прошли в сентябре 2018","30.04.2019 - заключен сервитут с СШ по ЗВС.\nБиатлонный комплекс - сервитут согласовывается.","23.04.2019 - корректировки\n27.02.2019","24.04.2019 - корректировки\n05.03.2019","Не требуется","Не требуется","2019-05-06","Ордер № 134 от 06.05.2019 (до 29.04.2020)","Не требуется","Не требуется",0,0,{"$f":"25+65+26+54+49+32","v":251},0,0,140,"+","-",null,null,null,"2019-07-31"]
[null,null,null,"ОТП-18-00334 от 29.05.2018","ПКГО","\"Объект незавершенного строительства\", распорложенный по адресу: Камчатский край, г. П-К, ул. Березовая",null,1,"20.03.2019 - начало согласования, 12.04.19-согласован на 100%","-","10.04.2019\n13.05.2019 - повторно","2019-05-31","2019-05-31","№ 731/19 от 06.06.19 (до 06.06.21)","2019-06-15","Ордер № 219 от 18.06.2019 (до 31.12.2019)","Не требуется","Не требуется",15,15,0,0,1,150,"+","-",null,null,null,"2019-07-24"]
[null,null,null,"ОТП-18-00591 от 14.09.2018","ЕМР","\"Производственная база\", расположенная по адресу: Российская Федерация, Камчатский край, Елизовский муниципальный район, Пионерское СП, п. Крутобереговый, ул. Елизовское шоссе, д. 18",null,1,"29.04.2019 - начало согласования.\n06.05.2019 - корректировки от ПРЭС.","-","2019-05-20","2019-05-22","2019-05-22","№ 593 от 24.05.2019 (до 24.05.2021)","2019-06-04","Ордер № 11/19 от 19.06.2019 (до 31.12.2019)","Не требуется","Не требуется",0,0,0,{"$f":"40+177+64+89+45","v":415},1,80,"+","-",null,null,null,null,null,"На 26.07.2019 - кабельная линия проложена, но не подключена. Необходима установка опоры с РЛНД и ТП."]
[null,null,null,"ОТП-18-00271 от 15.05.2018","ЕГП",null,null,"550 р.","Необходимо получить согласования заново\n20.08.2018","-","2019-08-20","2018-09-03","2018-09-05","24.09.2018 № 54 до 23.09.2020","06.06.2019 - на новый ордер\n17.05.2019 - подано заявл-е на новый ордер\n03.10.2018","№ 04-07/77 от 02.08.2019 (до 30.10.2019)\n№ 04-07/122 от 05.10.2018 (до 31.11.2018, необходимо продление!)","Не требуется","Не требуется",0,0,150,0,0,25,"+","-",null,null,null,"21.08.2019"]
[null,null,null,"ОТП-17-00931 от 13.11.2017","ПКГО",null,null,null,"04.07.2019 - начало согласования\n02.07.2019 - трасса разработана","05.08.2019 - получены ТУ от МКУ \"САД ПКГО\"\n24.07.2019 - повторно в МКУ \"САД ПКГО\"\n18.07.2019 - получены ТУ от МКУ \"СБ ПКГО\"\n05.07.2019 - запрос ТУ в МКУ \"СБ ПКГО\" и МКУ \"САД ПКГО\" (принято 08.07.2019)","2019-12-03","2019-12-04","2019-12-05","-","2019-08-06","№ 430 от 19.08.2019 (до 01.11.2019)","Не требуется","Не требуется",0,0,116,0,0,250,"+",null,null,null,null,"+",null,"Ордер до 01.11.19-просрочен, необходимо продлить. Необходимо согласование с УК \"Юг\" (ул. Павлова, 2)"]
[null,null,null,"-","ЕГП",null,null,"-","31.05.2019 - согласование завершено\n29.05.2019 - начало согласований","-","2019-06-03","2019-06-13","2019-06-24","№ 24 от 01.07.2019 (до 30.06.2021)","вх. №1601 от 29.08.19г.","04-07/91 от 30.08.2019 (о 01.09.2020)","Не требуется","Не требуется",0,0,414,0,0,"-","+","-"]
[null,null,null,"ОТП-18-00497 от 08.08.2018","ЕГП","\"Жилой дом\", расположенный по адресу: Камчатский край, Елизовский район, г. Елизово, пр. Излучина, д.14",null,"550 р.","17.07.2019 - согласовано\n03.06.19 - начало согласования","-","2019-08-27","2019-08-27","2019-11-29","№ 66 от 09.12.2019 (до 08.12.2021)","2020-01-14","№04-07/01 от 23.01.2020","12.03.2020 - платёжное поручение получено \n03.03.2020 - направлено в оплату\n31.01.2020 - на оплату\n28.01.2020","№ 02/04-04 от 13.03.2020",330,0,0,0,0,15,"+","-",null,null,null,"-",null,"Участок 41:05:0101008:3273 - Мун. собственность, в бессрочке"]
[null,null,null,"ОТП-17-00019 от 18.12.2017","ПКГО",null,null,"550 р.","12.02.2019 - согласовано на 100%","-","04.06.2019 - необходимы корректировки в АВТ\n25.04.2019\n13.05.2019 - повторно","2019-05-31","04.06.2019 - необходимы корректировки в АВТ\n31.05.2019","№ 729/19 от 06.06.19 (до 06.06.21)","2019-06-19","Ордер № 287 от 28.06.2019 (до 31.12.2019)","2019-07-16",null,165,0,0,0,0,100,"+","-",null,null,null,null,null,"25.07.2019 - организован выезд для обследования и рассчета стоимости сносимых насаждений."]
[null,null,null,"ОТП-18-00748 от 14.01.2019","ПКГО","\"Производственный логистический центр\", расположенный по адресу: Российская Федерация, Камчатский край, г. Петропавловск-Камчатский, в районе шоссе Восточного",null,1,"03.06.19 - 100% 14.05.2019 - приступили к разработке","-","2019-05-31","2019-06-14","2019-07-01","№ 901/19 от 08.07.2019 (до 08.07.2021)","2019-07-25","№ 372 от 29.07.2019 (до 31.05.2020)","2019-11-28",null,0,280,0,0,0,100,"+","-",null,null,null,null,null,"Все разрешительные документы переданы ООО \"Строитель\" (оригиналы), также принято решение о том, что оплачиват ьснос зелёных насаждений будут они."]
[null,null,null,"ОТП-18-00659 от 26.10.2018","ПКГО",null,null,1,"03.07.2019 - трасса согласована\n26.06.2019 - трасса разработана\nНа 25.06.2019 - требуется пересмотр мероприятий","-","-","12.08.2019 - корректировки\n05.07.2019","12.08.2019\n22.07.2019 - отказ в размещении\n12.07.2019","№ 1294/19 от 23.08.2019г. (до 23.08.2021г.)","Подано 03.09.2019","№501 от 16.09.2019",null,null,0,0,380,0,0,150,"+","-",null,null,null,null,null,"КЛ от ранее проектируемой ТП (Скантранс, Камаз, Старкам)"]
[null,null,null,"ОТП-18-00703 от 12.11.2018","ПКГО","\"Транспортно-логистический центр\", расположенный по адресу: г.П-К, ш.Северо-Восточное",null,1,null,null,null,null,null,null,null,null,null,null,null,null,null,null,null,150,"-","-"]
[null,null,null,"ОТП-18-00070 от 28.02.2018","ЕГП",null,null,1,"2019-04-05","-","09.04.2019\n13.05.2019 - повторно","2019-06-03","04.06.2019 (рег. № 990 от 04.06.2019, № 01-36/810 от 13.06.2019)","№ 23 от 17.06.2019 (до 16.06.2021)","вх. № 1318 от 23.07.2019","№ 04-07/62 от 25.07.2019 (до 25.07.2020)",null,null,20,10,0,0,1,150,"+","-"]
[null,null,null,"ОТП-17-00818 от 01.11.2017","ЕМР","\"Жилой дом\", расположенного по адресу: Российская Федерация, Елизовский м.р-н, Пионерское с.п., п. Светлый, мкр. Молодежный, ул. Беринга, д. 15",null,1,"22.03.2019 - печати\n29.11.2018 - согласования\n13.08.2018 - старый образец\n16.05.2018 - обвинение в подлоге","-","01.03.2019 - Г.Г. Белоусову\n18.06.2018 - Р.А. Долгову","10.06.2019 - Г.Г. Белоусов\n20.07.2018 - от Р.А. Долгова","02.08.2019 - направлено (зарегистрировано 07.08.2019, т.к. некому отписывать, а сроки идут)\n31.01.2019 - повторно\n11.12.2018 - ОТКАЗ\n29.11.2018 - повторно\n07.11.2018 - ОТКАЗ\n25.10.2018 - повторно\n20.07.2018 - отозвано","№ 919 от 08.08.2019","2019-08-14","№ 12/19 от 22.08.2019 (до 19.08.2020)",null,null,{"$f":"375+28+27+27+32+394+142+338","v":1363},0,0,795,1,15,"-","-",null,null,null,null,null,"ОТП-17-01058 от 19.01.2018 - РАСТОРГНУТ!"]
[null,null,null,"ОТП-17-01051 от 18.01.2018","ЕМР","\"Жилой дом\", расположенного по адресу: Камчатский край, Елизовский м.р-н, Пионерское с.п. п. Светлый, мкр. Молодежный, ул. Беринга, д. 45",null,1,null,null,null,null,null,null,null,null,null,null,null,null,null,null,null,15,"-"]
[null,null,null,"ОТП-17-01058 от 19.01.2018","ЕМР",null,null,1,null,null,null,null,null,null,null,null,null,null,null,null,null,null,null,15,"-"]
[null,null,null,"ОТП-17-01064 от 22.01.2018","ЕМР","\"Жилой дом\", расположенного по адресу: Камчатский край, Елизовский м.р-н, п. Светлый, мкр. Молодежный 235",null,1,null,null,null,null,null,null,null,null,null,null,null,null,null,null,null,15,"+"]
[null,null,null,"ОТП-17-01077 от 31.01.2018","ЕМР","\"Жилой дом\", расположенного по адресу: край Камчатский, Елизовский район, пос. Светлый, мкр. Молодежный, 242",null,1,null,null,null,null,null,null,null,null,null,null,null,null,null,null,null,15,"-"]
[null,null,null,"ОТП-17-01081 от 19.01.2018","ЕМР","\"Жилой дом\", расположенного по адресу: Камчатский край, Елизовский район, Пионерское с.п., п. Светлый, мкр. Молодежный, ул. Крашенинникова, д. 21",null,1,null,null,null,null,null,null,null,null,null,null,null,null,null,null,null,15,"-"]
[null,null,null,"ОТП-18-00009 от 27.02.2018","ЕМР","\"Жилой дом\", расположенного по адресу: Камчатский край, Елизовский м.р-н, Пионерское с.п., п. Светлый, мкр. Молодежный, ул. Крашенинникова, д. 23",null,1,null,null,null,null,null,null,null,null,null,null,null,null,null,null,null,15,"-"]
[null,null,null,"ОТП-17-01074 от 26.01.2018","ЕМР","\"Индивидуальное жилищное строительство\", расположенного по адресу: Камчатский край, Елизовский район, п. Светлый, мкр. Молодежный, 354",null,1,null,null,null,null,null,null,null,null,null,null,null,null,null,null,null,15,"-"]
[null,null,null,"ОТП-17-01078 от 22.01.2018","ЕМР","\"Индивидуальное жилищное строительство\", расположенного по адресу: Камчатский край, Елизовский р-н, п. Светлый, м/р. Молодежный 236",null,1,null,null,null,null,null,null,null,null,null,null,null,null,null,null,null,15,"-"]
[null,null,null,"ОТП-18-00090 от 29.03.2018","ЕМР","\"Индивидуальный жилой дом\", расположенного по адресу: Камчатский край, Елизовский район, п. Светлый, мкр. Молодежный, 308;",null,1,null,null,null,null,null,null,null,null,null,null,null,null,null,null,null,15,"-"]
[null,null,null,"ОТП-17-01086 от 21.02.2018","ЕМР","\"Жилой дом\", расположенного по адресу: Российская Федерация, Камчатский край, Елизовский м. р-н, п. Светлый, мкр Молодежный, ул. Муравьева-Амурского, з/у 8",null,null,null,null,null,null,null,null,null,null,null,null,null,null,null,null,null,15]
[null,null,null,"ОТП-17-01072 от 26.01.2018","ЕМР","\"Личное подсобное хозяйство\", расположенного по адресу: Камчатский край, р-н Елизовский, п. Светлый, м/р Молодежный, 310;",null,1,null,null,null,null,null,null,null,null,null,null,null,null,null,null,null,15,"-"]
[null,null,null,"ОТП-19-00243 от 27.05.2019","ЕМР","\"Индивидуальное жилищное строительство\", расположенного по адресу: Камчатский край, р-н Елизовский, п. Светлый, мкр. Молодежный, ул. Невельского, з/у 29",null,null,null,null,null,null,null,null,null,null,null,null,null,null,null,null,null,30]
[null,null,null,"ОТП-19-00237 от 27.05.2019",null,"\"Индивидуальное жилищное строительство\", расположенного по адресу: Камчатский край, Елизовский район, п. Светлый",null,null,null,null,null,null,null,null,null,null,null,null,null,null,null,null,null,15]
[null,null,null,"ОТП-19-00252 от 27.05.2019",null,"\"Индивидуальное жилищное строительство\", расположенного по адресу: Российская Федерация, Камчатский край, Елизовский м. р-н, Пионерское с.п., п. Светлый, мкр. Молодежный, ул. Невельского, з/у 24",null,null,null,null,null,null,null,null,null,null,null,null,null,null,null,null,null,15]
[null,null,null,"ОТП-17-01069 от 09.02.2018","ЕМР","\"Индивидуальный жилой дом\", расположенного по адресу: Камчатский край, р-н Елизовский, п. Светлый, м/р. Молодежный, 312",null,1,null,null,null,null,null,null,null,null,null,null,null,null,null,null,null,15,"-"]
[null,null,null,"ОТП-18-00133 от 21.03.2018","ПКГО","\"Здание \"Медицинский центр в г. Петропвловске-Камчатском (третья очередь строительства) хозяйственно-бытовой блок\", расположенного по адресу: Камчатский край, г. Петропавловск-Камчатский, ул. Горького, д. 11/1, корп. 2",null,1,"30.07.2019 - согласовано\n26.07.2019 - передано на штамп в УАГЗО аПКГО\nНа 20.06.2019 - трасса согласована на 80%  \n07.06.2019 - трасса разработана","24.07.2019 - получены ТУ от МКУ \"САД ПКГО\"\n03.07.2019 - запрос ТУ в МКУ \"САД ПКГО\"","-","13.08.2019 - корректировки\n28.06.2019","2019-08-12","№ 1266/19 от 16.08.2019г. (до 16.08.2021г.)"," Подано 03.09.2019","№ 496 от 13.09.2019",null,null,0,0,250,0,0,100,"+"]
[null,null,null,"ОТП-17-00463 от 25.07.2017","ПКГО",null,null,"550 р.","есть",null,null,"есть",null,"есть",null,"№ 418 от 15.09.19 (до 21.09.2021)",null,null,150,0,0,0,0,15,"+","ГП-53 от 08.11.2018"]
[null,null,null,"ОТП-18-00107 от 20.03.2018","ЕМР",null,null,"550 р.","2018-05-18","-","2018-05-21","2018-07-30","2018-09-18","28.09.2018 № 982 до 28.09.2019","2018-10-18","№ 19/18 от 29.10.2018 (до 31.12.2018)",null,null,22,0,0,0,0,15,"+","-"]
[null,null,null,"ОТП-17-00915 от 29.11.2017","ПКГО",null,null,1,"30.07.2019 - согласовано\n26.07.2019 - передано на штамп в УАГЗО аПКГО\n27.06.2019 - приступили к согласованию\n13.06.2019 - трасса разработана в двух вариантах","24.07.2019 - получены ТУ от МКУ \"САД ПКГО\"\n03.07.2019 - запрос ТУ в МКУ \"САД ПКГО\"",null,"акт подготоален 04.09.19","заявление на зазмещение от 06.09.19 Вх №12-08-00/6417/19","от 19.09.2019 № 1643/19","2019-10-03","от 09.10.2019 №584",null,null,0,0,200,0,0,150,"+","-"]
[null,null,null,"ОТП-19-00298 от 13.06.2019","ПКГО","\"Индивидуальный жилой дом\", расположенный по адресу: местоположение установлено относительно ориенитра, расположенного за пределами участка. Почтовый адрес ориентира: Камчатский край, г. Петропавловск-Камчатский, ул. Тундровая",null,"550 р.","05.09.2019 - передано на штамп в УАГЗО ПКГО, согласовано 27.08.2019 - разработана трасса","нет","2019-08-27","2019-09-09","2019-09-12","от 18.09.2019 №1638","2019-10-04","от 09.10.2019 №586",null,null,50,0,0,0,0,"15 кВт","+"]
[null,null,null,"ОТП-19-00131 от 27.03.2019","ПКГО","\"Мойка автомашин\", расположенный по адресу: Камчатский край, г. Петропавловск-Камчатский, проспект Победы, д. 79А",null,1,"17.07.2019 - начало согласования\n16.07.2019 - трасса разработана\n15.07.2019 - трасса поступила в разработку","ТУ № 3466/19/08 от 30.09.2019г,  ТУ-МКУ САД-запрос отправлен 19.09.2019",null,"2019-09-20","2019-10-09","от 21.10.2019 №1923/19","2019-10-21","от 01.11.2019 №640",null,null,0,0,270,0,0,60,"+","-",null,null,null,null,null,"29.10.2019 подготовлено заявление на ордер"]
[null,null,null,"ОТП-18-00223 от 26.04.2018","ЕГП",null,null,"550 р.","23.04.2019 - согласовано ИП Белоусовым Г.Г.\n07.06.2019 - разработана трасса\nНет информации от подрядчика","Нет информации","Нет информации","Нет информации","Нет информации","№ 56 от 28.10.2019 (до 27.10.2021)","2019-10-30","№ 04-07/118 от 31.10.2019 (до 04.11.2020)","Нет информации","Нет информации",20,0,0,0,0,15,"+","ГП-51 от 07.11.2018"]
[null,null,null,"ОТП-17-00843 от 08.11.2017","ПКГО",null,null,"550 р.","14.11.2019 - согласовано","Нет информации","Нет информации","Нет информации","Нет информации","№ 2208/19 от 03.12.2019 (до 03.12.2021)","Нет информации","№ 706 от 18.12.2019 (до 14.11.2020)","Нет информации","Нет информации",300,0,0,0,0,15,"+","ГП-52 от 07.11.2018"]
[null,null,null,"-","ПКГО","ул. Сахалинская",null,null,"26.07.2019 - принято в разработку","ТУ САД № 3753/19 от 24.10.19г.,     Запрос ТУ МКУ САД, вх. №4672 от 23.10.19г.","2019-11-08","2019-12-16","2019-12-16","2019-12-19","16.01.20-продление ордера, 20.12.2019","№712 от 23.12.2019 (продлён до 31.12.2020,\nдо 20.01.2020)",null,null,0,0,0,421,0,"-","+",null,null,null,null,null,null,"26.07.2019 - Закупка https://www.roseltorg.ru/procedure/31908043660  по категорированию ТП-2, расположенной по адресу: Камчатский край, г. Петропавловск-Камчатский, в районе жилого дома по ул. Сахалинская, д. 2.\nПо указанию руководства взять данный объект в хозспособ."]
[null,null,null,"ОТП-19-00073 от 18.02.2019","ЕГП","\"Жилой дом\", расположенный по адресу: Камчатский край, Елизовский муниципальный район, Елизовское городское поселение, Елизово г., Родниковая ул., 8",null,"550 р.","01.10.19 трасса разработана н.с. 29.10.19 согласована","-","ОРДТП","07.11.2019  ф.Октябрь 2010","№4177 от 12.11.19","№62 от 25.11.19","подготовлено письмо 04.12.19","2019-12-09",null,null,81,0,0,0,0,15,"+"]
[null,null,null,"ОТП-19-00525 (пока без даты, не подписан)","ПКГО","Д/с по ул. Вилюйская, д.60",null,null,"02.10.19-трасса разработана, 01.10.19 внесено в табл.","ТУ САД № 3625/19 от 15.10.19г.,           СБ запрос ТУ № 4121/19 от 14.10.2019","-","2019-12-04","2019-12-05","№2321/19 от 17.12.2019 (до 17.12.2021)","13.01.2020, 29.10.2019г.","№ 7 от 13.01.2020 (до 13.01.2021), №637 от 31.10.2019 (был получен ордер на аварийные работы, просрочен)",null,null,0,0,189,0,0,300,"+"]
[null,null,null,"ОТП-18-00397 от 16.07.2018","ПКГО","\"Станция технического обслуживания с моечным комплексом\", расположенный по адресу: г.П-К, ул. Крутобереговая",null,"550 р.","04.09.2019-трасса разработана, 16.05.2019 - приступили к разработке","получены ТУ МКУ САД №4167/19 от 25.11.19, запрос ТУ САД 15.11.19г","-","2019-11-20","2019-12-04","№2319/19 от 17.12.2019 (до 17.12.2021)","2020-01-13","№ 6 от 13.01.2020 (до 13.01.2021)",null,null,0,0,400,0,0,15,"+"]
[null,null,null,"ОТП-17-00739 от 15.09.2017","ЕМР",null,null,"550 р.","Нет информации","Нет информации","Нет информации","Нет информации","Нет информации","Соглашение о сервитуте","№ 04-13/5193 от 13.12.2019 (до 13.12.2021)","№ 3996/1 и 3997/1 от 23.12.2019 (до 23.12.2020)","Нет информации","Нет информации",70,50,0,0,1,15,"+","ГП-50 от 07.11.2018",null,null,null,null,null,"Получено соглашение об установлении сервитута с Росимуществом "]
[null,null,null,"ОТП-18-00052 от 26.02.2018","ЕГП",null,null,1,"29.10.19 согласовано 26.09.19 трасса исправлена нач. нов. Соглас. 12.04.19 - нужна новая трасса \n13.03.2019 - начало согласований ","-","-","2019-11-12","20.11.2019  №4293","№63 от 02.12.2019","2020-01-29","от 31.01.2020 №04-07/03",null,null,30,800,0,0,1,100,"+","-"]
[null,null,null,"ОТП-17-01067 от 22.01.2018","ЕМР",null,null,1,"Нет информации","Нет информации","Нет информации","Нет информации","Нет информации","Соглашение о сервитуте","Нет информации","Нет информации","Нет информации","Нет информации",0,0,50,1250,1,150,"+","ГП-53 от 08.11.2018",null,null,null,null,null,"Получено соглашение об установлении сервитута с Росимуществом "]
[null,null,null,"ОТП-18-00203 от 17.04.2018","ЕМР",null,null,"550 р.","27.03.2019 - печати\n30.01.2019 - согласования","Запрос о выдаче ТУ в КГКУ \"Камчатуправтодор\"","2019-02-01","2019-04-02","2019-04-03","№ 437 от 11.04.2019 (до 11.04.2021)",null,null,null,null,45,{"$f":"34+36+34+8","v":112},0,0,1,15,"+","-",null,null,null,null,null," 20.01.2019 Поданы документы на заключения сервитута с Камчатуправтодор (отказ, зу еще не предоставлен Камчатуправтодор). На стадии подготовки договора на выполнение технических условий (с Управлением автомобильных дорог), подготовка заявления на проведения земляных работ"]
[null,null,null,"ОТП-18-00807 от 09.01.2019","ПКГО","\"Встроенно-пристроенные нежилые помещения по.85-88;90-92;97-101 подвала, поз.2-27 первого этажа жилого дома\", расположенный по адресу: Камчатский край, г. Петропавловск-Камчатский, бульвар Рыбацкой Славы, 3",null,1,"04.07.2019 - начало согласования\n27.06.2019 - приступили к разработке трассы","04.10.2019 - получены ТУ от МКУ \"САД ПКГО\"\n03.09.2019 - получены ТУ от МКУ \"СБ ПКГО\" №2933/19\n21.08.2019 - запрос ТУ от МКУ \"САД ПКГО\" и МКУ \"СБ ПКГО\"","2019-10-18","2019-10-18","2019-10-31","Отказ в размещении от 11.11.19.",null,null,null,null,0,0,250,0,0,48.9,"+","-"]
[null,null,null,"ОТП-18-00750 от 23.11.2018","ПКГО","\"Объект незавершенного строительства\", расположенный по адресу: Российская Федерация, Камчатский край, г. Петропавловск-Камчатский, ул. Березовая",null,1,"20.06.19 на печать ПКГО\nНа 07.06.2019 - трасса в разработке","-","-","2019-06-26","12.09.2019 - отзыв\n15.07.2019 - отказ в размещении\n01.07.2019",null,null,null,null,null,0,0,110,30,1,100,"+","-",null,null,null,null,null,"нужно изменение тз"]
[null,null,null,"ОТП-18-00746 от 05.12.2018","ПКГО",null,null,1,"30.09.19-разработана новая трасса, 30.07.2019 - согласовано\n26.07.2019 - передано на штамп в УАГЗО аПКГО\n17.06.2019 - трасса разработана в 2 вариантах. Повторное согласование. 25.11.19","24.07.2019 - получены ТУ от МКУ \"САД ПКГО\"\n03.07.2019 - запрос ТУ в МКУ \"САД ПКГО\"","-","(29.07.2019). Повторный акт выбора 28.11.2019 (4 вариант отдельная папка 06 Июнь 2019) ОРДТП","подались повторно 23.08.19 повторно отказ 12.08.2019 - КЛ\n02.08.2019 - отказ в размещении ВЛ\n30.07.2019 - ВЛ",null,null,"Ордер № 59 от 28.02.2020 (верхняя часть)",null,null,0,0,165,0,0,70,"+","-",null,null,null,null,null,"Планируется увеличение мощности до 70 кВт! Водоканал подъехать в рабочем порядке согласовать трассу. Водоканал отказывается давать согласование из-за ТП 425. Прозваниваем коммуникации под ТП-425 выесняем действительно ли она на коммуникациях. Разработали лист согласова"]
[null,null,null,"ОТП-18-00757 от 04.12.2018","ЕМР","\"Хозяйственные постройки\", расположенные по адресу: Российская Федерация, Камчатский край, Елизовский район\n",null,1,"21.11.19-разработана новая трасса,   На 02.07.2019 - необходимо менять трассу\n26.06.2019 - приступили к согласованию\n20.06.2019 - трасса разработана","-",null,"разработан акт выбора 02.12.2019+сервитуты ","14.11.2019 - отзыв 01.10.2019",null,null,null,null,null,0,0,250,1000,1,35,"+","-",null,null,null,null,null,"Необходима корректировка трассы КЛ на ВЛ"]
[null,null,null,"-","ЕГП",null,null,"-","17.07.2019 - согласование завершено\n06.06.2019 - начало согласований","16.12.19-получены ТУ Водоканал ТУ-314/12-01 от 04.12.19,     29.11.19-запрос ТУ Водоканал, Необходимо ТУ от КГУП \"Камчатский водоканал\"","2019-07-23","2019-07-31",null,null,null,null,null,null,0,0,329,0,0,null,"+","-",null,null,null,null,null,"Необходимо заключение сервитута с   :1368"]
[null,null,null,"-","ЕГП",null,null,null,"13.06.2019 - разработана трасса для оп. 62\n20.03.2019 - принято в разработку",null,null,"2019-09-16","2020-01-29","№ 4 от 10.02.2020 (до 09.02.2022)","2020-03-02",null,null,null,null,null,null,null,null,null,"+",null,null,null,null,null,null,"Коридор проходит (в том числе) в границах 2 земельных участков:\n\n02:3541 - сведений о зарегистрированных правах в ЕГРН нет (гос. собств-сть не разграничена)\n02:3310 - муниципальная собственность\n\n"]
[null,null,null,"ОТП-17-00893 от 21.11.2017г. \nДоп. Согл. От 31.01.2018","ПКГО","\"Павильон №620 \"Тонировка\", расположенный по адресу: участок находится примерно в 163 м по направлению на северо-запад от риентира Жилой дом. Расположенного за пределами участка, адрес ориентира: Камчатский край, г. П-Камчатский, пр-кт Карла Маркса, дом.19",null,1,"согласовано 28.11.19 На подписи в архитектуре трасса разработана начало соглас 24.10.19","ТУ получены","04.03.2020 - кристина 29.11.19 ОРДТП (Владимир Ильич)","05.03.2020 АКТ выбора, схема гарниц сервитута 03.02.2020 некорректный)",null,null,null,null,null,null,0,0,30,450,1,30,"+","-",null,null,null,null,null,"05.03.2020 - уточняется информация по договорам аренды заявителей, возможно необходимо расторжение договоров ОТП) 03.03.2020- 41:01:0010114:184 участок Платонова А.В.) 41:01:0010114:602 Жилой дом Тушканова 19 УК ?), 41:01:0010114:234 МКУ САД-необходим сервитут), 41:01:000000:2027 заказана выписка).Размещение ТП и КЛ-10 кВ предусмотрено также для договоров:\nОТП-17-00950 от 08.12.2017\nОТП-17-00890 от 21.11.2017\nОТП-17-00962 от 12.12.2017\nОТП-17-00892 от 17.11.2017\nОТП-17-00946 от 12.12.2017\nОТП-17-00954 от 08.12.2017\nОТП-17-00963 от 12.12.2017\nОТП-17-00960 от 12.12.2017"]
[null,null,null,"ОТП-18-00725 от 03.12.2018","ПКГО","\"Здание гостиницы\", расположенные по адресу: Камчатский край, г. Петропавловск-Камчатский",null,"Без льготы","03.07.2019 - согласован один вариант, работаем с ним\n26.07.2019 - передано на штамп в УАГЗО аПКГО\n27.06.2019 - приступили к согласованию\n25.06.2019 - трасса разработана в двух вариантах\n23.05.2019 - приступили к разработке","24.07.2019 - получены ТУ от МКУ \"САД ПКГО\"\n03.07.2019 - запрос ТУ в МКУ \"САД ПКГО\"",null,null,"-","-",",","-","-","-",0,0,50,250,1,300,"+",null,null,null,null,null,null,"Необходимо заключение сервитута, участок 16:11282 находится в мун. собственности и никому не предоставлен, на часть в его границах можно получать разрешение;                                                                  Участок 00:41 в бессрочке у управления дорожного хозяйства, на часть в его границах нужно установление сервитута                                      "]
[null,null,null,"ОТП-18-00556 от 06.09.2018","ЕМР","\"Жилой дом\", расположенный по адресу: Камчатский край, Елизовский район, п. Крутобереговый",null,null,"Трасса разработана - 23.10.2019 30.07.2019 - принято в разработку","ТУ Камчатуправтодор",null,null,null,null,null,null,null,null,null,null,null,null,null,15,"+",null,null,null,null,null,null,"необходим проект пересечения дороги в Камачтуправтодор"]
[null,null,null,"ОТП-19-00030 от 15.02.19","ПКГО","Здание склада № 3, расположенный по адресу: Камчатский край, г. Петропавловск-Камчатский, ул. Вулканная, д. 64а",null,1,"03.12.19 трасса разработана 31.10.2019 - принято в разработку","получены ТУ № 159/20 от 20.01.20,             ТУ дорожники","2020-02-28",null,null,null,null,null,null,null,0,0,77,643,1,150,"+",null,null,null,null,null,null,"Мероприятия предполагают подключение от ранее проектируемой ТП для Лусева, ОТП-18-00360 (закупочная документация 107.7 - расформирована) общая трасса с птб данком и лусевым"]
[null,null,null,"ОТП-19-00441 от 24.09.2019","ПКГО","\"Производственный цех\", расположенног по адресу: Камчатский край, г. Петропавловск-Камчатский, пр. Содружества, д. 33",null,null,null,null,null,null,null,null,null,null,null,null,null,null,383,null,null,200,null,null,null,null,null,null,null,"Вместе с лусевым, кварталом, и птб"]
[null,null,null,"ОТП-18-00360 от 17.07.2018","ПКГО","\"Здание СТО\" расположенное в г. Петропавловск-Камчатском, ул. Вулканная",null,null,null,null,null,null,null,null,null,null,null,null,null,null,278,null,null,15,null,null,null,null,null,null,null,"общая трасса с данком, птб, квартал"]
[null,null,null,"ОТП-19-00203 от 16.05.2019","ПКГО","\"Склад\", расположенный по адресу г. Петропавловск-Камчатский, в районе ул. Вулканная",null,null,null,null,null,null,null,null,null,null,null,null,null,null,377,null,null,100,null,null,null,null,null,null,null,"общая трасса с лусевым, данком и квартал"]
[null,null,null,"ОТП-18-00204 от 16.04.2018","ЕМР","\"Гостевой дом\", расположенный по адресу: Елизовский район, с. Николаевка",null,1,"02.08.2019 - согласовано\n02.07.2019 - начало согласования\n24.05.2019 - подготовлена трасса","ППР откорректированный отправлен - 29.08.2019 № 27-11/3221(  от 20.09.2019  27-11/3539),ППР   направлен в НИРО 30.08.19 №3002","Не требуется","24.01.2020 - ОРДТП","2020-02-03","№ 163 от 03.02.2020 (до 03.02.2022)","2020-03-02","от 01.03.2020 по 28.02.2021","Подано исх 27-11_1356  от 25.03.20","07.04.2020\nАдминистрация готова к выезду. Жду когда будут свободные техники у И.В. Сукач. ",60,2350,0,0,1,50,"+","-",null,null,null,null,null,"14.02.2020-Ждем оригинал договора на воспроизводство биологических ресурсов. Поданы документы в НИРО.  На 23.08.2019 - разрабатывается ППР для оценки вреда при работе в водоохранных зонах"]
[null,null,null,"ОТП-19-00051 от 15.02.2019","ЕГП",null,null,null,"10.04.2019 - разработаны 3 варианта трассы",null,null,null,null,null,null,null,null,null,null,0,0,0,0,110,"+",null,null,null,null,null,null,"08.08.2019 - направлена СЗ Харченко об изменениий мероприятий для исключения нового строительства и организации совместного подвеса"]
[null,null,null,"ОТП-18-00137 от 17.04.2018","ЕМР",null,null,1,"25.10.2018 - недействителен",null,null,null,null,null,null,null,null,null,0,3450,0,0,0,50,"+","-"]
[null,null,null,"ОТП-18-00272 от 23.05.2018","ЕМР","\"ИЖД\", расположенный по адресу: Российская Федерация, Камчатский край, Елизовский район\n",null,1,null,null,null,null,null,null,null,null,null,null,30,1300,0,0,1,80,"+","-"]
[null,null,null,"ОТП-17-01066 от 19.01.2018","ЕМР",null,null,1,"-",null,null,null,null,null,null,null,"№ 1",null,120,0,0,0,0,30,"+","№ 51-179 от 21.06.2019",null,null,null,null,null,"Разрешительная документация получается ИП Морщагиным (ГП № 51-179 от 21.06.2019)\nКорректировка трассы в связи с необходимостью переноса ТП.\nОсуществлено строительство ЛЭП-10 кВ расчетного сечения от РУ-10 кВ РП-3. Планируется выполнение работ по монтажу основания для установки ТП-10/0,4 кВ.\nСтроительство ВЛ-0,4 кВ будет незамедлительно выполнено по факту получения разрешительных документов. \n"]
[null,null,null,"-","ЕГП",null,null,null,"20.03.2019 - принято в разработку",null,null,null,null,null,null,null,null,null,null,null,null,null,null,null,"+"]
[null,null,null,"-","ЕГП",null,null,null,"20.03.2019 - принято в разработку",null,null,null,null,null,null,null,null,null,null,null,null,null,null,null,"+"]
[null,null,null,"ОТП-18-00437 от 13.08.2018","ЕМР","\"Жилой дом\", расположенный по адресу: Камчатский край, Елизовский район, Раздольненское сельское поселение, СНТ \"Искра\", ул. Лесная, д. 48",null,"550 р.","19.03.2020-согласовано 20.08.2019 - принято в разработку. Заключен сервитут строительство факт",null,null,null,null,null,null,null,null,null,null,null,null,null,null,15,"+",null,null,null,null,null,null,"СЗ на изменение мероприятий (рядом ВЛ-10 кВ, есть вариант подключить, на подключение от СТП факт. Заключен сервитут с копьевой, строительство факт"]
[null,null,null,"ОТП-18-00420 от 13.08.2018","ЕМР","\"Жилой дом\", расположенный по адресу: Камчатский край, Елизовский район, Раздольненское сельское поселение, СНТ \"Искра\", ул. Лесная, д. 50",null,1,"19.03.2020-согласовано  20.08.2019 - принято в разработку. Заключен сервитут строительство факт",null,null,null,null,null,null,null,null,null,null,null,null,null,null,15,"+",null,null,null,null,null,null,"СЗ на изменение мероприятий, на подключение от СТП факт. Заключен сервитут с копьевой, строительство факт"]
[null,null,null,"ОТП-19-00330 от 11.06.2019","ПКГО","\"Здание стоянки\", расположенный по адресу: Камчатский край, Петропавловск-Камчатский, ул. Ларина ",null,1,"07.10.2019 - принято в разработку",null,null,null,null,null,null,null,null,null,null,null,null,null,null,100,"+"]
[null,null,null,"ОТП-17-00829 от 02.11.2017","ЕМР","\"Здание кафе\", расположенный по адресу: участок находится примерно в 2120 м от ориентира по направлению на северо-восток. Почтовый адрес ориентира: Камчатский край, Елизовский район, пос. Нагорный, ул. Горная, д.11",null,1,"19.03.2020 СОГЛАСОВАНО",null,null,null,null,null,null,null,null,null,null,null,null,null,null,150,"+"]
[null,null,null,"ОТП-18-00816 от 27.12.2018","ПКГО","\"Объект незавершенного строительства\", расположенный по адресу: Камчатский край, г. Петропавловск-Камчатский, просп. Циолковского",null,"550 р.","27.01.2020 - принято в работу",null,null,null,null,null,null,null,null,null,150,0,0,0,0,10,"+"]
[null,null,null,"ОТП-17-00637 от 01.09.2017","ПКГО",null,null,"550 р.","2018-06-29","15.11.2018 - получено согл-е от МКУ \"УКСиР\"\n07.06.2018 - получены ТУ от МКУ \"САД ПКГО\"\n22.05.2018 - запрошены ТУ в МКУ \"САД ПКГО\"","25.08.2018 корректировки\n09.07.2018 (ИП Долгов Р.А.)","25.09.2018 с корректировками\n19.07.2018 (неверный)","21.11.2018 (оставшийся кусок)\n26.09.2018 (трасса разделена на 3 заявления, 1 отказ)","№ 1325/18 от 15.10.2018 (до 15.10.2019),\n№ 1326/18 от 15.10.2018 (до 15.10.2019),\n№ 1673/18 от 03.12.2018 (до 03.12.2019)","2019-03-28","№ 75 от 01.04.2019\n(до 29.06.2019)","Не требуется","Не требуется",0,0,600,0,0,60,"+","-",null,null,null,"2019-07-11",null,"На 30.05.2019 - бригада КЛ ПРЭС работает на объекте\nЖдём ГНБ"]
[null,null,null,"ОТП-00389 от 13.08.2015","ПКГО","\"Жилого дома\", расположенный по адресу: Камчатский край, г. Петропавловск-Камчатский, Авачинский маяк",null,"550 р.","24.05.2018 - 07.06.2018","-","2018-06-08","2018-07-30","2018-07-30","№ 933/18 от 13.08.2018 (до 13.08.2019)","17.08.2018\n13.11.2018 - на продление\n10.01.2018 - на продление","Продлён до 13.08.2019\nПродлён до 31.12.2018\n№ 411 от 08.11.2018 (до 30.10.2018)","2019-06-07","№ 53 от 19.07.2019",126,0,0,0,0,15,"-","-"]
[null,null,null,"ОТП-18-00216 от 17.04.2018","ПКГО",null,null,"550 р.","20.06.19 на печать ПКГО\nПересогласование\n24.05.2018 - согласовано на 100%","-","01.08.2018 - отказ\n01.09.2018 - корректировки","02.07.2019\n05.10.2018\n15.08.2018","03.07.2019 - новый вариант\n09.10.2018 (трасса разделена на 2 заявления - попросили объеденить опять)\n22.11.2018 (трасса вновь объединена)","№929/19 от 15.07.2019 (до 15.07.2021)\n№ 1672/18 от 03.12.2018 (до 03.12.2019)","02.08.2019 - по новой трассе\n10.01.2019 - подались на зем. работы","№ 391 от 05.08.2019 (до 05.08.2021)\n№ 8 от 17.01.2019 (до 30.09.2019)","12.11.2019 - повторное заявление \n13.06.19 - счет на оплату рубки \n28.05.2019 - подались на рубку повторно\n28.02.2019 (отказ в рубке - снег)\n15.02.2019 - снос зел. нас.","№ 162 от 19.11.2019 (до 15.11.2020)\n№14/1 от 13.08.19 до 31.12.19",500,0,0,0,0,15,"-","-"]
[null,null,null,"ОТП-18-00670 от 27.10.2018","ЕМР",null,null,"550 р.","24.01.2019 - согласования\n08.04.2019 - печати,  \n12.04.19 - согласован на 100%","-","22.04.2019\n13.05.2019 - повторно","2019-05-15","2019-05-17","№ 592 от 24.05.2019 (до 24.05.2021)","2019-06-07","Ордер № 11/2019 от 18.06.2019 (до 24.05.2021)","2019-07-16","-",120,0,0,0,0,15,"-","-"]
[null,null,null,"ОТП-18-00449 от 30.07.2018","ЕМР",null,null,"550 р.","24.01.2019 - согласования\n08.04.2019 - печати","-","22.04.2019\n13.05.2019 - повторно","2019-05-15","2019-05-17","№ 573 от 21.05.2019 (до 24.05.2021)","2019-06-21","Ордер № 08 от 14.06.2019 (до 30.08.2021)","2019-07-05",null,120,0,0,0,0,15,"-","-"]
[null,null,null,"ОТП-19-00155 от 05.04.2019","ЕМР",null,null,1,"17.07.2019 - трасса согласована.\n22.05.2019 - начало согласования.","-","Не требуется","Не требуется","Не требуется","Не требуется","2019-07-17","№ 19-02 от 19.07.2019","30.07.2019 - повторно\n25.07.2019",null,50,930,0,0,1,15,"-","-"]
[null,null,null,"ОТП-18-00192 от 25.04.2018","ЕМР","\"Жилой дом\", расположенного по адресу: Российская Федерация, Камчатский край, Елизовский район, Раздольненское с.п.",null,"550 р.","30.01.2019 - согласования\n22.03.2019 - печати","-","01.02.2019\n13.05.2019 - повторно","2019-06-10","2019-06-13","№ 724 от 24.06.2019 (до 24.06.2021)","вх №1675 от 04.10.19г."," от 30.10.2019 №17/2019","надо!",null,{"$f":"27+27+27+27+27+27+27+27+27+27+27+27+27+27+23+23+30+30+30+30+32+32+32+34+27+27+32","v":760},0,0,0,0,15,"-","-",null,null,null,null,null,"необходимо заявление на вырубку и подсчет деревьев"]
[null,null,null,"ОТП-17-00957 от 12.12.2017","ПКГО",null,null,1,"2018-11-14","Нет информации","Нет информации","Нет информации","2019-02-19","13.03.2019 № 377/19 до 13.03.2021","Нет информации","26.03.2019 № 72 до 26.03.2021",null,null,0,0,185,0,0,100,"-","ГП-52 от 07.11.2018"]
[null,null,null,"ОТП-18-00008 от 26.01.2018","ПКГО",null,null,1,"02.03.2020 - пройдена  новая подземная комиссия 14.11.2018","Нет информации","Нет информации","Нет информации","2019-02-19","13.03.2019 № 379/19 до 13.03.2021","04.03.2020     Нет информации","№ 80 от 01.04.2019 (до 14.11.2019)",null,null,0,22,22,270,1,150,"-","ГП-53 от 08.11.2018",null,null,null,null,null,"04.03.2020 подготовлено заявление на получение нового ордера 02.03.2020 необходима новая трасса для прохождения подземной комисси для нового ордера 28.02.2020 Необходимо продление ордера "]
[null,null,null,"ОТП-18-00394 от 18.07.2018","ПКГО","\"Материально-техническая база\", расположенного по адресу: Камчатский край, г. Петропавловск-Камчатский, ул. Дальняя, 14",null,1,"11.12.2018 - отказ\n14.12.2018 - согласовано на 100%","-","11.12.2018\n28.01.2019 - корректировки\n02.02.2019 - корректировки","26.12.2018\n30.01.2019 - с корректировками\n05.02.2019 - с корректировками","2019-01-31","№ 244/19 от 13.02.2019 (до 13.02.2021)","2019-02-20","№ 41 от 20.02.2019 (до 14.12.2019)",null,null,0,0,173,0,0,100,"-","-",null,null,null,"2019-07-03"]
[null,null,null,"ОТП-18-00770 от 05.12.2018","ПКГО",null,null,"550 р.",null,null,null,null,null,null,null,null,null,null,null,null,null,null,null,15,"-",null,null,null,null,null,null,"На самом деле не подключен?"]
[null,null,null,"ОТП-18-00615 от 03.10.2018","ПКГО",null,null,"550 р.","12.04.2019 - согласовано на 90%","ТУ № 1511 от 08.05.2019\n05.04.2019 - запрос ТУ в МКУ \"САД ПКГО\"","2019-04-16","2019-04-22","2019-06-05","Приказ № 778/19 от 18.06.2019 (до 18.06.2021)","2019-07-01","Ордер № 314 от 08.07.2019 (до 31.12.2019)",null,null,0,0,62,0,0,100,"-","-",null,null,null,"19.07.2019 - КЛ"]
[null,null,null,"ОТП-18-00287 от 04.06.2018","ЕМР",null,null,"550 р.","30.01.2019 - согласования\n27.03.2019 - печати","-","2019-02-01","2019-04-02","2019-04-03","№ 436 от 11.04.2019 (до 11.04.2021)","2019-04-16","Ордер № 8/2019 от 14.05.2019 (до 31.12.2019)",null,null,{"$f":"22+30+31+24+6","v":113},0,0,0,0,15,"-","-"]
[null,null,null,"ОТП-17-00809 от 25.10.2017","ПКГО",null,null,1,"20.04.2019 - согласование завершено","13.03.2019 - получены ТУ от МКУ \"САД ПКГО\"","Нет информации","Нет информации","2019-04-26","№ 603/19 от 17.05.2019 (до 17.05.2021)","Нет информации","№ 178 от 03.06.2019 (до 01.02.2020)",null,null,0,0,100,550,1,150,"-","ГП-53 от 08.11.2018"]
[null,null,null,"ОТП-18-00316 от 04.06.2018","ПКГО",null,null,"550 р.","2018-11-14","-","2019-05-30","31.05.2019\n15.10.2018 - Поволоцкая и Павлова","31.05.2019\n17.10.2018 (Поволоцкая и Павлова, устный отказ - необходима исполнительная съемка существующих линий в п. Дальний)","Приказ № 730/19 от 06.06.19","2019-06-19","Ордер № 288 от 28.06.2019 (до 31.12.2019)",null,null,{"$f":"7+20+34+34","v":95},0,0,0,0,15,"-","-",null,null,null,null,null,"Включает трассы Поволоцкой (ОТП-17-00524) и Павловой (ОТП-18-00289)"]
[null,null,null,"ОТП-17-00524 от 22.08.2017","ПКГО",null,null,"550 р.","2018-07-19","-","26.09.2018, 09.10.2018 повторно",null,null,null,null,null,null,null,null,null,null,null,null,15,"-","-"]
[null,null,null,"ОТП-18-00289 от 29.05.2018","ПКГО",null,null,"550 р.",null,null,null,null,null,null,null,null,null,null,null,null,null,null,null,15,"-","-"]
[null,null,null,"ОТП-18-00282 от 28.05.2018","ЕМР",null,null,"550 р.","26.03.2019 - 29.05.2019 - согласования","-","-","-","2019-08-28","№ 1021 от 02.09.19 (до 02.09.2020)","2019-09-06","№ 16/2019 от 11.09.2019 (до 30.06.2020)",null,null,420,350,0,0,1,12,"-","ГП-52 от 07.11.2018"]
[null,null,null,"ОТП-17-00437 от 12.07.2017","ЕМР",null,null,"550 р.","есть",null,null,"есть",null,"есть",null,"№13 от 05.09.19 (до 31.07.21) + нужно заключить договор с ФКУ ДСД!",null,null,480,0,0,0,0,15,"-","ГП-52 от 07.11.2018",null,null,null,null,null,"нужно заключить договор с ФКУ ДСД!"]
[null,null,null,"ОТП-00721 от 24.12.2015","ПКГО",null,null,"550 р.","есть",null,null,"есть",null,"есть",null,"№417 от 15.09.19 (до 15.09.21)",null,null,35,200,0,0,1,15,"-","ГП-53 от 08.11.2018"]
[null,null,null,"ОТП-18-00313 от 30.05.2018","ЕМР",null,null,"550 р.","Нет информации","Нет информации","Нет информации","Нет информации","Нет информации","Нет информации","Нет информации","№ 19/19 от 25.09.2019 (до 31.08.2019)","Нет информации","Нет информации",187,0,0,0,0,15,"-","ГП-52 от 07.11.2018"]
[null,null,null,"ОТП-00765 от 28.12.2015","ЕГП",null,null,"550 р.","нет информации","Нет информации","Нет информации","Нет информации","Нет информации","№ 49 от 14.10.2019 (13.10.2021)","Нет информации","№ 04-07/108 от 16.10.2019 (до 20.10.2019)","Нет информации","Нет информации",50,0,0,0,0,15,"-","ГП-53 от 08.11.2018",null,null,null,null,null,"Счёт на оплату № 49 от 18.10.2019, \nакт выполненных работ № 49 от 18.10.2019"]
[null,null,null,"ОТП-18-00595 от 17.09.2018","ПКГО","Бетонный блок модуль  №5 в помещении торгового комплекса,  расположенного в 25 метрах относительно ориентира  жилого дома, почтовый адрес : Камчатский край, г. Петропавловск-Камчатский, ул.Ленинградская д.74",null,"550 р.","14.08.2019 - на штамп\n27.06.2019 - приступили к согласованию\n24.06.2019 - разработана трасса","07.08.2019 - получены ТУ от МКУ \"САД ПКГО\"\n26.07.2019 - повторно\n03.07.2019 - запрос ТУ в МКУ \"САД ПКГО\"","04.09.2019-топобюро","2019-09-15","2019-09-16","№ 1732/19 от 27.09.19г. (до 27.09.2021)","2019-10-04","№ 585 от 09.10.2019"," ",null,0,0,320,0,0,15,"-","-"]
[null,null,null,"ОТП-19-00118 от 08.04.2019","ЕМР","\"Здание по продаже автомобильных запчастей и сопутствующих товаров\", расположенный по адресу: Елизовский р-н, п. Нагорный",null,1,"17.09.19 согласовано. 17.07.2019 - начало согласования\n11.07.2019 - трасса разработана\n07.06.2019 - принято в работу","-","04.09.19 топобюро","16.09.19 топобюро","2019-09-25","№1110 от 27.09.19","2019-09-03","№16 от 14.10.2019",null,null,170,0,0,0,0,145,"-","-",null,null,null,null,null,"оригинал ордера забрать в администрации "]
[null,null,null,"ОТП-19-00135 от 14.05.2019","ЕГП","\"Жилой дом\", расположенный по адресу: г. Елизово, ул. Некрасова, дом 2",null,null,"05.09.2019 - трасса согласована",null,"05.09.19 направлено в топобюро на акт выбора","2019-09-06",null,"№ 48 от 03.10.2019 (до 02.10.2021)","2019-10-17","№ 04-07/111 от 17.10.2019 (до 20.10.2020)",null,null,20,0,0,0,0,15]
[null,null,null,"ОТП-16-00653 от 10.11.2016","ПКГО",null,null,0.5,"Нет информации","Нет информации","Нет информации","Нет информации","Нет информации","Нет информации","Нет информации","№ 460 от 30.09.19","Нет информации","Нет информации",0,0,50,550,1,30,"-","ГП-53 от 08.11.2018"]
[null,null,null,"ОТП-18-00283 от 17.05.2018","ПКГО",null,null,"550 р.","Нет информации","Нет информации","Нет информации","Нет информации","Нет информации","Нет информации","Нет информации","Ордер № 419 от 15.09.19 до 15.09.21","Нет информации","Нет информации",120,0,0,0,0,15,"-","ГП-52 от 07.11.2018"]
[null,null,null,"ОТП-16-00193 от 12.05.2016","ПКГО","Здание по ремонту электробытовых приборов\", расположенный по адресу: Камчатский край, г. Петропавловск-камчатский, р-н ул. Максутова",null,"550 р.","12.11.19-откорректирована трасса, истек  срок листа согласования, 10.07.2017","29.11.19-получены  ТУ Водоканал №301/12-01, 28.11.19-получены ТУ МКУ САД №4170/19 от 25.11.19г., 18.11.19-запрос тУ Водоканал, 15.11.2019 - запрос ТУ в МКУ САД, 19.06.2017 - запрос ТУ в МКУ \"УДХ ПКГО\"\n22.06.2017 - получены ТУ","16.12.2019, 01.08.2017","16.12.2019, 14.08.2017","21.01.2020г., 17.12.2019, 12.07.2017\n06.07.2018 - на продление","приказ от 03.02.2020 №92/20 Продлено до 09.08.2020\n№ 373/17 от 09.08.2017 (до 09.08.2018)","27.02.2020, 15.08.2018","Продлён до 01.06.2019\nПродлён до 09.08.2018\n№ 368 от 18.08.2017 (до 01.11.2017)",null,null,0,0,160,0,0,15,"-","-",null,null,null,null,null,"Необходимо продление ордера"]
[null,null,null,"ОТП-00430 от 17.08.2015","ПКГО","Здание магазина, расположенное по адресу: Камчатский край, г. Петропавловск-Камчатский, ул. Пограничная, д.5 ",null,"550 р.","11.11.19-откорректирована трасса, истек  срок листа согласования,  21.02.2018-28.02.2018","02.12.19-запрос ТУ МКУ САД, 29.11.19-получены  ТУ Водоканал №302/12-0118.11.19-запрос ТУ Водоканал","2018-03-01","12.03.2018 (06.12.2019 переделан)","2018-03-13","№ 205/18 от 02.04.2018 (продлено до 02.04.2020)","2018-04-12","Надо податься на ордер, старый ордер № 73 от 16.04.2018 (до 31.10.2018)",null,null,0,0,180,0,0,10,"-","-",null,null,null,null,null,"Оригинал ордера не вернулся из УАГЗО аПКГО.\nНеобходимо продление согласования (или новый лист согласования) и новый ордер (разр-е на разм-е продлено)"]
[null,null,null,"ОТП-16-00766 от 08.12.2016","ЕГП",null,null,"550 р.","17.09.2019 согласовано 21.08.2019 - новый лист согласвания\n03.10.2017","-","2017-09-20","2017-10-16","06.11.2019 повторное заявление30.05.2018","15.11.2019 № 60 09.07.2018 № 41 (до 08.07.2019)","22.11.2019 10.06.2019 - отказ в продлении\n06.06.2019 - на новый ордер\n26.07.2018","12.10.2018 № 04-07/133 до 31.12.2018\n21.08.2018 № 04-07/92 до 31.10.2018",null,null,0,0,120,0,0,5,"-","-",null,null,null,null,null,"20.01.2020  ждем продления договоров ОТП .                   С корниловой Готовится акт выбора (Новоженов) ,необходима повторная подача заявления на размещение ."]
[null,null,null,"ОТП-17-00014 от 19.01.2017","ЕГП",null,null,"550 р.",null,null,null,null,null,null,null,null,null,null,null,null,null,null,null,10,"-","-",null,null,null,null,null,"01.11.2019 Подготовлено заявление на размещение 20.10.2019 Готовится акт выбора (Новоженов) ,необходима повторная подача заявления на размещение ."]
[null,null,null,"ОТП-18-00068 от 27.02.2018","ЕМР","\"Индивидульный жилой дом\", расположенный по адресу: п.Светлый, мкр. Молодежный, уч. 398",null,1,"30.01.2019 - согласования,\n18.03.2019 - печати","-","21.03.2019\n13.05.2019 - повторно","2019-06-11","2019-07-01","№ 776 от 08.07.2019 (до 08.07.2021)","2019-08-09","№ 11/19 от 05.08.2019 (до 12.08.2020)",null,null,{"$f":"26+26+26+26+26+26","v":156},0,0,0,0,10,"-","-",null,null,null,null,null,"В месте прохождения трассы по факту установлены столбы\nВо вложении 2 варианта актов - со столбами на топооснове и без "]
[null,null,null,"ОТП-18-000119 от 26.03.2018","ЕМР","\"Индивидульный жилой дом\", расположенный по адресу: Камчатский край, п.Светлый, мкр.Молодежный, 403",null,1,null,null,null,null,null,null,null,null,null,null,null,null,null,null,null,15,"-"]
[null,null,null,"ОТП-18-000129 от 21.03.2018","ЕМР","\"Индивидульное жилищное строительство\", расположенный по адресу: п. Светлый, м/р Молодежный, уч. 77",null,1,"30.01.2019 - согласования,\n18.03.2019 - печати","-","21.03.2019\n13.05.2019 - повторно","2019-06-07","2019-07-01","№ 775 от 08.07.2019 (до 08.07.2021)","2019-08-09","№ 11/19 от 05.08.2019 (до 12.08.2020)",null,null,{"$f":"26+26+26+14","v":92},0,0,0,0,30,"-","-"]
[null,null,null,"ОТП-17-01043 от 15.01.2018","ЕМР","\"Индивидульное жилищное строительство\", расположенный по адресу: Елизовский м.р-н, Пионерское с.п., п. Светлый, мкр. Молодежный, ул. Петропавловская, д.6",null,1,null,null,null,null,null,null,null,null,null,null,null,null,null,null,null,30,"-"]
[null,null,null,"ОТП-19-00145 от 17.04.2019","ЕМР","\"Жилой дом\", расположенный по адресу: Камчатский край, п. Пионерский, ул. Лесная, дом 110",null,null,"02.09.2019-трасса согласована, 17.07.2019 - начало согласования\n15.07.2019 - трасса разработана","-","2019-09-02","2019-09-27","2019-10-10","№ 1211 от 16.10.2019 (до 16.10.2021)","от 30.10.2019 №2519","от 05.11.2019 №23/19",null,null,19,0,0,0,0,15,null,null,null,null,null,null,null,"       Линия от Марьясова А.П. (ОТП-19-00132 от 17.04.2019)"]
[null,null,null,"ОТП-18-00658 от 22.10.2018 ","ПКГО","\"Здание гаража\", расположенного по адресу:   Камчатский край, г. Петропавловск-Камчатский, в районе ш. Восточное.",null,null,"05.09.2019 - передано на штамп в УАГЗО ПКГО, 03.09.2019-разработана трасса, 02.09.19 принято в работу","ТУ № 3446/19/08 от 27.09.2019г., ТУ-МКУ САД-запрос отправлен 19.09.2019",null,"2019-10-14","2019-10-17","Приказ №1931/19 от 30.10.19","2019-11-11","№658 от 14.11.19г","-","-",0,0,250,0,0,50]
[null,null,null,"ОТП-16-00824 от 16.12.2016","ПКГО",null,null,"550 р.","17.10.2019 - согласовано","Нет информации","Нет информации","Нет информации","2019-10-17","№ 1929/19 от 30.10.2019 (до 30.10.2021)","Нет информации","№ 654 от 11.11.2019 (до 21.10.2019)","Нет информации","Нет информации",16,0,0,0,0,15,"-","ГП-50 от 07.11.2018"]
[null,null,null,"ОТП-17-00327 от 30.05.2017","ЕГП",null,null,"550 р.","23.09.2019 - согласовано ИП Белоусовым Г.Г.","Нет информации","Нет информации","Нет информации","Нет информации","№ 55 от 28.10.2019 (до 27.10.2021)","Нет информации","Ордер готов - № 04-07/116 от 31.10.2019 (до 04.11.2020)","Нет информации","Нет информации",58,0,0,0,0,15,"-","ГП-50 от 07.11.2018"]
[null,null,null,"ОТП-17-00460 от 13.07.2017","ЕГП",null,null,"550 р.","23.09.2019 - согласовано ИП Белоусовым Г.Г.","Нет информации","Нет информации","Нет информации","Нет информации","№ 54 от 28.10.2019 (до 27.09.2021)","2019-10-30","Ордер готов - № 04-07/119 от 31.10.2019 (до 04.11.2020)","Нет информации","Нет информации",15,0,0,0,0,15,"-","ГП-50 от 07.11.2018"]
[null,null,null,"ОТП-17-00466 от 19.07.2017","ЕГП",null,null,"550 р.","23.09.2019 - согласовано ИП Белоусовым Г.Г.","Нет информации","Нет информации","Нет информации","Нет информации","№ 57 от 28.10.2019 (до 27.10.2021)","2019-10-30","№ 04-07/117 от 31.10.2019 (до 04.11.2020)","Нет информации","Нет информации",140,0,0,0,0,15,"-","ГП-50 от 07.11.2018"]
[null,null,null,"ОТП-18-00347 от 09.06.2018","ПКГО",null,null,"550 р.","12.03.2019 - согласовано ИП Белоусовым Г.Г","Нет информации","Нет информации","Нет информации","Нет информации","№ 1849/19 от 07.10.2019 (до07.10.2021)","Нет информации","№ 601 от 21.10.2019 (до 21.03.2020)","Нет информации","Нет информации",70,0,0,0,0,15,"-","ГП-51 от 07.11.2018"]
[null,null,null,"ОТП-18-00320 от 13.06.2018","ЕМР","Жилой дом, расположенный по адресу: Камчатский край, Елизовский район, пос. Раздольный, ул. Солнечная, 71",null,"550 р.","26.06.2019 - нужны печати\n28.11.2018 - по новому бланку","-","2019-06-06","2019-06-11","23.10.2019г.","Постановление №1278 от 30.10.19 ","2019-11-07","№ 20/2019 от 02.12.2019 (до 30.10.2021)","-","-",78,0,0,0,0,12,"-","-"]
[null,null,null,"ОТП-17-00972 от 28.12.2017","ЕМР"," \"Здание котельной\", расположенного по адресу: Камчатский край, Елизовский район, пос. Раздольный, ул. Зеленая",null,1,"10.05.2018 - недействителен,\n25.03.2019 - по новому бланку, \n12.04.19 - согласован на 80%,\n25.04.2019 - согласовано на 100%","Необходимо согласование с МЧС на размещение ЛЭП","13.05.2019 - повторно\n24.04.2019","2019-06-12","повторно 03.10.19 26.06.2019 - получены устные разъяснения, заявление отозвано.\n19.06.19 повторно\n10.05.2018\nОтказано","№ 1208 от 15.10.2019 (15.10.2021)","№1862 от 06.11.2019","№ 19/2019 от 02.12.2019 (до 15.10.2021)\n25.05.2018 - отказ от аРСП",null,null,270,0,0,0,0,50,"-","-"]
[null,null,null,"ОТП-19-00463 от 08.08.2019","ЕМР","\"Индивидуальное жилищное строительство\", расположенный по адресу: местоположение установлено относительно ориенитра, расположенного за пределами участка. Ориентир жилой дом. Участок находится примерно в 2150 м, по направлению на северо-восток от ориентира. Почтовый адрес ориентира: Камчатский край, р-н Елизовский, п. Светлый, ул. Кооперативная, д. 18",null,"550 р.","согласована -17.09.2019 26.08.2019 - принято в работу","нет","в топобюро 18.09.19","2019-09-27","03.10.2019 17.10.19 отказ - наложение площадей актов выборов 01.11.19 подано повторно","№1331 от 13.11.2019",null,"Разрешение №27/19 от 04.12.19",null,null,69,0,0,0,0,15,null,null,null,null,null,null,null,"ордер 1 на двоих с кишкуновой"]
[null,null,null,"ОТП-19-00452 от 26.07.2019","ЕМР","\"Жилой дом\", расположенный по адресу: Камчатский край, Елизовский муниципальный район, Пионерское сельское поселение, поселок Светлый, мкр Молодёжный, ул. Курильская, з/у 9",null,"550 р.","12.09.19 согласовано 26.08.2019 - принято в работу","нет","12.09.2019 топобюро","27.09.20019","03.10.2019 17.10.19 отказ - наложение площадей актов выборов 01.11.19 подано повторно","№1330 от 13.11.2019","2736/з от 28.11.19","Разрешение №27/19 от 04.12.20",null,null,185,0,0,0,0,15]
[null,null,null,"ОТП-18-00346 от 14.06.2018","ЕГП",null,null,"550 р.","19.04.2019 - согласовано","Нет информации","Нет информации","Нет информации","Нет информации","№ 200 от 08.11.2019 (до 08.11.2021)","Нет информации","№ ru51401101-2019/005 от 21.11.2019 (до 20.10.2021) ","Нет информации","Нет информации",65,0,0,0,0,12,"-","ГП-51 от 07.11.2018"]
[null,null,null,"ОТП-19-00472 от16.08.2019","ПКГО","\"Жилой дом\", расположенного по адресу:установленно относительно ориентира, раположенного в границах участка. Ориентир жилой дом. Почтовый адрес ориентира: Камчатский край, г. Петропавловск-Камчатский, ул. Мишенная, д.37 .",null,null,"согласовано 07.11.19 принято в работу от 03.09.19. Трасса разработана.",null,"2019-11-07","2019-11-07","2019-11-14","2038/19 от 21.11.19","2019-11-28","2019-12-12",null,null,25,0,0,0,0,100,null,null,null,null,null,null,null,"Уточнить подключен ли этот участок на данный момент, нет не подключен, согласовываем трассу. Участок не подключен. Согласовываем. На подписи в архитектуре"]
[null,null,null,"ОТП-19-00158 от 05.04.2019","ПКГО","\"ИЖД\"",null,null,"25.10-трасса разработана, 25.10.2019 внесено в таблицу","ТУ МКУ САД № 3784/19 от 29.10.2019г",null,"31.10.2019 ОРДТП В.Н.","2019-11-15","от 21.11.2019 №2036/19","2019-11-29","№698 от 09.12.2019","-","-",null,null,null,null,null,45,null,null,null,null,null,null,null,"необходимо заключение сервитута"]
[null,null,null,"ОТП-17-00120 от 11.05.2017","ЕГП",null,null,0.5,"Нет информации","Нет информации","Нет информации","Нет информации","Нет информации","Нет информации","Нет информации","№ 04-07/112 от 22.10.2019","Нет информации","Нет информации",315,0,0,0,0,null,"-","ГП-53 от 08.11.2018"]
[null,null,null,"ОТП-18-00377 от 02.07.2018","ЕМР",null,null,"550 р.","2019-10-30","Нет информации","Нет информации","Нет информации","Нет информации","№1363 от 20.11.19","Нет информации","№ 26/19 от 04.12.2019\n(до 04.05.2020)","Нет информации","Нет информации",40,0,0,0,0,null,"-","ГП-51 от 07.11.2018"]
[null,null,null,"ОТП-17-00958 от 18.12.2017","ЕМР","\"Индивидуальное жилое строительство\", расположенный пл адресу: Елизовский район, в 1830м от п. Светлый, ул. Кооперативная, д.18",null,1,"17.09.2019 - согласовано27.06.2019 - начало согласования\n26.06.2019 - трасса разработана. Согласовано","-","2019-09-02","2019-09-24","20.11.19 подано повторно 30.10.2019","постановление №1428 от 28.11.19",null,"№ 30/19 от 17.12.2019 ",null,null,68,0,0,0,0,15,"-","-",null,null,null,null,null,"24.10.19 заявление на размещение подготовлено передаём алексею. Переподаёмся на размещение из-за наложения трассы."]
[null,null,null,"ОТП-17-01008 от 19.12.2017",null,"\"Жилой дом\", расположенный по адресу: п. Светлый, мкр. Молодежный, ул. Петропавловская, з/у 15",null,1,null,null,null,null,null,null,null,null,null,null,null,null,null,null,null,15,"-","-"]
[null,null,null,"ОТП-19-00454 от 02.08.2019","ЕМР","\"Индивидуальное жилищное строительство\", расположенный по адресу: Камчатский край, р-н Елизовский муниципальный район, п. Двуречье, ул. Восточная",null,"550 р.","20.11.2019-согласована        22-10.2019 -трасса разработана 26.08.2019 - принято в работу","нет","01.11.2019 Стукалкин","2019-11-25","2019-11-29","№ 1476 от 09.12.2019 (до 09.12.2021)","вх. № 2559 от 19.12.2019","№26 от 30.12.2019",null,null,13,null,null,null,null,"15 кВт"]
[null,null,null,"ОТП-19-00226 от 06.06.2019","ЕМР","\"Производственно-техническая база\" расположенная по адресу: Камчатский край, р-он Елизовский, п. Крутобереговый, ул. Елизовское шоссе",null,null,"08.11.2019 - разработана трасса",null,null,"Новоженов"," не требуется"," не требуется","2019-12-01","№29/19 от 09.12.2019 ",null,null,0,0,150,0,0,150,null,null,null,null,null,null,null,"заключен сервитут, трасса проходит по зу ООО Хорс"]
[null,null,null,"ОТП-17-00542 от 29.09.2017","ЕМР",null,null,0.5,"Нет информации","Нет информации","Нет информации","Нет информации","Нет информации","Нет информации","Нет информации","Ордер № 597 от 18.10.2019","Нет информации","Нет информации",90,0,0,0,0,15,"-","ГП-52 от 07.11.2018"]
[null,null,null,"ОТП-17-00909 от 21.11.2017","ПКГО","Ленинградская 122 а",null,1,"Нет информации","Нет информации","Нет информации","Нет информации","Нет информации","Нет информации","Нет информации","Ордер № 597 от 18.10.2019","Нет информации","Нет информации",140,0,"127*2",0,0,150,"-","ГП-52 от 07.11.2018",null,null,null,null,null,"05.03.2020 - трасса подготовлена 03.03.2020 Необходимо получение нового ордера "]
[null,null,null,"ОТП-17-00815 от 02.11.2017","ПКГО",null,null,1,"2019-01-24","ТУ МКУ САД №2950/19/08 от 19.08.19","Нет информации","Нет информации","Нет информации","Нет информации","Нет информации","Ордер № 656 от 11.11.2019","Нет информации","Нет информации",0,0,150,150,1,100,"-","ГП-53 от 08.11.2018",null,null,null,null,null,"ООО \"Теркамсервис\" дали разрешиловку на воздушку и ТП от ВЛ-10 кВ, однако по этому объекту была СЗ об изменении точки присоединения"]
[null,null,null,"ОТП-19-00560 от 05.11.2019","ПКГО","Камчатский край, г. Петропавловск-Камчатский, Ул.Заречная",null,null,"14.11.19 пройдена  06.11.2019 составлен план трассы, Спк-14.11.19",null,null,null," 17.12.19 -подано в 1 окно","2020-01-17","21.01.2020 заявление на подписи у директора","Ордер № 22 от 23.01.2020 (до 20.02.2021)",null,null,35,0,0,0,0,15]
[null,null,null,"ОТП-17-00429 от 05.07.2017","ПКГО","Камчатский край, г. Петропавловск-Камчатский, ул. Котовского ",null,null,"Спк-22.10.19",null,null,"получен Авт-30.10.19","10.12.19 у директора на подписи 17.12.19 -подано в 1 окно","17.01.2020 получено","21.01.2020 - на подписи у директора","Ордер № 23 от 23.01.2020 (до 20.02.2021)",null,null,50,0,0,0,0,15]
[null,null,null,"ОТП-18-00798 от 28.12.2018","ЕГП",null,null,"550 р.","31.07.2019 - согласовано\n10.07.2019 - приступили к согласованию\n09.07.2019 - приступили к разработке","-","2019-08-27","по Вялому, акт выбора есть"," Направлено в росимущество 21.11.19. Отказ 30.10.19, направляемся повторно на росимущество по Вялому заявл. Направлено 03.09.19","получено разрешение №50 от 14.10.19 до ТП-","03.12.19 подготовили пакет документов на ордер до тп","На 22.01.2019 - требуется разрешение на размещение от Росимущества.\n№ 04-07/122 от 06.12.2019 - ордер до ТП","-","-",115,0,0,0,0,15,"-","-",null,null,null,null,null,"Необходим перенос ранее установленных опор - они попадают на чужой земельный участок."]
[null,null,null,"ОТП-18-00821 от 10.01.2019","ЕГП",null,null,"550 р.",null,null,null,null,null,null,null,null,null,null,null,null,null,null,null,15,"-"]
[null,null,null,"ОТП-18-00795 от 10.12.2018","ЕГП",null,null,"550 р.",null,null,null,null,null,null,null,null,null,null,null,null,null,null,null,15,"-"]
[null,null,null,"ОТП-18-00800 от 28.12.2018","ЕГП",null,null,"550 р.",null,null,null,null,null,null,null,null,null,null,null,null,null,null,null,15,"-"]
[null,null,null,"ОТП-18-00827 от 21.01.2019","ЕГП",null,null,"550 р.",null,null,null,null,null,null,null,null,null,null,null,null,null,null,null,15,"-"]
[null,null,null,"ОТП-18-00828 от 21.01.2019","ЕГП",null,null,"550 р.",null,null,null,null,null,null,null,null,null,null,null,null,null,null,null,15,"-"]
[null,null,null,"ОТП-18-00826 от 21.01.2019","ЕГП",null,null,"550 р.",null,null,null,null,null,null,null,null,null,null,null,null,null,null,null,15,"-"]
[null,null,null,"ОТП-19-00078 от 27.02.2019","ЕГП",null,null,"550 р.",null,null,null,null,null,null,null,null,null,null,null,null,null,null,null,15,"-"]
[null,null,null,"ОТП-19-00115 от 14.03.2019","ЕГП","\"Жилой дом\", расположенный по адресу: г. Елизово, уч. 5",null,"550 р.",null,null,null,null,null,null,null,null,null,null,50,0,0,0,0,15,"-","-",null,null,null,null,null,"по вялому направили заявл на разм в арх елизово, отказ так как участок находится в ведении РФ получено разрешение до тп "]
[null,null,null,"ОТП-18-00352 от 14.06.2018","ЕМР",null,null,"550 р.","16.04.2019 - согласовано","Нет информации","Нет информации","Нет информации","Нет информации","№ 1362 от 20.11.2019 (до 20.11.2021)","Нет информации","№ 21/2019 от 12.12.2019 (до 21.11.2021)","Нет информации","Нет информации",70,0,0,0,0,12,"-","ГП-51 от 07.11.2018"]
[null,null,null,"ОТП-19-00238 от  23.05.19 ","ПКГО","\"Здание картофелехранилища №3\", ул. Абеля дом 6",null,null,"03.12.12 трасса согласована 28.10.19 внесено в табл. 19.11.19 трасса разработана",null,"03.12.19 ОРДТП В.И.","10.12.2019 (ОРДТП В.И.)","2019-12-10","№2335/19 от 24.12.2019 ","2020-01-14","Ордер №12 от 22.01.2020 до 20.01.21",null,null,0,0,154,0,0,150]
[null,null,null,"ОТП-18-00214 от 26.04.2018","ЕГП",null,null,"550 р.","28.10.2019 - актуальный вариант\n31.05.2019\n30.05.2019 - начало согласований.","-","2019-06-03","2019-06-25","19.12.2019 - повторно\nОтказ № 2166 от 16.08.2019\n01.08.2019 (ЭЦП)","№ 70 от 30.12.2019 (до 29.12.2021)","2020-01-29","от 31.01.2020 №04-07/04",null,null,20,40,0,0,1,15,"-","-",null,null,null,null,null,"Причина отказа - нерациональное использование земель, администрация ЕГП настаивает на использовании участка заявителя для размещения КЛ и ТП.\nПо земельным участкам:\n41:05:0101008:3269 - муниципальная собственность\n41:05:0101008:2902 - временный\n41:05:0101008:3402 - неразграничка  "]
[null,null,null,"ОТП-19-00109 от 12.03.2019","ЕМР","Жилой дом, расположенного по адресу:местоположение установлено относительно ориентира, расположенного за пределами участка. Почтовый адрес ориентира: Росийская федерация, Камчатский край, Елизовский м.р-он, Николаевское с.п.,с.Николаевское, ул.Урожайная, з/у 7",null,"550 р.","15.11.19-трасса разработана, 20.05.2019 - принято в разработку","-","Не требуется","Не требуется","Не требуется","Не требуется","2020-01-17","разрешение 20-01 от 28.01.2020",null,null,135,0,0,0,0,15,"-","-"]
[null,null,null,"ОТП-19-00371 от 02.08.2019","ПКГО","\"Индивидуальный жилой дом\", расположенный по адресу: Камчатский край, г. Петропавловск-Камчатский, ул. Дальняя",null,null,"21.10.2019   15.10.2019 - трасса разработана 21.08.2019 - принято в работу",null,"новоженов","2019-10-30","2019-12-01","№2293/19 от 16.12.2019","2020-01-20","от 23.01.2020 №20",null,null,22,0,0,0,0,14]
[null,null,null,"ОТП-18-00568 от 11.09.2018","ПКГО","\"Личное подсобное хозяйство\", расположенный по адресу: край Камчатский, г. Петропавловск-Камчатский",null,"550 р.","14.10.2019- трасса разработана 29.08.2019 - принято в разработку",null,"2019-10-20","2019-11-15","2019-12-13","№2340/19 от 25.12.2019","2020-01-20","от 23.01.2020 №19",null,null,40,0,0,0,0,10]
[null,null,null,"ОТП-19-00535 от 30.09.2019","ПКГО","Камчатский край, г. Петропавловск-Камчатский",null,null,"15.11.2019- трасса разработана 10.10.19 внесено в табл.","ТУ САД от 25.11.2019","На К.С.","2019-12-13","10.01.2020 повторно 16.12.2019-отказ ","от 21.01.2020 №27/20","от 28.01.2020 №12-08-00/649/20","от 05.02.2020 №34",null,null,200,0,0,0,0,25]
[null,null,null,"ОТП-19-00245 от 27.05.19","ПКГО","\"Личное подсобное хозяйство\" п. Дальний",null,null,"15.11.2019- трасса разработана 13.11.19 внесено в табл.",null," На К.С.","2019-12-01","2019-12-13","№2341/19 от 25.12.2019","2020-01-20","от 23.01.2020 №21",null,null,145,0,0,0,0,6,null,null,null,null,null,null,null,"Общая трасса с Вовк Л.И., ОТП-18-00568 от 11.09.2018"]
[null,null,null,"ОТП-18-00513","ЕМР","Камчатский край, Елизовский р-н, г.Елизово, п.Пионерский",null,null,"2.12.19 ПТ СПК от 15,01,2020",null,"2020-01-17","2020-01-17","29.01.2020-подано 24.01.2020 ","№164 от 03.02.2020","№415/з от 19.02.2020","№04/20 от 25.02.2020",null,null,28,0,0,0,0,15]
[null,null,null,"ОТП-19-00407 от 12.07.19","ПКГО","Здание \"Художественная школа\", расположенная по адресу: Камчатский край, г. Петропавловск-Камчатский, ул. Зеркальная",null,null,"10.12.19-трасса разработана, 09.12.19 внесено в таблицу ","17.01.20-получены ТУ №4645/19 от 25.12.2019г., 24.12.19г.-запрос ТУ МКУ САД",null,"09.01.2020 ОРДТП","2020-01-31","№158/20 от 13.02.2020","2020-02-18","№ 54 от 28.02.20",null,null,0,0,120,0,0,30]
[null,null,null,"ОТП-00487 от 10.09.2015","ПКГО",null,null,"550 р.","31.01.2020 - согласовано","29.01.2020 - получены ТУ от МКУ \"САД\" аПКГО","Нет информации","Нет информации","2020-02-20","№ 281/20 от 06.03.2020 (до 06.03.2020)","Нет информации","Ордер № 81 от 17.03.2020 (до 31.10.2020)","Нет информации","Нет информации",120,0,0,0,0,10,"-","ГП-52 от 07.11.2018"]
[null,null,null,"ОТП-18-00378 от 02.07.2018","ЕМР",null,null,"550 р.","08.10.2018 - недействителен, \n28.11.2018 - по новому бланку, \n12.04.2019 - согласован, осталось проставить 2 печати\n25.04.2019 - согласован на 100%    ","-","05.12.19 передано (белоусову для исправления, акт был с ошибками в каталоге координат) 20.05.2019  с отказом аЕМР повторно,\n24.04.2019 с отказом аЕМР повторно,\n15.10.2018 с отказом аЕМР,\n11.10.2018","24.05.2019\n17.10.2018","20.11.19 подано заного 14.11.2019- отзыв 3010.19 подались повторно 25.10.19 подаёмся повторно пока подземка не истекла 29.11.2018 - потворно,\n18.10.2018","№ 1481 от 09.12.2019 (до 09.12.2021)\nОТКАЗ от 23.10.2018;\nОТКАЗ от 11.12.2018","2020-12-30","2020-03-13",null,null,{"$f":"45+30+30+24","v":129},0,0,0,0,15,"-","-",null,null,null,null,null,"в администрацию новолесновского сп направлено письмо с просьбой согласовать прохождение трассы по :97 участку. Согласие дали, подаёмся повторно. Лист согласования пересогласовываем, истекает срок годности. И подаёмся на размещение, может успеем. Переподаёмся на размещение."]
[null,null,null,"ОТП-19-00512 от 18.09.2019","ЕМР","\"Дачный дом\"",null,null,"23.09.19 внесено в табл.",null,null,null,null,"Получен сервитут","2020-01-20","получено",null,null,null,null,null,null,null,150,null,null,null,null,null,null,null,"15.01.2020 подано заявление в роимущество на вырубку и зем. Работы. Заключен сервитут. Разработан и подан в росимущество проект рекультивации"]
[null,null,null,"ОТП-18-00830 от 23.01.2019","ЕГП","\"Нежилое помщение\", расположенный по адресу: Камчатский край, г. Елизово, ул. Гаражная, д. 1",null,"550 р.","24.04.2019 - согласование завершено\n08.04.2019 - начало согласования","15.08.2019 - письмо об изменении сроков\n12.08.2019 - направлен запрос Рыбвод\n09.08.2019 - получена оценка вреда от КамчатНИРО\n19.07.2019 - направлено письмо в КамчатНИРО\nНеобходимо согласование с Дальрыбводом","25.06.2019 - на оставшуюся часть  трассы\n13.05.2019 - повторно\n24.04.2019","12.07.2019 - оставшаяся часть трассы\n05.06.2019 - часть трассы","От 06.08.2019 № 2955\n26.06.2019","№ 37 от 19.08.2019 (до 18.08.2021) - нижняя часть трассы\n№ 31 от 08.07.2019 (до 07.07.2021) - верхняя часть трассы","11.07.2019 - верхняя часть, направлено и зарегистрировано под номером 1646 от 03.09.2019","-",null,null,92,0,0,0,0,50,"-","-",null,null,null,null,null,"ВНИРО оплаченно 30.08.2019"]
[null,null,null,"ОТП-18-00047 от 19.02.2018","ЕМР",null,null,1,"14.08.2019 - получены все согласования и собраны печати\n13.05.2019 - последний лист согласования использован для получения разрешения на размещение для заявителей - Шиллер А.А., Мамонтова Н.С., Саргисян А.А., Бунчук З.С. и Т.Л., Помыканов В.Ю.\n22.03.2019 - печати\n29.11.2018 - согласования\n13.08.2018 - старый образец\n16.05.2018 - обвинение в подлоге","-","22.03.2019 - Г.Г. Белоусову\n18.06.2018 - Р.А. Долгову","27.05.2019 - от Г.Г. Белоусова\n24.07.2018 - от Р.А. Долгова","19.08.2019\n19.08.2019 - отозвано (ЭЦП)\n15.08.2019 - по электронной почте\n20.07.2018 - отозвано,\n25.10.2018 - повторно,\n29.11.2018 - повторно,\n31.01.2019 - повторно","№ 1068 от 18.09.2019 (до 18.09.2021) - Тюмин и Баязитова.\n№ 1003 от 27.08.19 - кроме Тюмина и Баязитовой.\nТюмин, баязитова направили повторно з-е на размещение 16.09.19 №1068","от 03.09.19 от 24.09.19 для тюмина баязитовой","ордер 09.09.19 №14-19",null,null,1274,0,0,1450,1,15,"-","-"]
[null,null,null,"ОТП-18-00134 от 21.03.2018","ЕМР",null,null,1,null,null,null,null,null,null,null,null,null,null,null,null,null,null,null,15,"-"]
[null,null,null,"ОТП-17-01053 от 13.02.2018","ЕМР",null,null,1,null,null,null,null,null,null,null,null,null,null,null,null,null,null,null,15,"-"]
[null,null,null,"ОТП-17-00837 от 01.11.2017","ЕМР",null,null,1,null,null,null,null,null,null,null,null,null,null,null,null,null,null,null,15,"-"]
[null,null,null,"ОТП-17-00807 от 10.10.2017","ЕМР",null,null,0.5,null,null,null,null,null,null,null,null,null,null,null,null,null,null,null,15,"-"]
[null,null,null,"ОТП-17-00898 от 22.11.2017","ЕМР",null,null,1,null,null,null,null,null,null,null,null,null,null,null,null,null,null,null,15,"-"]
[null,null,null,"ОТП-19-00134 от 01.04.2019","ЕМР",null,null,null,"29.10.19 согласовано 29.07.2019 - трасса разработана на согласовании","нет","ОРДТП (ильич)","01.11.2019 корректировка 14.11.19. Вар.2  19.11.19","подано","28.11.19 от №1426","2019-12-06",null,null,null,577,0,0,0,0,15,null,null,null,null,null,null,null,"Корректировка акта выбора. Разрешение на разм выдали но надо досогласовать 2 печати (упущение)"]
[null,null,null,"ОТП-19-00467 от 12.06.2019","ЕМР","\"Телекоммуникационный узел доступа\"",null,null,"02.12.19-трасса разработана, 23.09.19 внесено в табл.","-","-","-","-","-","2020-01-14",null,null,null,133,0,0,0,0,5]
[null,null,null,"ОТП-19-00201 от 28.05.2019","ЕГП","\"Хозяйственные постройки\", расположенные по адресу: Елизовский район",null,1,"19.11.2019 Согласовано 25.10.19-трасса разработана, 25.09.19 внесено в табл.","20.12.19-Проект рекультивации на согласовании в росимуществе",null,"разработан 28.11.2019 (папка 09 Сентябрь 2019) ОРДТП",null,"Заключено соглашение от 26.02.2020 №03","подано в росимущество",null,null,null,50,690,0,0,1,30]
[null,null,null,"ОТП-19-00797 от 26.12.2019","ЕГП","Индивидуальное жилищное строительство Камчатский край, Елизовский муниципальный район, Елизовское городское поселение, г.Елизово",null,null,"11.03.2020 - согласовано\n17.01.2020 ПТ-20.01.2020","-","2020-02-03","2020-03-11","2020-03-12","№ 12 от 23.03.20 (до 22.03.2021)","2020-04-03",null,null,null,1146,280,0,0,1,15]
[null,null,null,"ОТП-19-00198 от 25.04.2019","ЕГП","Индивидуальное жилищное строительство Камчатский край, Елизовский муниципальный район, г.Елизово",null,null,"17.01.2020 ПТ-20.01.2020",null,null,null,null,null,null,null,null,null,null,null,null,null,null,15]
[null,null,null,"ОТП-19-00192 от 25.04.2019","ЕГП","Индивидуальное жилищное строительство Камчатский край, Елизовский муниципальный район, г.Елизово",null,null,"17.01.2020 ПТ-20.01.2020",null,null,null,null,null,null,null,null,null,null,null,null,null,null,15]
[null,null,null,"ОТП-19-00188 от 25.04.2019","ЕГП","Индивидуальное жилищное строительство Камчатский край, Елизовский муниципальный район, г.Елизово",null,null,"17.01.2020 ПТ-20.01.2020",null,null,null,null,null,null,null,null,null,null,null,null,null,null,15]
[null,null,null,"ОТП-19-00210 от 30.04.2019","ЕГП","Индивидуальное жилищное строительство Камчатский край, Елизовский муниципальный район, г.Елизово",null,null,"17.01.2020 ПТ-20.01.2020",null,null,null,null,null,null,null,null,null,null,null,null,null,null,15]
[null,null,null,"ОТП-19-00219 от 08.05.2019","ЕГП","Индивидуальная жилая застройка Камчатский край, Елизовский муниципальный район, г.Елизово",null,null,"17.01.2020 ПТ-20.01.2020",null,null,null,null,null,null,null,null,null,null,null,null,null,null,15]
[null,null,null,"ОТП-19-00220 от 08.05.2019","ЕГП","Индивидуальное жилищное строительство Камчатский край, Елизовский муниципальный район, г.Елизово",null,null,"17.01.2020 ПТ-20.01.2020",null,null,null,null,null,null,null,null,null,null,null,null,null,null,15]
[null,null,null,"ОТП-19-00190 от 15.05.2019","ЕГП","Индивидуальное жилищное строительство Камчатский край, Елизовский муниципальный район, г.Елизово",null,null,"17.01.2020 ПТ-20.01.2020",null,null,null,null,null,null,null,null,null,null,null,null,null,null,15]
[null,null,null,"ОТП-19-00228 от 14.05.2019","ЕГП","Индивидуальное жилищное строительство Камчатский край, Елизовский муниципальный район, г.Елизово",null,null,"17.01.2020 ПТ-20.01.2020",null,null,null,null,null,null,null,null,null,null,null,null,null,null,15]
[null,null,null,"ОТП-19-00227 от 14.05.2019","ЕГП","Индивидуальное жилищное строительство Камчатский край, Елизовский муниципальный район, г.Елизово",null,null,"17.01.2020 ПТ-20.01.2020",null,null,null,null,null,null,null,null,null,null,null,null,null,null,15]
[null,null,null,"ОТП-19-00195 от 13.05.2019","ЕГП","Индивидуальное жилищное строительство Камчатский край, Елизовский муниципальный район, г.Елизово",null,null,"17.01.2020 ПТ-20.01.2020",null,null,null,null,null,null,null,null,null,null,null,null,null,null,15]
[null,null,null,"ОТП-19-00191 от 17.05.2019","ЕГП","Индивидуальное жилищное строительство Камчатский край, Елизовский муниципальный район, г.Елизово",null,null,"17.01.2020 ПТ-20.01.2020",null,null,null,null,null,null,null,null,null,null,null,null,null,null,15]
[null,null,null,"ОТП-19-00189 от 16.05.2019","ЕГП","Индивидуальное жилищное строительство Камчатский край, Елизовский муниципальный район, г.Елизово",null,null,"17.01.2020 ПТ-20.01.2020",null,null,null,null,null,null,null,null,null,null,null,null,null,null,15]
[null,null,null,"ОТП-19-00246 от 04.06.2019","ЕГП","Индивидуальное жилищное строительство Камчатский край, Елизовский муниципальный район, г.Елизово",null,null,"17.01.2020 ПТ-20.01.2020",null,null,null,null,null,null,null,null,null,null,null,null,null,null,15]
[null,null,null,"ОТП-19-00294 от 17.06.2019","ЕГП","Индивидуальное жилищное строительство Камчатский край, Елизовский муниципальный район, г.Елизово",null,null,"17.01.2020 ПТ-20.01.2020",null,null,null,null,null,null,null,null,null,null,null,null,null,null,15]
[null,null,null,"ОТП-19-00265 от 27.06.2019","ЕГП","Индивидуальное жилищное строительство Камчатский край, Елизовский муниципальный район, г.Елизово",null,null,"17.01.2020 ПТ-20.01.2020",null,null,null,null,null,null,null,null,null,null,null,null,null,null,15]
[null,null,null,"ОТП-19-00451 от 19.07.2019","ЕГП","Индивидуальное жилищное строительство Камчатский край, Елизовский муниципальный район, г.Елизово",null,null,"17.01.2020 ПТ-20.01.2020",null,null,null,null,null,null,null,null,null,null,null,null,null,null,15]
[null,null,null,"ОТП-19-00269 от 31.05.2019","ЕГП","Индивидуальное жилищное строительство Камчатский край, Елизовский муниципальный район, г.Елизово",null,null,"17.01.2020 ПТ-20.01.2020",null,null,null,null,null,null,null,null,null,null,null,null,null,null,15]
[null,null,null,"ОТП-19-00368 от 22.07.2019","ЕГП","Индивидуальное жилищное строительство Камчатский край, Елизовский муниципальный район, г.Елизово",null,null,"17.01.2020 ПТ-20.01.2020",null,null,null,null,null,null,null,null,null,null,null,null,null,null,15]
[null,null,null,"ОТП-17-00868 от 14.11.2017","ЕМР",null,null,"550 р.","Нет информации","Нет информации","Нет информации","Нет информации","Нет информации","Соглашение о сервитуте","Нет информации","Нет информации","Нет информации","Нет информации",350,0,0,0,0,15,"-","ГП-53 от 08.11.2018",null,null,null,null,null,"Получено соглашение об установлении сервитута с Росимуществом "]
[null,null,null,"ОТП-17-00997 от 11.01.2018","ЕГП","Площадка для осуществления деятельности по сбору, хранению и переработке лома металлов, расположенного по адресу: г. Елизово, ул. Нагорная",null,1,"26.11.19-разработана новая трасса, 09.10.2018","10.02.20-получены ТУ от дорожников ЕГП,       09.04.2019 - УБГ аЕГП","31.01.2020-ТКС, 31.10.2018,\n05.12.2018 - корректировки,\n09.04.2019 - корректировки","03.03.20-акт выбора ТКС, 22.08.19г-новый акт выбора, 10.04.2019 с корректировками\n10.12.2018","23.08.2019 \n(без вх. номера), \n17.12.2018","21.12.2018 - ОТКАЗ","-","-",null,null,0,0,147,0,0,150,"-","-"]
[null,null,null,"ОТП-18-00612 от 22.10.2018","ПКГО","\"Здание склада сырья\" по адресу г. Петропавловск-Камчатский ул. Тундровая 2",null,null,"06.11.19 согласовано",null,null,"08.11.2019 ОРДТП В.И.","2019-11-14","22.11.19 отказ",null,null,null,null,0,0,170,0,0,150,null,null,null,null,null,null,null,"оригиналы документов отдали ИЦ \"Энергия\" (лист согласования и заявление на размещение)"]
[null,null,null,"ОТП-19-00392 от 11.07.2019","ЕГП","Камчатский край, Елизовский район, г.Елизово, ул.Морская 2",null,null,"19.11.19-Подземная комиссия пройдена 15.10.19 внесено в табл. ","-","22.01.2020\nООО \"Топографическое бюро\"","2020-01-23","2020-01-29","№ 3 от 10.02.2020 (до 09.02.2022)",null,null,null,null,48,0,0,0,0,15]
[null,null,null,"ОТП-18-00301 от 31.05.2018","ЕМР","\"ЖД\", расположенный по адресу: Камчатский край, Елизовский район, п.Пионерский, ул.Таежная, 25",null,null,"согласовано - 17.09.2019 17.07.2019 - начало согласования\n15.07.2019 - трасса разработана","-","2019-09-09","2019-09-24","2019-10-24","№ 166 от 03.02.2020 (до 03.20.2022)",null,null,null,null,100,0,0,0,0,15,null,null,null,null,null,null,null,"подготовлено заявление на размещение 24.10.2019 ( в листе согласования не все печати)"]
[null,null,null,"ОТП-19-00486 от 02.09.2019","ЕМР","Индивидуальный жилой дом Камчатский край, р-Н Елизовский, г. Елизово",null,null,"13.03.2020 -СОГЛАСОВАНО 14.01.2020 внесено",null,"13.03.2020-Теркамсервис",null,null,"№ 14 от 06.04.2020 (до 05.04.2021)",null,null,null,null,80,0,0,0,0,30,null,null,null,null,null,null,null,"Один из объектов, которые были отложены на время работы над ИП Семашкиными."]
[null,null,null,"ОТП-18-00487 от 03.08.2018","ЕМР","\"Объект физической культуры и спорта\"",null,null,"согласование-100%, 06.11.19-трасса разработана, 23.10.2019 внесено в таблицу","-","20.11.19, ТКС",null,"2020-01-23","от 24.01.2020 №101",null,null,null,null,17,123,0,0,1,150]
[null,null,null,"ОТП-18-00210 от 26.04.2018","Мильково",null,null,1,"25.03.2019 - трасса согласована","-","-","2019-06-28","2019-07-02","-","-","-",null,null,60,2300,0,0,1,10,"-","-"]
[null,null,null,"ОТП-19-00006 от 24.01.2019","ПКГО",null,null,1,"30.07.2019 - согласовано\n26.07.2019 - передано на штамп в УАГЗО аПКГО\n27.06.2019 - начало согласования\n24.06.2019 - разработана трасса","24.07.2019 - получены ТУ от МКУ \"САД ПКГО\"\n03.07.2019 - запрос ТУ в МКУ \"САД ПКГО\"","2019-09-17","2019-09-17","отказ - от 02.10.2019 №010801/7139/19  б/н от 19.09.2019","-","-","-",null,null,0,0,285,0,0,60,"-","-",null,null,null,null,null,"УШЕЛ В ГП \nнеобходим выезд на местность , переделать трассу( по выбраной трассе болото)"]
[null,null,null,"ОТП-17-00609 от 22.08.2017","ПКГО",null,null,"550 р.","10.02.2020 трасса разработана 19.07.2018","-","02.03.2020 (Кристина)26.09.2018, 09.10.2018 повторно","2018-10-15","04.03.2020\n17.10.2018 (устный отказ - необходима исполнительная съемка существующих линий в п. Дальний)","18.03.2020 - отказ (пересечение ранее выданных разрешений)","-","-",null,null,130,0,0,0,0,15,"-","-",null,null,null,null,null,"02.03.2020-Заявление на размещение на подписи Включает трассы Харитоновой (ОТП-17-00609) и Каменского (ОТП-18-00201)"]
[null,null,null,"ОТП-18-00201 от 16.04.2018","ПКГО",null,null,"550 р.",null,null,null,null,null,null,null,null,null,null,null,null,null,null,null,15,"-","-",null,null,null,null,null,"Объект построен в рамках ГП-45 с ООО \"Спецстрой-К\", необходимо выяснить, возможно ли фактическое присоединение Харитоновой (ОТП-17-00609) от построенной подрядчиком линии."]
[null,null,null,"ОТП-16-00639 от 27.01.2017","ПКГО","«Автомобильная база», расположенная по адресу: Камчатский край, г. Петропавловск-Камчатский, ул. Халактырское шоссе, д. 7/1",null,0.5,"13.01.20 переделка трассы 24.10.19 пересогласовываем истёк срок годности листа. 28.06.2018 - согласовано полностью","-","02.12.19 переделано 25.11.19 отправлено на переделку 13.11.19 (Владимир Ильич) 29.06.2018","13.11.19 (Владимир Ильич) ","05.12.19 подались заного 3ий раз 19.11.19 подано заного б/н 15.08.2018 - заявление отозвано для внесения корректировок в акт выбора трассы\n31.07.2018 - заявление подано","-","-","-",null,null,110,0,0,0,0,50,"-","-",null,null,null,null,null,"На 17.05.2019 - корректировки не получены, необходимо передать другому КИ.\nПостроен без разрешительной документации!  Вышел срок годности листа согласования за ного подаёмся. Пересогласован, на подписи в архитектуре."]
[null,null,null,"ОТП-19-00132 от 17.04.2019","ЕМР","\"Жилой дом\", расположенный по адресу: Камчатский край, п. Пионерский, ул. Лесная",null,null,"02.09.2019-согласонано  25.07.2019 - начало согласования\n12.07.2019 - трасса разработана","-","02.09.219","2019-09-27","21.10.2019 отзыв от 10.10.2019 №2375",null,null,null,null,null,60,0,0,0,0,15,null,null,null,null,null,null,null,"Есть размещение до декабря. В акте выбора наложение на выданные размещения, нужно забрать документы у Хмельницкого"]
[null,null,null,"ОТП-18-00617 от 15.11.2018","ПКГО","\"Производственное здание хлебопекарни\", расположенный по адресу: Камчатский край, г. Петропавловск-Камчатский, ул. Дальневосточная, д. 7",null,null,"10.10.2019 трасса разработана 01.08.2019 - принято в разработку","ТУ САД запрос 11.10.2019(не требуется)",null,"2019-10-14","07.11.2019 - отказ в выдаче разрешения на размещение (пересекаем незаконный жилой дом)\n17.10.2019",null,null,null,null,null,null,null,null,null,null,320,null,null,null,null,null,null,null," 25.02.2020 - НИГТЦ ДВО РАН НАПРВАЛИ ЗАПРОС В МИНИСТЕРТВО. 10.01.2020 - направлен запрос на согласования прохождения КЛ. 29.01.2020- планируется заключение сервитутв. 10.01.2020 - направлен запрос на согласования прохождения КЛ. Необходимо установить местоположение ближайшей опоры  ВЛ-10 кВ ПС \"Северная\" ф. 7"]
[null,null,null,"ОТП-19-00417 от 30.07.2019","ЕМР","\"Индивидуальный жилой дом\", расположенный по адресу: Камчатский край, Елизовский р-н, п. Пионерский",null,null,"24.09.18 трасса согласована 21.08.2019 - трасса разработана","нет","переделан (скинут Хмельницкому на проверку)  переделка акта (Ордтп) 24.09.19 топобюро переделка трассы","2019-11-07","б/н 12.11.2019 отозвано в связи с наложением актов выбора на ранее выданный",null,null,null,null,null,769,0,0,0,0,15,null,null,null,null,null,null,null,"переделка трассы 03.10.19 из-за рельефа"]
[null,null,null,"ОТП-19-00438 от 30.07.2019","ЕМР","\"Индивидуальный жилой дом\", расположенный по адресу: Камчатский край, р-н Елизовский, п. Пионерский",null,null,null,null,null,null,null,null,null,null,null,null,null,null,null,null,null,15,null,null,null,null,null,null,null,"переделка трассы 03.10.19 из-за рельефа"]
[null,null,null,"ОТП-19-00440 от 30.07.2019","ЕМР","\"Индивидуальный жилой дом\", расположенный по адресу: Камчатский край, р-н Елизовский, п. Пионерский",null,null,null,null,null,null,null,null,null,null,null,null,null,null,null,null,null,15,null,null,null,null,null,null,null,"переделка трассы 03.10.19 из-за рельефа"]
[null,null,null,"ОТП-19-00444 от 26.07.2019","ПКГО","\"Жилой дом\", расположенный по адресу: Российская Федерация, Камчатский край, Петропавловск-Камчатский городской округ, г. Петропавловск-Камчатский, ул. Семена Удалого",null,null,"26.03.2020- СОГЛАСОВАНО 21.11.19-разработана новая трасса КЛ, 30.08.2019-трасса разработана, 21.08.2019 - принято в работу","10.03.20-ТУ МКУ САД на КЛ, 17.12.19-получены ТУ МКУ САД №4446/19 от 13.12.19,       Запрос ТУ САД-28.11.19г.,           ТУ САД № 3624/19 от 15.10.19г.        ","23.12.19., 18.10.2019г.","18.10.19г.","08.11.2019 - отказ УАГЗО аПКГО, заменить на КЛ;\n29.10.19",null,null,null,null,null,350,0,0,0,0,15]
[null,null,null,"ОТП-16-00686 от 27.10.2016","ЕГП",null,null,null,"01.02.2020 - необходимо менять трассу 20.12.2019 - новая трасса 07.10.2019 - трасса согласована 02.09.19-трасса разработана, передана на согласование","ТУ-Камчатуаправтодор 07.11.2019","2019-09-02","2019-09-02","2019-10-14",null,null,null,null,null,null,null,null,null,null,169,null,null,null,null,null,null,null,"изменить трассу, лимо менять мероприятия"]
[null,null,null,"ОТП-19-00217 от 13.05.2019","ПКГО","\"Здание зарядно-разрядной станции\"",null,null,"03.12.12 трасса согласована 05.11.19 трасса разработана 28.10.19 внесено в табл",null,"03.12.19 ОРДТП В.И. (вместо ильича сделала Витталия) 09.01.2020","2020-01-09","2020-01-13",null,null,null,null,null,0,0,283,0,0,30,null,null,null,null,null,null,null,"заключение сервитута"]
[null,null,null,"ОТП-17-01065 от 19.01.2018","ЕМР","«Индивидульный жилой дом», расположенный по адресу: Камчатский край, Елизовский район, п. Светлый, мкр. Молодежный, 215",null,1,"20.03.20-осталось только согласование Главы Пионерского;18.03.2019 - печати\n30.01.2019 - согласования","-","21.03.2019\n13.05.2019 - повторно","05.08.2019 - корректировки\n06.06.2019","-","-","-","-",null,null,100,0,0,0,0,20,"-","-"]
[null,null,null,"ОТП-18-00636 от 22.10.2018","ЕМР","\"Личное подсобное хозяйство\", расположенный по адресу: Камчатский край, р-н Елизовский, п. Светлый, мкр. Молодежный 216",null,1,null,null,null,null,null,null,null,null,null,null,null,null,null,null,null,20,"-"]
[null,null,null,"ОТП-16-00740 от 24.11.2016","ПКГО","Нежилые помещения поз. 21, 22, 35, 36, 121-123, расположенного по адресу: Камчатский край, г. Петропавловск-Камчатский, ул. Чубарова, 16",null,"550 р.","18.06.19 - согласование завершено","13.06.2019 - получены ТУ от ПАО \"Ростелеком\"\n16.05.2019 - запрос ТУ в ПАО \"Ростелеком\" направлен повторно\n09.04.2019 - получены ТУ от МКУ \"САД аПКГО\"\n14.03.2019 - запрос ТУ в ПАО \"Ростелеком\"\n12.03.2019 - запрос ТУ в МКУ \"САД аПКГО\"","2019-07-02","2019-07-16","-","-","-","-",null,null,0,0,125,0,0,15,"-","-",null,null,null,null,null,"Есть акт об осуществлении технологического присоединения от 23.12.2019.\nЗаключен новый договор - ОТП-19-00367 от 28.06.2019\nДОГОВОР РАСТОРГНУТ! \nНеобходимо заключение сервитута"]
[null,null,null,"ОТП-18-00685 от 16.11.2018","Мильково","\"Здание склада запчастей и материалов\", расположенный по адресу: Камчатский край, Мильковский район, с. Мильково, ул. Советская",null,1,"трасса согласована","нет","2019-08-28","2019-09-11",null,null,null,null,null,null,null,null,null,null,null,50,null,null,null,null,null,null,null,"проект сервитута, мильковцы занимаются Ждём исправленную трассу, топобюро  корректирует акты и схему сервитута, направляем это на согласование внутри + на почту техникума, писмо на техникум бланк подготовлен"]
[null,null,null,"ОТП-18-00594 от 25.10.2018","Мильково","\"Здание администрат/бытовой блок\", расположенный по адресу:  Российская Федерация, Камчатский край, Мильковский район, с. Мильково, ул. Советская, д. 66",null,1,"трасса согласована","нет","2019-08-28","2019-09-12",null,null,null,null,null,null,null,null,null,null,null,40,null,null,null,null,null,null,null,"проект сервитута, мильковцы занимаются, то же самое"]
[null,null,null,"ОТП-18-00594 от 25.10.2018","Мильково","\"Здание администрат/бытовой блок\", расположенный по адресу:  Российская Федерация, Камчатский край, Мильковский район, с. Мильково, ул. Советская, д. 66",null,1,"трасса согласована","нет","2019-08-28","2019-09-12",null,null,null,null,null,null,null,null,null,null,null,40,null,null,null,null,null,null,null,"проект сервитута, мильковцы занимаются, то же самое"]
[null,null,null,"ОТП-19-00260 от 28.05.2019","Мильково","\"Личное подсобное хозяйство\", расположенный по адресу: Российская Федерация, Камчатский край, Мильковский район, с. Мильково, ул. Тундровая",null,"550 р.","трасса согласована","нет","2019-08-28","2019-09-11",null,null,null,null,null,null,null,null,null,null,null,15,null,null,null,null,null,null,null,"проект сервитута, мильковцы занимаются, то же самое"]
[null,null,null,"ОТП-19-00552 от 18.10.2019","ПКГО","Камчатский край, г.Петропавловск-Камчатский, ш.Восточное",null,null,"внесено в таблицу 13.11.2019","Нет информации","28.11.2019 ОРДТП"," разработан 29.11.2019 ордтп",null,null,null,null,null,null,0,0,370,0,0,40]
[null,null,null,"ОТП-18-00650 от  30.10.2018","ЕМР","\"Жилой дом\", расположенного по адресу: Камчатский край, Елизовский район, п. Пионерский, мкр. Центральный, ул. Российская, з/у 26",null,null,"09.01.2020 - согласовано\n27.11.19 - трасса разработана \n25.09.19 - внесено в табл.","-","2020-04-03",null,null,null,null,null,null,null,444,0,0,0,0,12]
[null,null,null,"ОТП-19-00540  от 05.11.2019","ЕМР","Камчатский край, Елизовский Муниципальный район, Елизовское городское поселение, г.Елизово.",null,null,"11.03.2020-Согласовано",null,null,null,null,null,null,null,null,null,40,15,0,0,1,15]
[null,null,null,"ОТП-19-00469 от 12.08.2019","ЕМР","\"Телекоммуникационный узел доступа\"",null,null,"10.03.20-трасса разработана, 23.09.19 внесено в табл.",null,null,null,null,null,null,null,null,null,133,0,0,0,0,5]
[null,null,null,"ОТП-19-00470 от 12.08.2019","ЕМР","п. Пионерский ул. Николая коляды \"Телекоммуникационный узел доступа\"",null,null,"20.11.2019-пройдена",null,"новоженов","готов (требуется топосьемка)","2019-11-29",null,null,null,null,null,null,null,null,null,null,5,null,null,null,null,null,null,null,"20.02.2020  - подано заявление на установление сервитута с Пионерским сельским поселением, на остальную часть трассы (совместный подвес) документы не нужны."]
[null,null,null,"ОТП-00518 от 28.09.2015","ЕМР","\"Жилой дом\", расположенный по адресу: с. Коряки, ул. Рабочая, 34",null,null," Трасса согласована 17.09.2019 18.07.2019 - трасса разработана","-","2019-09-17",null,null,null,null,null,null,null,36,0,0,0,0,15,null,null,null,null,null,null,null,"Топографическое бюро акт выбора без оплаты не выполнят "]
[null,null,null,"ОТП-19-00156 от  08.04.2019","ЕМР","\"Жилой дом\", Елизовский р-н, п. Термальный ",null,null,"17..09.2019-согласовано  10.07.2019 - начало согласования\n03.07.2019 - трасса разработана","-","2019-10-24",null,null,null,null,null,null,null,125,0,0,0,0,15,null,null,null,null,null,null,null,"Акт выбора будет после оплаты топобюро, передано на акт выбора"]
[null,null,null,"ОТП-19-00429 от 30.07.2019","ЕМР","\"Личное подсобное хозяйство\", расположенный по адресу: Российская Федерация, Камчатский край, Елизовский муниципальный район, Новолесновское сельское поселение, п. Лесной",null,null,"Согласовано 19.03.2020  согласование-90%, 05.11.19-трасса разработана, 21.08.2019 - принято в работу","Договор о выполнении ту отправлен на подписание в управтодор-11.03.2020","20.11.2019,       ТКС",null,"2020-03-24",null,null,null,null,null,188,40,0,0,1,15]
[null,null,null,"ОТП-19-00431 от 30.07.2019","ЕМР","\"Личное подсобное хозяйство\", расположенный по адресу: Российская Федерация, Камчатский край, Елизовский муниципальный район, Новолесновское сельское поселение, п. Лесной",null,null,"Согласовано 19.03.2020  согласование-90%, 05.11.19-трасса разработана, 21.08.2019 - принято в работу","Договор о выполнении ту отправлен на подписание в управтодор-11.03.2020","20.11.2019,       ТКС",null,"2020-03-24",null,null,null,null,null,95,40,0,0,1,15]
[null,null,null,"ОТП-19-00527 от 30.09.2019","ЕМР","Личное подсобное хозяйство Камчатский край, Елизовский район, п.Раздольный, В районе автобусной остановки.",null,null,"18.11.19-ПТ СПК-13.01.2020",0,"01.04.2020 (Заявка в теркамсервис через валеру) 17.01.2020",null,null,null,null,null,null,null,0,0,0,0,0,0]
[null,null,null,"ОТП-18-00196 от 17.04.2018","ЕМР",null,null,"550 р.","27.09.2018 - недействителен, \n28.11.2018 - по новому бланку","-","20.05.2019 с отказом аЕМР повторно\n04.04.2019 с отказом аЕМР,\n17.09.2018 с отказом аЕМР повторно,\n05.09.2018","24.05.2019 - замечания от КИ!\n19.09.2018","29.11.2018 - повторно\n17.10.2018","ОТКАЗ от 23.10.2018;\nОТКАЗ от 11.12.2018","-","-",null,null,{"$f":"12+26+26+26+26+26+26+26+26","v":220},0,0,0,0,15,"-","-",null,null,null,null,null,"24.05.2019 - требуются корректировки в трассу! В договоре неверный кадастровый номер. Расторгнуть договор"]
[null,null,null,"ОТП-17-01029 от 29.12.2017","ЕМР",null,null,"550 р.","Нужны печати\n28.11.2018 - по новому бланку\n11.07.2018 - недействителен","-","26.09.2018,\n09.10.2018 с замечаниями","2018-10-11","17.10.2018,\n29.11.2018 - потворно","ОТКАЗ от 23.10.2018;\nОТКАЗ от 11.12.2018","-","-",null,null,{"$f":"30+25+25","v":80},0,0,0,0,15,"-","-",null,null,null,null,null,"Ждем изменений в договор отп, меняется собственник , разработать трассу"]
[null,null,null,"ОТП-18-00638 от 22.10.2018","ПКГО","41:01:0010115:149",null,1,"30.07.2019 - согласовано\n25.07.2019 - начало согласования","-","-","-","-","-","-","-","-","-",0,0,20,150,1,100,"-","-",null,null,null,null,null,"Необходимо актуальное КПТ ГП ? требуется изменение трассы и возможность подключения к другой ТП. Пересекаем зу, сервитуты"]
[null,null,null,"ОТП-17-00406 от 21.06.2017","ЕМР","\"Личное подсобное хозяйство\", расположенный по адресу: Камчатский край, Елизовский район, с. Паратунка, ул. Нагорная, рядом д. 29",null,null,"Необходима корректировка трассы!\n02.08.2019 - трасса разработана 6.12.19 ПТ",null,null,null,null,null,null,null,null,null,160,0,0,0,0,15]
[null,null,null,"ОТП-19-00457 от 08.08.2019","ЕМР","\"Индивидуальный жилой дом\", расположенный по адресу: Камчатский край, Елизовский р-н, п. Светлый",null,null,"21.10.19 трасса согласована 12 .09.19 трасса разработана. Н. с.",null,null,null,null,null,null,null,null,null,1730,0,0,511,0,15,null,null,null,null,null,null,null,"Общая трасса с гусевым и Элешес.договор с аэроинженженером, на акт выбора пока не можем подать"]
[null,null,null,"ОТП-19-00434 от 26.07.2019","ЕМР","\"Дачный домик\", расположенный по адресу: Камчатский край, р-н Елизовский, п. Термальный",null,null,"22.10.2019-трасса разработана 21.08.2019 - принято в работу",null,null,null,null,null,null,null,null,null,null,null,null,null,null,15,null,null,null,null,null,null,null,"Топографическое бюро акт выбора без оплаты не выполнят "]
[null,null,null,"ОТП-19-00284 от 13.06.2019","ЕМР","\"Индивидуальное жилищное строительство\"  расположенный по адресу: Камчатский край, Елизовский  р-н, п. Светлый, мкр. Молодежный",null,1,"20.11.19 согласовано 17.10.19 трасса разработана 27.08.2019 - принято в работу",null,null,null,null,null,null,null,null,null,3073,0,0,0,0,30]
[null,null,null,"ОТП-17-00943 от 08.12.2017","ЕМР","\"Жилой дом\", расположенный по адресу: Российская Федерация, Камчатский Край, Елизовский м. р-н, Пионерское с.п., п. Светлый, мкр. Молодежный, пр-д Пионерский, д. 11.",null,null,"21.10.19 трасса согласована 11.09.19 трасса разработана. Н. с.",null,null,null,null,null,null,null,null,null,1739,0,0,0,0,30,null,null,null,null,null,null,null," договор с аэроинженженером, на акт выбора пока не можем подать"]
[null,null,null,"ОТП-17-00851 от 22.11.2017","ЕМР","\"Индивидуальное жилищное строительство\", расположенный по адресу: установлено относительно ориентира, расположенного за пределами участка. Ориентир пп-1484. Участок находится примерно в 795м от ориентира по направлению на восток-северо-восток. Почтовый адрес ориентира: Камчатский край, Елизовский р-н.",null,null,"21.10.19 трасса согшласована 11.09.19 трасса разработана. Н. с.",null,null,null,null,null,null,null,null,null,0,0,0,0,0,15,null,null,null,null,null,null,null," договор с аэроинженженером, на акт выбора пока не можем подать"]
[null,null,null,"ОТП-19-00366 от 25.06.2019","ЕМР","\"Жилой дом\", расположенный по адресу: Камчатский край, Елизовский р-н, п. Светлый, мкр. Молодежный.",null,null,"21.10.19 трасса согласована 11.09.19 трасса разработана. Н. с.",null,null,null,null,null,null,null,null,null,2380,0,0,0,0,15,null,null,null,null,null,null,null," договор с аэроинженженером, на акт выбора пока не можем подать"]
[null,null,null,"перспективный","ЕМР","\"Жилой дом\", расположенный по адресу: Камчатский край, Елизовский р-н, п. Светлый, мкр. Молодежный.",null,null,"21.10.19 трасса согласована.17.09.19 трасса разработана. Н. с.",null,null,null,null,null,null,null,null,null,785,0,0,0,0,0,null,null,null,null,null,null,null,"печать уфсб и договор с аэроинженженером, на акт выбора пока не можем подать"]
[null,null,null,"ОТП-19-00352 от 11.07.2019","ЕМР","\"Индивидуальный жилой дом\", расположенный по адресу: Камчатский край, Елизовский район, п. Светлый",null,null,"21.10.19 трасса согласована. 12 .09.19 трасса разработана. Н. с.",null,null,null,null,null,null,null,null,null,0,0,0,0,0,15,null,null,null,null,null,null,null,"общая трасса с Гусевым и толмачевым.  договор с аэроинженженером, на акт выбора пока не можем подать"]
[null,null,null,"ОТП-19-00398 от 10.07.2019","ЕМР","\"Индивидуальный жилой дом\", расположенный по адресу: Росийская Федерация, Камчатский край, Елизовский м. р-н, Пионерское с. п. п. Светлый, мкр. Центральный, ул. Октябрьская  д. 41.",null,null,"21.10.19 трасса согласована 12.09.19 трасса разработана. Н. с.",null,null,null,null,null,null,null,null,null,0,0,0,0,0,15,null,null,null,null,null,null,null,"Общая трасса с Толмачевым  и Элешес.  договор с аэроинженженером, на акт выбора пока не можем подать"]
[null,null,null,"ОТП-19-00426 от 29.07.2019","ЕМР","\"Индивидуальное жилищное строительство\", расположенный по адресу: Камчатский край, Елизовский муниципальный район, Пионерское сельское посееление, поселок Светлый, мкр Молодёжный",null,null,"21.10.19 трасса согласована 13.09.19 трасса разработана. Н. с.",null,null,null,null,null,null,null,null,null,1695,0,0,0,0,15,null,null,null,null,null,null,null," договор с аэроинженженером, на акт выбора пока не можем подать"]
[null,null,null,"ОТП-19-00456","ПКГО","\"Павильон\"",null,null,"02.03.2020 принята в рабботу. 20.11.19 переделка трассы \n07.11.19 повторная корректировка трассы. \n21.10.19 корректируем трассу, новая трасса на согласовании.\n26.09.19 трасса разработана н.с.","04.03.2020 - Для топографической сьемки передано теркамсервис",null,null,null,null,null,null,null,null,698,0,null,0,0,40,null,null,null,null,null,null,null,"02.03.2020- необходима корректировка трассы, запроектировать согласно нормативной документации. 20.11.2020-Повторная корректировка трассы, не согласование Камчатуправтодора из-за перехода дороги близко к перекрёстку, тк у управтодорпа готовится проект реконструкции перекрёстка."]
[null,null,null,"ОТП-19-00490 от 05.09.2019","ЕМР","\"Индивидуальный жилой дом\", расположенного по адресу: Российская Федерация, Камчатский край, Елизовский район",null,null,"20.02.2020 - трасса разработана    23.09.19 внесено в табл.",null,null,null,null,null,null,null,null,null,75,325,0,0,1,15,null,null,null,null,null,null,null,"(Трасса проходит по землям Росимущества и ЕМР) требуется проект рекультивации\nОдин из объектов, которые были отложены на время работы над ИП Семашкиными."]
[null,null,null,"ОТП-19-00464 от 09.08.2019","Усть-Б","\"Гараж\"",null,null,"23.09.19 внесено в табл. ",null,null,null,null,null,null,null,null,null,null,null,null,null,null,15,null,null,null,null,null,null,null,"Усть-Больширецкие инженеры строят объекты по \"упрощённой\" системе без пакета разрешительной докумменьтации. В процессе строительства"]
[null,null,null,"ОТП-19-00432 от 13.08.2019","Усть-Б","\"Личное подсобное хозяйство\"",null,null,"23.09.19 внесено в табл. ",null,null,null,null,null,null,null,null,null,null,null,null,null,null,15,null,null,null,null,null,null,null," На согласовании. Согласовывается трасса с владельцами других инженерных коммуникаций а после стройка. Без ордера."]
[null,null,null,"ОТП-19-00332 от 27.06.2019","Усть-Б","\"Личное подсобное хозяйство\"",null,null,"23.09.19 внесено в табл.",null,null,null,null,null,null,null,null,null,null,null,null,null,null,15,null,null,null,null,null,null,null,"Построен."]
[null,null,null,"ОТП-19-00439 от 26.08.2019","Усть-Б","\"Личное подсобное хозяйство\"",null,null,"23.09.19 внесено в табл.",null,null,null,null,null,null,null,null,null,null,null,null,null,null,15,null,null,null,null,null,null,null,"В процессе строительства."]
[null,null,null,"ОТП-19-00427 от 22.08.2019","ПКГО","\"Жилой дом\", расположенного по адресу: Камчатский край, г. Петропавловск-Камчатский, ул. Ларина, д. 39",null,null,"23.09.19 внесено в табл.",null,null,null,null,null,null,null,null,null,0,0,250,0,0,50,null,null,null,null,null,null,null,"Один из объектов, которые были отложены на время работы над ИП Семашкиными."]
[null,null,null,"ОТП-19-00499 от 26.08.2019","ПКГО","\"Жилой дом\"",null,null,"согласовано трасса разработана 18.10.19 23.09.19 внесено в табл.",null,null,null,"2020-02-12",null,null,null,null,null,941,0,0,0,0,15]
[null,null,null,"ОТП-19-00465 от 12.08.2019","ЕМР","\"Телекоммуникационный узел доступа\"",null,null,"23.09.19 внесено в табл.",null,null,null,null,null,null,null,null,null,30,0,0,0,0,5]
[null,null,null,"ОТП-18-00248 от 25.04.2018","ПКГО","\"Хозяйственные постройки\"",null,null,"23.01.2020 - ПТ 25.09.19 внесено в табл.",null,null,null,null,null,null,null,null,null,null,null,null,null,null,15,null,null,null,null,null,null,null,"Не ясно расположение участка заявителя. Дозвониться до заявителя не получается"]
[null,null,null,"ОТП-19-00275 от 30.05.2019","ЕГП",null,null,null,"20.11.19 согласовано 17.10.19 трасса разработана 27.08.2019 - принято в работу",null,null,null,null,null,null,null,null,null,0,0,0,0,0,15]
[null,null,null,"ОТП-19-00372 от 04.07.2019","ЕМР","Камчатский край, Елизовский район, Пионерское СП, п.Светлый, мкр.Центральный, ул.Восточная, з/у 25",null,null,"16.10.2019 внесено в таблицу",null,null,null,null,null,null,null,null,null,49,0,0,0,0,15]
[null,null,null,"ОТП-19-00589 от 31.10.2019","ПКГО","Камчатский край, г.Петропавловск-Камчатский, ул.Якорная д.22.",null,null,"12.02.2020- СОГЛАСОВАНО совместная трасса с шамояном Согласован от 10.02.2020 20.12.19 построена совместная трасса с ОТП-19-00589(00583,00590) внесено в таблицу 08.11.2019 ",null,"12.02.2020-ПОЛУЧЕНО","12.02.2020-ПОЛУЧЕНО","25.03.2020-Подано 12.02.2020- На подписи у директора",null,null,null,null,null,280,0,0,0,0,100,null,null,null,null,null,null,null,"Строительство факт от ближайшего столба 5 метров"]
[null,null,null,"ОТП-19-00542 от 05.11.2019","ПКГО","Камчатский край, г. Петропавловск-Камчатский, Ул.Колхозная д.13",null,null,"ФАКТ",null,null,null,null,null,null,null,null,null,5,0,0,0,0,15,null,null,null,null,null,null,null,"Длинна трассы 5 метров Фактическое подключение"]
[null,null,null,"ОТП-19-00526 от 05.11.2019","ЕГП","Камчатский край, Елизовский Муниципальный район, Елизовское городское поселение, г.Елизово, Клубничный пр. 5.",null,null,"11.03.2020-Согласовано 27.01.2020 построена новая трасса",null,null,null,null,null,null,null,null,null,481,15,0,0,1,15,null,null,null,null,null,null,null,"Совместно с 19-00540"]
[null,null,null,"ОТП-19-00241 от 03.06.2019","ПКГО","\"Производственая база\"",null,null,"31.10.2019 - трасса согласована\n21.10.2019 - трасса разработана ",null,null,null,null,null,null,null,null,null,0,0,8,0,0,400,null,null,null,null,null,null,null,"01.11.2019 - договор планируется к расторжению\nподземка пройдена Договор расторгнут"]
[null,null,null,"ОТП-19-00523 от 27.09.2019","ЕГП","Здание магазина продовольственных товаров, расположенного по адресу:  Камчатский край, г. Елизово, ул. Рябикова, д. 56",null,null,"22.10.2019 внесено в таблицу",null,null,null,null,null,null,null,null,null,0,0,160,0,0,15,null,null,null,null,null,null,null,"Техусловия изенены на ФАКТИЧЕСКОЕ ПРИСОЕДИНЕНИЕ."]
[null,null,null,"ОТП-19-00483 от  16.09.2019","ЕГП","\"Нежилое помещение\", расположенного по адресу: Камчатский край, Елизовский р-н, г. Елизово, ул. Завойко, д. 3",null,null,"22.10.2019 внесено в таблицу",null,null,null,null,null,null,null,null,null,0,0,0,890,0,150,null,null,null,null,null,null,null,"ДОГОВОР РАСТОРГНУТ!!!"]
[null,null,null,"ОТП-19-00477 от 24.10.19","Мильково",null,null,null,"29.10.19 внесено в табл Мильковцы сами сделали",null,null,null,null,null,null,null,null,null,null,null,null,null,null,15,null,null,null,null,null,null,null,"Мильковцы поставили опоры до заявителя, заявитель пишет увелдомление о готовности"]
[null,null,null,"ОТП-19-00534 от 07.10.19","ЕМР",null,null,null,"Трасса разработана 29.10.19 н.с.",null,null,null,null,null,null,null,null,null,0,0,0,0,0,15,null,null,null,null,null,null,null,"в кластере №7"]
[null,null,null,"ОТП-19-00609 от 28.10.19","ЕМР","\"Жилой дом\"",null,null,"29.10.19 Внесено в табл 30.10.19 трасса разработана н. с.",null,null,null,null,null,null,null,null,null,1776,0,0,0,0,15,null,null,null,null,null,null,null,"в кластере №9"]
[null,null,null,"ОТП-18-00154 от 07.06.2018","ЕГП","\"Индивидуальный жилой дом\", расположенный по адресу: Камчатский край, Елизовский район, Елизовское лесничество, квартал 107 часть выделов 1, 2, 6 Елизовского участкового лесничества (часть 2)",null,1,"30.10.2019 - внесено в таблицу",null,null,null,null,null,null,null,null,null,null,null,null,null,null,15]
[null,null,null,"ОТП-17-00938 от 08.02.2018","ЕГП","\"Жилой дом\", расположенный по адресу: Камчатский край, Елизовский район, Елизовское лесничество, квартал 106 часть выдела 11 Елизовского участкового лесничества (часть 2)",null,1,null,null,null,null,null,null,null,null,null,null,null,null,null,null,null,15]
[null,null,null,"ОТП-18-00474 от 30.07.2018","ЕГП","\"Индивидуальный жилой дом\", расположенный по адресу: Камчатский край, Елизовский район, Елизовское лесничество, квартал 106 часть выдела 11 Елизовского участкового лесничества (часть 2)",null,1,null,null,null,null,null,null,null,null,null,null,null,null,null,null,null,15]
[null,null,null,"ОТП-19-00478 от 18.10.19","ПКГО","\"Физкультурно-оздоровительный комплекс с плавательным бассеином в г. Петропавловск-Камчатском\"",null,null,"01.11.19 внесено в табл. 07.11.19 Трасса разработана 06.11.19","29.11.19 ТУ Водоканал и ТУ САД",null,null,"2020-03-04",null,null,null,null,null,0,211,0,0,0,455.9,null,null,null,null,null,null,null,"на печати в арихитектуре трасса"]
[null,null,null,"ОТП-18-00335 от 14.06.18","ЕГП","\"Магазин орбита\"",null,null,"20.01.2020 согласовано 01.11.19 внесено в табл. 27.11.19 трасса разработана","получены ту от коммунальной энергетики",null,"2020-02-11",null,null,null,null,null,null,0,0,0,448,0,150]
[null,null,null,"ОТП-19-00528 27.09.19","ЕМР","\"Индивидуальный жилой дом\"",null,null,"05.11.19 внесено в табл. Трасса есть, ",null,null,null,null,null,null,null,null,null,0,0,0,0,0,15,null,null,null,null,null,null,null,"Попадает под факт при разработке трассы ИП Морщагиным"]
[null,null,null,"ОТП-19-00529 от 27.09.19","ЕМР","\"Жилой дом\"",null,null,"05.11.19 внесено в табл. Трасса разработана.",null,null,null,null,null,null,null,null,null,0,0,0,0,0,15,null,null,null,null,null,null,null,"Попадает под факт при разработке трассы кластера №7"]
[null,null,null,"ОТП-19-00576 от 17.10.19","ПКГО","\"Склад-Офис\"",null,null,"05.11.19 внесено в табл. 18.11.19 трасса разработана","ТУ САД 28.11.19 ТУ водоканал (ТУ-00028/12-01 от 28.01.2020)","02.03.20, ТКС",null,null,null,null,null,null,null,0,0,138,0,0,70,null,null,null,null,null,null,null,"От ООО \"Теркамсервис: \"чтобы закончить. нужно согласование с правообладателями усачтка получить, одним из арендаторов участка является заявитель\""]
[null,null,null,"ОТП-19-00571 от 17.10.19","ЕМР","\"ВРУ-0,4 кВ\"",null,null,"05.11.19 внесено в табл.",null,null,null,null,null,null,null,null,null,0,0,0,0,0,30,null,null,null,null,null,null,null," Попадает под факт от трассы верхней левой молодёжки"]
[null,null,null,"ОТП-19-00555 от 12.10.19","ПКГО","\"Здание магазина-склада\"",null,null,"25.11.19 согласовано 06.11.19 трасса разработана 05.11.19 внесено в табл.",null,"22.01.2020 (витталия переделка) 25.11.19 (Владимир Ильич)ОРДТП","22.01.2020 (витталия переделка) разработан 29.11.2019 ОРДТП (ВН)","05.12.19 подано отказ",null,null,null,null,null,0,0,156,0,0,40,null,null,null,null,null,null,null,"общая трасса с Серкиным В. Е."]
[null,null,null,"ОТП-19-00498 от 31.10.19","ЕМР","\"Индивидуальный жилой  дом\"",null,null,"05.11.19 внесено в табл. Трасса есть, ",null,null,null,null,null,null,null,null,null,0,0,0,0,0,15,null,null,null,null,null,null,null," Попадает под факт от трассы кластера 8"]
[null,null,null,"ОТП-19-00538 от 10.10.19","ЕГП","\"Базовая станция сети сотовой связи 41-195\"",null,null,"17.01.20 согласована 28.11.19 трасса разработана.05.11.19 внесено в табл.",null,"20.01.2020 (подрядные организации, через валеру)",null,null,null,null,null,null,null,0,0,330,0,0,4]
[null,null,null,"ОТП-19-00601 от 24.10.2019","ЕМР","\"Жилой  дом\", расположенный по адресу: Российская Федерация, Камчатский край, Елизовский муниципальный район, тер. ТСН \"Светлое\", ул. Полевая, д. 28",null,1,"05.11.19 внесено в табл.",null,null,null,null,null,null,null,null,null,85,0,0,0,0,50]
[null,null,null,"ОТП-19-00562 от 25.10.2019","ПКГО","\"ИЖД\"",null,null,"21.11.19-трасса разработана, 06.11.19 внесено в табл.",null,null,null,null,null,null,null,null,null,35,0,0,0,0,30,null,null,null,null,null,null,null,"Необходимо заключение сервитута с собственником (Слепцова-второй участок)"]
[null,null,null,"ОТП-18-00399 от 11.07.2018","ЕГП","\"Жилой дом\" Камчатский край, Елизовский район г. Елизово, ул. Виталия Кручины 50",null,null,"06.11.19 внесено в табл. совместная трасса построена 20.12.19",null,null,null,null,null,null,null,null,null,175,0,0,0,0,15]
[null,null,null,"ОТП-18-00398 от 11.07.2018","ЕГП","\"Жилой дом\" Камчатский край, Елизовский район г. Елизово, ул. Виталия Кручины 48",null,null,"06.11.19 внесено в табл. совместная трасса построена 20.12.19",null,null,null,null,null,null,null,null,null,null,null,null,null,null,15]
[null,null,null,"ОТП-18-00363 от 03.07.2018","ЕГП","\"Жилой дом\" Камчатский край, Елизовский район г. Елизово, ул. Виталия Кручины 42",null,null,"06.11.19 внесено в табл. совместная трасса построена 20.12.19",null,null,null,null,null,null,null,null,null,null,null,null,null,null,15]
[null,null,null,"ОТП-18-00523 от 28.08.2018","ЕГП","\"Жилой дом\" Камчатский край, Елизовский район г. Елизово, ул. Виталия Кручины 46",null,null,"06.11.19 внесено в табл. совместная трасса построена 20.12.19",null,null,null,null,null,null,null,null,null,null,null,null,null,null,15]
[null,null,null,"ОТП-19-00524 от 05.11.2019","ЕМР","Камчатский край, Елизовский р-н, г.Елизово, ул.Виталия кручины, д. 44.",null,null,"Спк-19.11.19 совместная трасса построена 20.12.19",null,null,null,null,null,null,null,null,null,null,null,null,null,null,30]
[null,null,null,"ОТП-19-00584 от 28.10.2019","ПКГО","Административно-бытовой комплекс, расположенный по адресу: Камчатский край, г. Петропавловск-Камчатский, пр. Победы, 32",null,null,"08.11.19 внесено в табл.",null,null,null,null,null,null,null,null,null,0,0,220,0,0,30]
[null,null,null,"ОТП-19-00599 от 01.11.19","ЕМР","\"ВРУ-0,4 кВ\"",null,null,"25.11.19 трасса разработана 11.11.19 внесено в табл",null,null,null,null,null,null,null,null,null,195,0,63,0,0,25]
[null,null,null,"ОТП-19-00506 от 30.10.19","Усть-Б","\"Личное подсобное хозяйство\"с.Кавалерское",null,null,"13.11.19 внесено в табл.",null,null,null,null,null,null,null,null,null,130,0,0,0,0,15]
[null,null,null,"ОТП-19-00624 от 11.11.19","ЕМР","\"Жилой дом\" мкр. Молодёжный",null,null,"13.11.19 внесено в табл.",null,null,null,null,null,null,null,null,null,0,0,0,0,0,15,null,null,null,null,null,null,null,"кластер №7"]
[null,null,null,"ОТП-19-00631 от 11.11.20","ЕМР","\"Жилой дом\" мкр. Молодёжный",null,null,"13.11.19 внесено в табл.",null,null,null,null,null,null,null,null,null,0,0,0,0,0,15]
[null,null,null,"ОТП-19-00632 от 08.11.19","ЕМР","\"Жилой дом\" мкр. Молодёжный",null,null,"18.11.19 внесено в табл.",null,null,null,null,null,null,null,null,null,1346,0,0,0,0,15,null,null,null,null,null,null,null,"кластер 6"]
[null,null,null,"ОТП-19-00640 от 08.11.19","ЕМР","\"Жилой дом\" мкр. Молодёжный",null,null,"18.11.19 внесено в табл.",null,null,null,null,null,null,null,null,null,0,0,0,0,0,15,null,null,null,null,null,null,null,"кластер 7"]
[null,null,null,"ОТП-19-00608 от 01.11.19","ЕМР","\"Индивидуальный жилой дом\" мкр. Молодёжный",null,null,"18.11.19 внесено в табл.",null,null,null,null,null,null,null,null,null,0,0,0,0,0,15,null,null,null,null,null,null,null,"факт от трассы домашева-каминский"]
[null,null,null,"ОТП-18-000104 от 14.03.2018","ЕМР","Жилой дом, расположенный по адресу: Елизовский район",null,null,"19.03.2020- СОГЛАСОВАНО 31.12.19-ПТ",null,"06.04.2020 (валера)",null,null,null,null,null,null,null,350,0,0,0,0,15]
[null,null,null,"ОТП-19-00623 от 13.11.19","ЕМР","Жилой дом, расположенный по адресу: Елизовский район, п. Светлый м/р Молодёжный 54",null,null,"25.11.19 трасса разработана 25.11.19 внесено в табл.",null,null,null,null,null,null,null,null,null,1280,0,0,0,0,15,null,null,null,null,null,null,null,"Кл №10"]
[null,null,null,"ОТП-19-00139 от 02.04.19","ЕМР","Жилой дом, расположенный по адресу: Елизовский район, п. Светлый м/р Молодёжный 24",null,null,"25.11.19 трасса разработана 25.11.19 внесено в табл.",null,null,null,null,null,null,null,null,null,0,0,0,0,0,15,null,null,null,null,null,null,null,"Кл №10"]
[null,null,null,"ОТП-19-00316 от 11.06.19","ЕМР","\"Индивидуальный жилой дом\" Елизовский район, п. Светлый м/р Молодёжный ",null,null,"25.11.19 трасса разработана 25.11.19 внесено в табл.",null,null,null,null,null,null,null,null,null,0,0,0,0,0,15,null,null,null,null,null,null,null,"Кл №10"]
[null,null,null,"ОТП-19-00373 от 04.07.19","ЕМР","Жилой дом, расположенный по адресу: Елизовский район, п. Светлый м/р Молодёжный уч. 389",null,null,"25.11.19 трасса разработана 25.11.19 внесено в табл.",null,null,null,null,null,null,null,null,null,0,0,0,0,0,15,null,null,null,null,null,null,null,"Кл №10"]
[null,null,null,"ОТП-19-00374 от 04.07.19","ЕМР","Жилой дом, расположенный по адресу: Елизовский район, п. Светлый м/р Молодёжный з/у №2",null,null,"25.11.19 трасса разработана 25.11.19 внесено в табл.",null,null,null,null,null,null,null,null,null,0,0,0,0,0,15,null,null,null,null,null,null,null,"Кл №10"]
[null,null,null,"ОТП-19-00579 от 19..11.19","ЕМР","\"Индивидуальный жилой дом\" Елизовский район, п. Светлый м/р Молодёжный ",null,null,"27.11.19 внесено в табл.",null,null,null,null,null,null,null,null,null,0,0,0,0,0,15,null,null,null,null,null,null,null,"Кл №10"]
[null,null,null,"ОТП-19-00685 от 21.11.19","ЕМР","Жилой дом, расположенный по адресу: Елизовский район, п. Светлый м/р Молодёжный ",null,null,"27.11.19 внесено в табл.",null,null,null,null,null,null,null,null,null,0,0,0,0,0,15,null,null,null,null,null,null,null,"Кл №10"]
[null,null,null,"ОТП-00563 от 29.10.15","ЕГП","Многоквартирный жилой дом п.12",null,null,"27.11-трасса разработана, 27.11.19 внесено в табл.","получены ТУ № П-03/01-20 ФКЭ от 15.01.20г., 30.12.19-Запрос ТУ Коммунальная энергетика","31.01.2020-ТКС",null,null,null,null,null,null,null,0,0,"2х348",0,0,"160.6",null,null,null,null,null,null,null,"Есть акт о выполнении ТУ"]
[null,null,null,"ОТП-19-00592 от 01.11.19","ПКГО","АМС типа \"столб металлический\" высотой до 26 м",null,null,"27.11.19 внесено в табл.",null,null,null,null,null,null,null,null,null,0,0,170,0,0,15,null,null,null,null,null,null,null,"Подключаем опосредованно от абонентской ТП-773"]
[null,null,null,"ОТП-19-00443  от 06.08.2019","ЕГП","\"Индивидуальное жилищное строительство\" Адрес: Камчатский край, Елизовский муниципальный район, Елизовское городское поселение, г. Елизово, Яблоневый пр-д, 5.",null,null,"11.03.2020-Согласовано 21.11.2019 Внесено в таблицу СПК-13,01,2020; 17.01.2020 неверная трасса будет переделана совместно с Мильштейном 20.01.2020 ПТ","-","-","-","-","-","-","-","-","-",95,274,0,0,1,15,null,null,null,null,null,null,null,"Учавствует в закупке 107/11 Совместная трасса с 19-00690"]
[null,null,null,"ОТП-19-00612 от 14.11.19","ПКГО","Камчатский край, г.Петропавловск-камчамтский, ул.Вулканная 21А.",null,null,"09.12.19-трасса разработана, 25.11.2019 внесено в таблицу","Получены ТУ МКУ САД № 4491 от 17.12.19, 16.12.19г.-запрос ТУ МКУ САД","13.01.2020г","2020-01-15","2020-02-27",null,null,null,null,null,0,0,204,0,0,150,null,null,null,null,null,null,null,"на печати в архитектуре"]
[null,null,null,"ОТП-19-00348 от 20.06.19","ПКГО","Здание автоматизированного склада цемента, здание бетонно-растворного узла, расположенного по адресу: Камчатский край, г.Петропавловск-камчамтский, ул.Вулканная ",null,null,"09.12.19-трасса разработана, 04.12.2019 внесено в таблицу",null,null,null,null,null,null,null,null,null,0,0,71,673,1,150]
[null,null,null,"ОТП-19-00391 от 06.08.2019","ПКГО","\"Здание механических мастерских\", расположенный по адресу: Камчатский край, г. Петропавловск-Камчатский, ул. Вулканная, д. 21А",null,null,"09.12.19-трасса разработана, 21.08.2019 - принято в работу",null,null,null,null,null,null,null,null,null,0,"2х686",0,0,0,"150 кВт"]
[null,null,null,"ОТП-18-00706 от 15.11.2018","ПКГО","\"Объект незавершенного строительства\", расположенный по адресу: участок находится примерно в 251 м по направлению на северо-запад от ориентира нежилое здание , расположенного за пределами участка, адрес ориентира: Камчатский край, г. Петропавловск-Камчатский, ш. Елизовское, д. 26",null,null,"09.12.19-трасса разработана, 09.12.2019 внесено в таблицу",null,null,null,null,null,null,null,null,null,0,0,111,142,1,150]
[null,null,null,"ОТП-19-00618 от 13.11.19","ПКГО","Камчатский край, г.Петропавловск-камчатский",null,null,"10.01.2020 - трасса согласована 25.11.2019 внесено в таблицу 26.11.2019-ПТ","нет","кристина","2020-01-23","2020-01-24","от 06.02.2020 №96/20","2020-02-25",null,null,null,0,0,30,0,0,150]
[null,null,null,"ОТП-19-00476 от 10.10.19","ЕГП","Камчатский край, г.Елизово, ул.Географическая",null,null,"25.11.2019 внесено в таблицу 27.11.2019-ПТ",null,null,"2020-02-04","2020-02-12","21.02.2020 - отказ от аЕГП",null,null,null,null,0,{"$f":"2*60","v":120},0,0,0,158.30000000000001,null,null,null,null,null,null,null,"Вроде как, изготовлением разрешительной документации занялись сами заявители."]
[null,null,null,"ОТП-19-00642 от 20.11.19","ЕМР","Камчатский край, Елизоаский район, с.Паратунка",null,null,"21.02.2020- построена новая трасса старая не согласована  25.11.2019 внесено в таблицу 25.11.2019-ПТ",null,null,null,null,null,null,null,null,null,{"$f":"2*40","v":80},0,0,0,0,140]
[null,null,null,"ОТП-19-00551 от 21.11.19","ПКГО","Камчатский край, г.Петропавловск-камчамтский, проспект Карла Маркса",null,null,"02.03.2020-построена новая трасс от ТП-412 21.01.2020 -Согласована подъземная комиссия 25.11.2019 внесено в таблицу 27.11.2019 ПТ ","04.02.2020 Согласование сервитута с собственником 5043 участка",null,"2020-03-13","25,03,2020-ПОДАНО 13.03,2020 -на подписи у директора",null,null,null,null,null,0,0,50,772,1,150]
[null,null,null,"ОТП-19-00678 от 22.11.19","ЕМР","\"Жилой дом\", расположенный по адресу Камчатский край, Елизовский район, п. Светлый",null,null,"2.12.2019 внесено в таблицу",null,null,null,null,null,null,null,null,null,0,0,0,0,0,15,null,null,null,null,null,null,null,"кл. 10"]
[null,null,null,"ОТП-19-00614  от 22.11.19","ЕМР","\"Жилой дом\" Камчатский край, Елизовский муниципальный район, Раздольненское сельское поселение, п.Кеткино",null,null,"16.01.2020-Согласован 2.12.19 внесено в таблицу 02.12.19 ПТ ",null,"01.04.2020(заявка в теркамсервис через валеру) 17.01.2020 ",null,null,null,null,null,null,null,251,0,0,0,0,15]
[null,null,null,"ОТП-19-00716 от 22.11.19","ЕМР","Камчатский край, Елизовский р-н, г.Елизово,с.п. Пионерское п. Светлый мкр. Молодёжный",null,null,"03.12.19 внесено в таблицу ",null,null,null,null,null,null,null,null,null,110,0,0,0,0,35,null,null,null,null,null,null,null,"кл. 8"]
[null,null,null,"ОТП-19-00743 от 28.11.19","ЕМР","\"Индивидуальное жилищное строительство\" Камчатский край, Елизовский р-н, п.Пионерский.",null,null,"04.12.19 внесено в таблицу 3.12.19 ПТ 16.01.2020-СПК",null,"2020-01-16","16.01.2020 ордтп (без топоосновы)","29.01.2020-Подано заявление на размещение","№ 165 от 03.02.2020 (до 03.02.2022)",null,null,null,null,64,0,0,0,0,15]
[null,null,null,"ОТП-19-00415 от 12.07.2019","ЕМР","\"Индивидуальный жилищное строительство\"",null,null,"06.12.19 трасса разработана",null,null,null,"2020-02-12",null,null,null,null,null,null,null,null,null,null,15,null,null,null,null,null,null,null,"кл.11"]
[null,null,null,"ОТП-17-00889","ПКГО","\"Здание нежилое\" г. Петропавловск-Камчатский, ул. Красинцев, д. 15",null,null,"23.12.19 трасса разработана 09.12.19 внесено в таблицу",null,null,null,null,null,null,null,null,null,0,0,0,0,0,145,null,null,null,null,null,null,null,"требуется сделать схему границ земляных работ"]
[null,null,null,"ОТП-19-00703 от 29.11.2019","ЕМР","\"Жилой дом\"",null,null,"10.12.19 внесено в таблицу",null,null,null,null,null,null,null,null,null,0,0,0,0,0,15,null,null,null,null,null,null,null,"кл.8"]
[null,null,null,"ОТП-19-00747 от 03.12.2019","ЕМР","\"Индивидуальный жилой дом\"",null,null,"10.12.19 внесено в таблицу",null,null,null,null,null,null,null,null,null,0,0,0,0,0,15,null,null,null,null,null,null,null,"от кл.5"]
[null,null,null,"ОТП-19-00748 от 03.12.2019","ЕМР","\"Жилой дом\"",null,null,"10.12.19 внесено в таблицу",null,null,null,null,null,null,null,null,null,0,0,0,0,0,15,null,null,null,null,null,null,null,"кл.7"]
[null,null,null,"ОТП-19-00754 от 03.12.2019","ЕМР","\"Индивидуальный жилой дом\"",null,null,"10.12.19 внесено в таблицу",null,null,null,null,null,null,null,null,null,0,0,0,0,0,15,null,null,null,null,null,null,null,"кл. 8"]
[null,null,null,"ОТП-19-00757 от 04.12.2019","ЕМР","\"Индивидуальный жилищное строительство\"",null,null,"10.12.19 внесено в таблицу",null,null,null,null,null,null,null,null,null,0,0,0,0,0,15,null,null,null,null,null,null,null,"факт от белякова"]
[null,null,null,"ОТП-19-00254 от 18.11.2019","ПКГО","\"Строительство двух многоквартирных 9-ти этажных жилых домов в районе ул. Карбышева в г. Петропавловске-Камчатском. Жилой дом №2 (блок-секции 4,5,6)\", расположенный по адресу: Камчатский край, г. Петропавловск-Камчатский, ул. Якорная, д. 4/1",null,null,"11.02.2020-новая трасса 11.12.19-трасса разработана, 9.12.19 внесено в таблицу","Получены ТУ МКУ САД №4630/19 от 17.12.19,  16.12.19г.-запрос ТУ МКУ САД","2020-01-21","2020-01-29","04.03.20, 05.02.2020 -отзыв заявления 31.01.2020",null,null,null,null,null,0,0,"2х220",0,0,254.4]
[null,null,null,"ОТП-19-00760 от 03.12.2019","ЕМР","Личное подсобное хозяйство Камчатский край, Елизовский р-н, с.Сосновка, ул.Тимирязевка",null,null,"10.12.19 внесено в таблицу 31.12.19 -ПТ согласована-29.01.2020",null,"01.04.2020 (Заявка в теркамсервис через валеру) 29.01.2020(Валера)",null,null,null,null,null,null,null,30,0,0,0,0,15]
[null,null,null,"ОТП-19-00690 от 03.12.2019","ЕГП","Индивидуальное жилищное строительство Камчатский край, г.Елизово, проезд Яблоневый 20",null,null,"11.03.2020-Согласовано 10.12.19 внесено в таблицу ",null,null,null,null,null,null,null,null,null,620,145,0,0,1,15,null,null,null,null,null,null,null,"Совместно с 19-00443"]
[null,null,null,"ОТП-19-00142 от 02.04.2019","ЕМР","Жилой дом Камчатский край, Елизовский р-н, с.Коряки, ул. Шоссейная, д. 1",null,null,"10.12.19 внесено в таблицу 31.12.19-ПТ",null,null,null,null,null,null,null,null,null,194,0,0,0,0,60]
[null,null,null,"ОТП-18-00337 от 21.06.2018","ЕМР","\"Хозяйственные постройки\"",null,null,"12.12.19-трасса разработана, ",null,null,null,null,null,null,null,null,null,672,1106,0,0,1,15,null,null,null,null,null,null,null,"общая трасса с Таранцевой"]
[null,null,null,"ОТП-18-00256 от 24.05.2018","ЕМР","\"Хозяйственные постройки\"",null,null,"12.12.19-трасса разработана, 11.12.19 внесено в таблицу",null,null,null,null,null,null,null,null,null,0,0,0,0,0,15,null,null,null,null,null,null,null,"общая трасса с Алёшкиным"]
[null,null,null,"ОТП-19-00459 от 08.08.2019","ЕМР","\"Жилой дом\"",null,null,"28.01.19 переделка трассы 16.11.19 трасса разработана 11.12.19 внесено в таблицу",null,null,null,null,null,null,null,null,null,36,1520,0,0,1,15,null,null,null,null,null,null,null,"переделка трассы в связи с замечаниями камчатуправтодора 28.01.19"]
[null,null,null,"ОТП-19-00442 от 01.08.2019","ЕМР","\"Садовый дом\"",null,null,"26.02.2020- согласована трасса 17.12.19 трасса разработана 11.12.19 внесено в таблицу",null,null,null,null,null,null,null,null,null,342,50,0,0,1,15]
[null,null,null,"ОТП-19-00715 от 01.08.2020","ЕМР","\"Индивидуальный жилищное строительство\"",null,null,"трасса есть",null,null,null,null,null,null,null,null,null,null,null,null,null,null,15,null,null,null,null,null,null,null,"Факт от трассы белякова"]
[null,null,null,"ОТП-18-000118 от 14.03.2018",null,"\"Здание домик\", г. Елизово, \"Долина уюта\"",null,null,"28.02-на согласование в Управтодор, 11.12.19-трасса разработана, 11.12.19 внесено в таблицу","Запрос ТУ Управтодор от 25.03.20г",null,null,null,null,null,null,null,null,0,650,0,"2х28",0,31]
[null,null,null,"ОТП-18-000131 от 16.04.2018",null,"ТП-20, г. Елизово, ул. Кручины, в районе ПАС",null,null,null,null,null,null,null,null,null,null,null,null,0,0,0,82,0,301]
[null,null,null,"ОТП-18-00368 от 02.07.2018",null,"ТП-204, г. Елизово, ул. Кручины",null,null,null,null,null,null,null,null,null,null,null,null,0,0,0,"2х22",0,313]
[null,null,null,"ОТП-19-00204 от 10.06.2019","ЕМР","Строительство взлетно-посадочной полосы Камчатский край, Елизовский р-н, с.Николаевка, микрорай",null,null,"13.12.19 внесено 30.12.2019-пт 20.01.2020 построена трасса 31.01.2020-новая трасса (брак от камчатуправавтодор)",null,null,null,null,null,null,null,null,null,50,1390,0,0,1,150]
[null,null,null,"ОТП-19-00735 от 29.11.2019","ПКГО","Хозяйственные постройки, пос. Заозерный",null,null,"17.12.19-трасса разработана, 16.12.19 внесено",null,"2020-01-10","2020-01-13","13.02.20-получен отказ,     03.02.2020",null,null,null,null,null,20,0,0,0,0,15]
[null,null,null,"ОТП-19-00803 от 12.12.19","ЕМР","\"Жилой дом\"",null,null,"17.12.19 внесено",null,null,null,null,null,null,null,null,null,null,null,null,null,null,15,null,null,null,null,null,null,null,"от кл. 8"]
[null,null,null,"ОТП-19-00718 от 05.12.19","ЕГП","\"Индивидуальное жилищное строительство\" уч. 5",null,null,"18.12.19 трасса разработана 17.12.19 внесено",null,"2020-01-29",null,"2020-02-12","отказ в размещении, № 496 от 21.02.20",null,null,null,null,null,null,null,null,null,15]
[null,null,null,"ОТП-19-00728 от 04.12.19","ЕМР","\"Жилой дом\"",null,null,"17.12.19 внесено",null,null,null,null,null,null,null,null,null,null,null,null,null,null,15,null,null,null,0]
[null,null,null,"ОТП-19-00734 от 29.11.19","ЕМР","\"Индивидуальное жилищное строительство\"",null,null,"17.12.19 внесено",null,null,null,null,null,null,null,null,null,null,null,null,null,null,15,null,null,null,null,null,null,null,"от кл. 4"]
[null,null,null,"ОТП-19-00793 от 10.12.19","ЕМР","\"Жилой дом\"",null,null,"17.12.19 внесено",null,null,null,null,null,null,null,null,null,null,null,null,null,null,30]
[null,null,null,"ОТП-19-00794 от 10.12.19","ЕМР","\"Жилой дом\"",null,null,"17.12.19 внесено",null,null,null,null,null,null,null,null,null,null,null,null,null,null,15]
[null,null,null,"ОТП-19-00794 от 10.12.20","ЕМР","\"Индивидуальный жилой дом\"",null,null,"17.12.19 внесено",null,null,null,null,null,null,null,null,null,null,null,null,null,null,15]
[null,null,null,"ОТП-19-00350 от 08.07.2019","ПКГО","\"Нежилые помещения\", расположенного по адресу: Камчатский край, г. Петропавловск-Камчатский, проспект Рыбаков, д. 27",null,1,"19.12.19 внесено",null,null,null,null,null,null,null,null,null,0,0,310,0,0,50]
[null,null,null,"ОТП-19-00758 от 12.12.19","ЕМР","\"Индивидуальное жилищное строительство\"",null,null,"23.12.19 внесено",null,null,null,null,null,null,null,null,null,null,null,null,null,null,15,null,null,null,null,null,null,null,"факт от трассы белякова"]
[null,null,null,"ОТП-19-00773 от 09.12.19","ЕМР","\"Индивидуальное жилищное строительство\", с. Паратунка, ул. Гнечко, квартал 2, д. 10",null,null,"13.01.20 внесено в таблицу",null,null,null,null,null,null,null,null,null,45,0,0,0,0,15]
[null,null,null,"ОТП-19-00712 от 27.12.19","Усть-Б","\"ЛПХ\" Камчатский край, с. Усть-Большерецк, ул. Набережная.",null,null,"14.01.20 внесено в таблицу",null,null,null,null,null,null,null,null,null,100,0,0,0,0,30,null,null,null,null,null,null,null,"Усть-Больширецкие инженеры строят объекты по \"упрощённой\" системе без пакета разрешительной докумменьтации."]
[null,null,null,"ОТП-19-00713 от 29.11.19","ЕМР","\"Жилой дом\"  Камчатский край, Елизовский район, пос. Светлый, мкр-н Молодёжный, д. 331 ",null,null,"14.01.20 внесено в таблицу",null,null,null,null,null,null,null,null,null,115,0,0,0,0,15,null,null,null,null,null,null,null,"факт от кл 9"]
[null,null,null,"ОТП-19-00832 26.12.19","ЕМР","\"Индивидуальный жилой дом\" Российская Федерация, Камчатский край, Елизовский муниципальный район, Пионерское сельское поселение, улица Дачная, 2",null,null,"03.02.2020 трасса разработана 14.01.20 внесено в таблицу",null,null,null,null,null,null,null,null,null,264,0,0,0,0,15]
[null,null,null,"ОТП-19-00679 24.12.19","ЕМР","\"Жилой дом\" Российская Федерация, Камчатский край, Елизовский м. р-н, Пионерское с. п., п. Светлый, мкр. Молодёжный,  ул. Рабочая з/у 6.",null,null,"14.01.20 внесено в таблицу",null,null,null,null,null,null,null,null,null,178,0,0,0,0,15,null,null,null,null,null,null,null,"факт от кл. 8"]
[null,null,null,"ОТП-19-00816 23.12.19","ПКГО","\"Административное здание\" Камчатский край г. Петропавловск-Камчатский, ул. Ватутина ",null,null,"14.01.20 внесено в таблицу",null,null,null,null,null,null,null,null,null,0,0,140,0,0,150,null,null,null,null,null,null,null,"ООО \"Строитель\" выполняет мероприятия по договору ОТП-19-00071 ооо \"Мебель\" (в рамках ГП № 51-362), это очень близко к данному объекту, поэтому мы запитываемся от тп, которая проектируется ООО \"Строитель\". Также рядом ОТП-19-00076."]
[null,null,null,"ОТП-19-00799  от 12.12.2019","ЕГП","Индивидуальное жилищное строительство Камчатский край, Елизовский Муниципальный район, Елизовское городское поселение, г.Елизово, Альпийский пр-д, д.39.",null,null,"11.03.2020-Согласовано 14.01.2020 Внесено",null,null,null,null,null,null,null,null,null,730,145,0,0,1,15]
[null,null,null,"ОТП-19-00801  от 12.12.2019","ЕГП","Индивидуальное жилищное строительство Камчатский край, Елизовский Муниципальный район, Елизовское городское поселение, г.Елизово, Альпийский пр-д, д.45.",null,null,"11.03.2020-Согласовано 14.01.2020 Внесено",null,null,null,null,null,null,null,null,null,625,145,0,0,1,15]
[null,null,null,"ОТП-19-00800 от 12.12.2019","ЕГП","Индивидуальное жилищное строительство Камчатский край, Елизовский Муниципальный район, Елизовское городское поселение, г.Елизово, Яблоневый пр-д, д.14.",null,null,"11.03.2020-Согласовано 14.01.2020 Внесено",null,null,null,null,null,null,null,null,null,640,145,0,0,1,15]
[null,null,null,"ОТП-19-00655 от 03.12.2019","ЕГП","Квартира Камчатский край, Елизовский район, г.Елизово, ул.Завойко, д.77, кв.2",null,null,"14.01.2020 Внесено",null,null,null,null,null,null,null,null,null,35,0,0,0,0,15,null,null,null,null,null,null,null,"Фактическое подключение"]
[]
[null,null,null,"ОТП-19-00763 от 30.12.19","ПКГО","\"Производственное здание\", Камчатский край, г. Петропавловск-Камчатский ",null,null,"31.01.2020 трасса разработана 14.01.20 внесено в таблицу",null,null,null,null,null,null,null,null,null,0,0,50,200,1,150]
[null,null,null,"ОТП-19-00891 от 27.12.19","ЕМР","\"Объект придорожного сервиса\"",null,null,"14.01.20 внесено в таблицу",null,null,null,null,null,null,null,null,null,754,0,0,0,0,15]
[null,null,null,"ОТП-19-00823 от 26.12.19","ПКГО","\"Строительство двух многоквартирных 9-ти этажных жилых домов в районе ул. Карбышева в г. Петропавловске-Камчатском. Жилой дом №1 (блок-секции 1,2,3)\", расположенный по адресу: Камчатский край, г. Петропавловск-Камчатский",null,null,"03.03.20-трасса разработана, 14.01.20 внесено в таблицу","13.03.20-получены ТУ МКУ САД № 1074/20,       10.03.20 - запрос ТУ МКУ САД",null,null,null,null,null,null,null,null,0,0,"2х250",0,0,254.4]
[null,null,null,"ОТП-19-00778 от 09.12.19","ЕМР","\"ИЖС\", с. Паратунка, ул. Гнечко, 2 квартал, уч. № 9",null,null,"14.01.20 внесено в таблицу",null,null,null,null,null,null,null,null,null,80,0,0,0,0,15]
[null,null,null,"ОТП-19-00896 от 30.12.19","ЕМР","\"Хозяйственные постройки\",          Николаевское с.п.",null,null,"16.01.20 внесено в таблицу",null,null,null,null,null,null,null,null,null,30,0,0,0,0,15]
[null,null,null,"ОТП-19-00895 от 10.01.20","ЕМР","\"Хозяйственные постройки\" Камчатский край елизовский район",null,null,"28.01.20 трасса разработана 17.01.20 внесено в таблицу ",null,null,null,null,null,null,null,null,null,405,0,0,0,0,15]
[null,null,null,"ОТП-19-00828 от 30.12.20","ЕМР","\"Объект незавершонного строительства\" молодежный",null,null,"17.01.20 внесено в таблицу",null,null,null,null,null,null,null,null,null,72,0,0,0,0,15,null,null,null,null,null,null,null,"факт от кл.11"]
[null,null,null,"ОТП-19-00835 от 31.12.19","ЕМР","Хозяйственные постройки, Камчатский край, Елизовский район, р. п. Вулканный",null,null,"31.01.19 трасса разработана 17.01.20 внесено в таблицу",null,null,null,null,null,null,null,null,null,530,0,0,0,0,15]
[null,null,null,"ОТП-19-00671 от 25.11.20","ЕМР","\"Жилой дом\"  Камчатский край, Елизовский район, п. Светлый (молодежный)",null,null,"17.01.20 внесено в таблицу",null,null,null,null,null,null,null,null,null,120,1400,0,0,1,15,null,null,null,null,null,null,null,"факт от кл. 4"]
[null,null,null,"ОТП-17-01047 от 19.01.2018","ЕМР","Хозяйственные постройки",null,null,"19-02.2020-трасса разработана 17.01.2019 внесено в таблицу",null,null,null,null,null,null,null,null,null,null,null,null,null,null,15,null,null,null,null,null,null,null,"необходим проект рекультивации"]
[null,null,null,"ОТП-19-00834 от 14.01.2020",null,"Крестьянское фермерское хозяйство",null,null,null,null,null,null,null,null,null,null,null,null,null,null,null,null,null,30,null,null,null,null,null,null,null,"необходим проект рекультивации"]
[null,null,null,"ОТП-19-00879 от 31.12.2019","ЕМР","Хозяйственные постройки Камчатский край, Елизовский микрорайон, Николаевское С.П., с.Николаевка, тер.СНТ Урожай, з/у 41.",null,null,"16.01.2020 внесено",null,null,null,null,null,null,null,null,null,90,0,0,0,0,15]
[null,null,null," ОТП-19-00893 от 30.12.2019","ЕГП","\"Хозяйственные постройки\", расположенного по адресу: Камчатский край, Елизовский муниципальный р-н, Раздольненское сельское поселение, п. Раздольный",null,null,"17.01.2020 ПТ-20.01.2020",null,null,null,null,null,null,null,null,null,120,0,0,0,0,15]
[null,null,null,"ОТП-19-00603 от 31.10.2019","ПКГО","\"Производственная база\", расположенного по адресу: Камчатский край, г. Петропавловск-Камчатский, пр. Циолковского, 14",null,null,"18.02.2020 - трасса разработана 21.01.2019 внесено в таблицу","-","27.02.2020 Акт выбора (Кристина) ",null,"2020-03-04","16.03.2020 - отказ в размещении - акт выбора пересекает ЗУ 20:2499",null,null,null,null,0,0,115,0,0,30,null,null,null,null,null,null,null,"02.03.2020  заявление на  размещение на подписи . От Лесплинснаб трасса 36 метров . Мероприятия возможно объединить с ОТП-19-00532 от 19.09.2019.\nОдин из объектов, которые были отложены на время работы над ИП Семашкиными."]
[null,null,null,"ОТП-19-00602 от 11.11.2019","ЕГП","\"Индивидуальное жилищное строительство\", расположенного по адресу: Российская Федерация, Камчатский край, Елизовский муниципальный район, Елизовское городское поселение, г.Елизово, уч. 5",null,null,"21.01.2019 внесено в таблицу",null,null,null,null,null,null,null,null,null,"факт!",0,0,0,0,15,null,null,null,null,null,null,null,"Фактическое присоединение от ВЛ-0,4 кВ, построенной для участка 5!\nОдин из объектов, которые были отложены на время работы над ИП Семашкиными."]
[null,null,null,"ОТП-19-00522 от 09.09.2019","ПКГО","\"Инфраструктурный объект для частного детского сада\", расположенного по адресу: Камчатский край, г. Петропавловск-Камчатский, ул. Березовая",null,1,"21.01.2019 внесено в таблицу",null,null,null,null,null,null,null,null,null,0,0,160,700,1,100,null,null,null,null,null,null,null,"Возможно объединение мероприятий с мероприятиями по договору ОТП-18-00471 (ИП Смирнов В.Я.), которые исполнены в рамках ГП ООО \"Строитель\""]
[null,null,null,"ОТП-19-00521 от 09.09.2019","ПКГО","\"Жилой дом\", расположенного по адресу: Российская Федерация, Камчатский край, Петропавловск-Камчатский городской округ, город Петропавловск-Камчатский, улица Березовая, дом № 2",null,1,null,null,null,null,null,null,null,null,null,null,null,null,null,null,null,150]
[null,null,null,"ОТП-19-00231 от 28.05.2019","ПКГО","Здание автосалона Камчатский край,г.Петропавловск-Камчатский, ул.Вулканная",null,null,"22.01.2020 внесено",null,null,null,null,null,null,null,null,null,0,0,140,0,0,150,null,null,null,null,null,null,null,"Нообходим сервитут с ООО \"Алекс\" 41:01:0010114:228"]
[null,null,null,"ОТП-19-00133 от 25.03.2019","ПКГО","Камчатский край, г. Петропавловск-Камчатский, ш. Восточное",null,null,"27.02.2020- Согласовано 24.01.2020 внесено 10.02.2020 принято в работу",null,"2020-02-28","2020-02-28","04.03.2020 Подано 28.02.2020-на подписи у директора",null,null,null,null,null,null,null,280,null,null,150]
[null,null,null,"ОТП-00518 от 28.09.2015","ПКГО","Жилой дом, с. Коряки, ул. Рабочая, 34",null,null,"24.01.2020 внесено",null,null,null,null,null,null,null,null,null,null,null,null,null,null,15]
[null,null,null," ОТП-19-00699 от 30.12.19","ЕМР","\"Жилой дом\" Камчатский край, Елизовский район п.Пионерский",null,null,"24.01.2020 внесено",null,null,null,null,null,null,null,null,null,250,0,0,0,0,15,null,null,null,null,null,null,null,"факт от сбитнева захарова свиридова квартал 81"]
[null,null,null,"ОТП-19-00726","ЕМР","\"Жилой дом\" Камчатский край, Елизовский район пос. Светлый, мкр-н Молодёжный, 58",null,null,"24.01.2020 внесено",null,null,null,null,null,null,null,null,null,7,0,0,0,0,15,null,null,null,null,null,null,null,"факт от кл 10"]
[null,null,null,"ОТП-19-00905","ЕМР","\"Индивидуальное жилищное строительство\", РФ, Камчатский край, Елизовский м-рн, Пионерское с.п. , п. Светлый, мкр. Молодёжный, пр-зд Шоссейный з/у 10",null,null,"24.01.2020 внесено",null,null,null,null,null,null,null,null,null,600,0,0,0,1,15,null,null,null,null,null,null,null,"факт от кл.1"]
[null,null,null,"ОТП-19-00909","ЕМР","\"Индивидуальное жилищное строительство\", РФ, Камчатский край, Елизовский м-рн, Пионерское с.п. , п. Светлый, мкр. Молодёжный, пр-зд Шоссейный з/у 11",null,null,"24.01.2020 внесено",null,null,null,null,null,null,null,null,null,600,0,0,0,1,20,null,null,null,null,null,null,null,"факт от кл.1"]
[null,null,null,"ОТП-20-00019","ПКГО","\"Здание логистического центра\", расположенного по адресу: Петропавловск-Камчатский, проспект Содружества",null,null,"07.04.20-трасса разработана, 30.01.2020 внесено в таблицу",null,null,null,null,null,null,null,null,null,0,0,370,0,0,150]
[null,null,null,"ОТП-00426 от 18.02.2015","ПКГО","Здание магазина промышленных товаров Камчатский край, г.Петропавловск-Камчатский, ул.Тушканова д.10/1",null,null,"27.02.2020- СОГЛАСОВАНО 13.12.10 ПТ","13.02.2020-ПОЛУЧЕНО 30.01.2020-ТУ МКУ САД №463/20 от 04.02.2020","2020-01-28","2020-01-28","04.03.2020 Подано",null,null,null,null,null,0,0,125,0,0,15]
[null,null,null,"ОТП-19-00625 от 06.12.2019","ПКГО","\"АСМ типа \"столб металлический\" высотой до 26м\" Камчатский край, г.Петропавловск-Камчатский, в районе улицы Высотная 17А.",null,null," 06.02.2020 Построена трасса 03.02.2020 внесено",0,0,0,null,null,null,null,null,null,55,0,0,0,0,15]
[null,null,null,"ОТП-19-00771 от 22.01.2020 ","ЕМР","\"Индивидуальное жилищное строительство\" Камчатский край, Елизовский м. район. П. Светлый   ",null,null,"03.02.2020 внесено",null,null,null,null,null,null,null,null,null,30,0,0,0,0,15,null,null,null,null,null,null,null,"факт от кл. 9"]
[null,null,null,"ОТП-19-00910 от 29.01.2020","ПКГО","\"Протзводственное здание\" Камчатский край, г.Петропавловск-Камчатский, ул.Тундровая",null,null,"06.02.2020 -разработана трасса 05.02.2020 внесено",null,null,null,null,null,null,null,null,null,190,0,0,0,0,150,null,null,null,null,null,null,null,"Фактическое присоединение от ТП 210 Б"]
[null,null,null,"ОТП-19-00532 от 19.09.2019","ПКГО","\"Здание автомобильного торгово-сервисного центра по проспекту Циолковского\", расположенного по адресу: Российская Федерация, Камчатский край, Петропавловск-Камчатский городской округ, г. Петропавловск-Камчатский, проспект Циолковского, д. 6/1",null,null,"18.02.2020-трасса разработана 21.01.2019 внесено в таблицу","26.02.2020 запрос ТУ МКУ САД","02.03.2020 акт выбора (Кристина)",null,null,null,null,null,null,null,0,0,150,0,0,150,null,null,null,null,null,null,null," Трасса с Лесплинснаб. Мероприятия возможно объединить с ОТП-19-00603 от 31.10.2019.\nОдин из объектов, которые были отложены на время работы над ИП Семашкиными."]
[null,null,null,"ОТП-18-00816 от 27.12.2018","ПКГО","\"Объект незавершенного строительства\", расположенный по адресу:  Камчатский край, г. Петропавловск-Камчатский, проспект Циолковского",null,null,"18.02.2020-трасса разработана 18.02.2020 - внесено в таблицу",null,"02.03.2020 акт выбора (Кристина)",null,null,null,null,null,null,null,null,null,null,null,null,null,null,null,null,null,null,null,null,"Трасса совмеснос Кроновым"]
[null,null,null,"ОТП-19-00165 от 10.04.2019","ЕМР","\"Жилой дом \", расположенный по адресу:Камчатский край, Елизовский р-н, г. Елизово, проезд Излучина, д. 13",null,null," 03.04.2020-трасса разработана,",null,null,null,null,null,null,null,null,null,null,null,null,null,null,null,null,null,null,null,null,null,null,"рядом с рафальской"]
[null,null,null,"ОТП-19-00273 от 20.06.2019","ЕМР","\"Жилой дом\"  расположенный по адресу: Камчатский край, Елизовский  р-н, г. Елизово, проезд Излучина, 12",null,null," 06.02.2020 внесено",null,null,null,null,null,null,null,null,null,null,null,null,null,null,null,null,null,null,null,null,null,null,"рядом с рафальской"]
[null,null,null," ОТП-20-00009 от 29.02.2020","ПКГО","Инженерно изыскательский центр  Российская федерация, Камчатский край, г.Петропавловск-Камчатский, ул.Тушканова",null,null,"02.02.2020- Разработана трасса в 2х вариантах10.02.2020 внесено","Получено (ТУ САД №ТУ№1075 20 от 13.03.2020; ТУ-Коммунальная энергетика №37/1160 от 19.03.2020) 10 (11).03.2020 Подано ту САД (Комунальная энергетика)",null,null,null,null,null,null,null,null,0,0,150,0,0,150]
[null,null,null," ОТП-20-00023 от 03.02.2020","ЕМР","\"Индивидуальное жилищное строительство\" Камчатский край, Елизовский м. район. П. Светлый   ",null,null,"10.02.2020 внесено",null,null,null,null,null,null,null,null,null,null,null,null,null,null,null,null,null,null,null,null,null,null,"егп"]
[null,null,null," ОТП-20-00013 от 28.01.2020","ЕМР","\"Жилой дом\" Камчатский край, Елизовский м. район. п. Начики, ул. Ленина, д. 20   ",null,null,"12.03.2020-трасса разработана 11.02.2020 внесено",null,null,null,null,null,null,null,null,null,null,null,null,null,1,null,null,null,null,null,null,null,null,"12.03.2020 трасса передана на согласование Анатолию. 11.02.2020-не известно местоположение зу, уточнить где стоит ТП (скорее всего она построена)"]
[null,null,null," ОТП-19-00814 от 25.12.2019","ЕГП","\"Индивидуальное жилищное строительство\" Российская Федерация, Камчатский край, Елизовский район, г. Елизово, ул. Омская",null,null,"11.02.2020 - трасса разработана 11.02.2020 внесено",null,null,null,null,null,null,null,null,null,null,null,null,null,null,null,null,null,null,null,null,null,null,"с 11.02.2020 на  согласовании (в этом же месте трасса у водоканала)"]
[null,null,null,"ОТП-19-00817 от 24.12.2019","ЕГП","\"Индивидуальное жилищное строительство\" Камчатский край, Елизовский район, г. Елизово, ул. Молодежная",null,null,"06.03.2020 внесено",null,null,null,null,null,null,null,null,null,null,null,null,null,null,null,null,null,null,null,null,null,null,"Совместно с ОТП-19-00814 (Шилова) ЗУ входит в разработанную трассу "]
[null,null,null,"ОТП-19-00016  от 05.02.2019","ЕМР","Индивидуальное жилищное строительство Камчатский край, Елизовский район, п.Светлый, ул.Радужная, д 11",null,null,"13.02.2020 внесено",0,0,0,0,0,0,0,0,0,110,0,0,0,0,15]
[null,null,null,"ОТП-19-00790 от 11.02.2020","ЕГП","\"Жилой дом\" Камчатский край, Елизовский район, г. Елизово, улю Безымянная, п-3-А",null,null,"Фактическое присоединение 14.02.2020 внесено",null,null,null,null,null,null,null,null,null,null,null,null,null,null,null,null,null,null,null,null,null,null,"Фактическое присоединение "]
[null,null,null,"19-00341 от 24.06.2019","ЕМР","Хозяйственные постройки Камчатский край, Елизовский муниципальный район, Раздольненское сельское поселение, п.Раздольный",null,null,"19.02.2020 внесено",0,0,0,0,0,0,0,0,0,60,0,0,0,0,15]
[null,null,null,"ОТП-19-00784","ЕМР","\"Хозяйственные постройки\", Камчатский край, Елизовский район, Николаевское сп",null,null,null,null,null,null,null,null,null,null,null,null,300,0,0,0,0,15]
[null,null,null,"ОТП-19-00786","ЕМР","\"Хозяйственные постройки\", Камчатский край, Елизовский район",null,null,null,null,null,null,null,null,null,null,null,null,200,0,0,0,0,15]
[null,null,null,"ОТП-19-00796","ЕМР","\"Хозяйственные постройки\", Камчатский край, Елизовский район",null,null,"02.04.20-трасса разработана, 06.03.2020 внесено",null,null,null,null,null,null,null,null,null,430,0,0,0,0,15]
[null,null,null,"ОТП-19-00806","ЕМР","\"Хозяйственные постройки\", Камчатский край, Елизовский район",null,null,null,null,null,null,null,null,null,null,null,null,20,0,0,0,0,15]
[null,null,null,"ОТП-19-00782 17.12.19","ЕМР","\"Хозяйственный постройки\", расположенные по адресу: Камчарский край, Елизовский район",null,null,null,null,null,null,null,null,null,null,null,null,99,0,0,0,0,15,null,null,null,null,null,null,null,"ЕМР"]
[null,null,null,"ОТП-19-00807","ЕГП","\"Индивидуальный жилой дом\", Камчатский край, г. Елизово, ул. Дежнева, д. 3",null,null,"01.04.20-трасса разработана, 06.03.2020 внесено",null,null,null,null,null,null,null,null,null,50,0,0,0,0,15]
[null,null,null,"ОТП-19-00772 от 06.12.2019","ЕГП","\"Здание склада столярного цеха\" Камчатский край, г. Елизово, ул. Пограничная, д. 1",null,null,"06.03.2020 внесено"]
[null,null,null,"ОТП-19-00680 от 21.11.2019","ЕМР","Индивидуальное жилищное строительство Камчатский край, Елизовский р-н, п. Светлый",null,"550 р.","06.03.2020-внесено",null,null,null,null,null,null,null,null,null,55,"_","_","_","_",15]
[null,null,null,"ОТП-19-00595 от 06.12.2019","ЕМР","Жилой дом Камчатский край, Елизовский район, п.Светлый, мкр. Молодежный",null,"550 р.","06.03.2020-внесено",null,null,null,null,null,null,null,null,null,442,1380,"_","_",1,15]
[null,null,null,"ОТП-19-00567  от 12.12.2019","Мильково","Личное подсобное хозяйство Камчатский край, Мильковский район, с.Мильково, ул. Октябрьская",null,null,"19.12.2019 - согласовано МРЭС\n05.03.2020 внесено","-","2020-04-06",null,null,null,null,null,null,null,170,null,null,null,null,15]
[null,null,null,"ОТП-19-00729 от 17.12.2019","ЕГП","Индивидуальное жилищное строительство Камчатский край, Елизовский район, г.Елизово",null,null,"05.03.2020 внесено",null,null,null,null,null,null,null,null,null,225,290,null,null,1,15]
[null,null,null,"ОТП-19-00769 от 00.01.1900","Мильково","Здание бани Камчатский край, Мильковский район, с.Мильково, ул. Советская, дом №71",null,null,"19.12.2019 - согласовано МРЭС\n05.03.2020 внесено","-","2020-04-06",null,null,null,null,null,null,null,140,null,null,null,null,15]
[null,null,null,"ОТП-20-00056 от 18.02.2020","ПКГО","Административно-складское здание, Петропавловск-Камчатский, ул. Вулканная",null,null,"08.04.20-трасса разработана, 10.03.2020 внесено",null,null,null,null,null,null,null,null,null,0,0,"2х300",0,0,50]
[null,null,null,"ОТП-20-00032 от 18.02.2020","ЕГП","РУ-10 кВ Камчатский край, г. Елизово, ул. Уральская, 15",null,"92586 р.","10.03.2020-внесено",null,null,null,null,null,null,null,null,null,"_",110,"_","_","_",65]
[null,null,null,"ОТП-19-00836  от 18.02.2020","ЕГП","Шашлычная Камчатский край, Елизовский район, г. Елизово, ул. Беринга. 37",null,"56976 р.","10.03.2020-внесено",null,null,null,null,null,null,null,null,null,"395 (365 рек. и 30 строй.)","_","_","_","_",40]
[null,null,null,"ОТП-19-00567  от 12.12.2019",0,"Личное подсобное хозяйство Камчатский край, Мильковский район, с.Мильково, ул. Октябрьская",null,null,"10.03.2020-Запроектирована 06.03.2020 внесеноъ",0,0,0,0,0,0,0,0,0,0.17,0,0,0,0,0]
[null,null,null,"ОТП-19-00729 от 17.12.2019","ЕГП","Индивидуальное жилищное строительство Камчатский край, Елизовский район, г.Елизово",null,null,"06.03.2020-запроектирована 06.03.2020 внесено",0,0,0,0,0,0,0,0,0,225,290,0,0,1,15]
[null,null,null,"ОТП-19-00769 от 00.01.1900",0,"Здание бани Камчатский край, Мильковский район, с.Мильково, ул. Советская, дом №71",null,null,"10.03.2020-Запроектирована 06.03.2020 внесено",0,0,0,0,0,0,0,0,0,140,0,0,0,0,15]
[null,null,null,"ОТП-20-00049 от 19.02.2020","ЕМР","Жилой дом Камчатский край, Елизовский р-н, п. Светлый, мкр. Молодежный, ул. Невельского, д. 22",null,"550 р.","18.03.20 - внесено",null,null,null,null,null,null,null,null,null,30,"_","_","_","_",15]
[null,null,null,"ОТП-20-00033 от 02.02.2020","ЕМР","Сельскохозяйственные постройки Камчатский край, р-н Елизовский, тер. район реки 2-ая Мутная",null,"550 р.","09.04.2020- трасса разработана\n18.03.2020-внесено",null,null,null,null,null,null,null,null,null,184,"_","_","_","_",15]
[null,null,null,"ОТП-17-00476 от 14.07.2017","ПКГО",null,null,"550 р.","Нет информации","Нет информации","Нет информации","Нет информации","Нет информации","Нет информации","Нет информации","Нет информации","Нет информации","Нет информации",90,0,0,0,0,15,"-","ГП-50 от 07.11.2018"]
[null,null,null,"ОТП-17-00563 от 09.08.2017","ПКГО",null,null,"550 р.","Нет информации","Нет информации","Нет информации","Нет информации","Нет информации","Нет информации","Нет информации","Нет информации","Нет информации","Нет информации",450,0,0,0,0,15,"-","ГП-50 от 07.11.2018"]
[null,null,null,"ОТП-17-00697 от 13.09.2017","ПКГО",null,null,"550 р.","Нет информации","Нет информации","Нет информации","Нет информации","Нет информации","Нет информации","Нет информации","Нет информации","Нет информации","Нет информации",180,0,0,0,0,15,"-","ГП-50 от 07.11.2018"]
[null,null,null,"ОТП-18-00310 от 04.06.2018","ЕМР",null,null,"550 р.","Нет информации","Нет информации","Нет информации","Нет информации","Нет информации","Нет информации","Нет информации","Нет информации","Нет информации","Нет информации",145,0,0,0,0,12,"-","ГП-51 от 07.11.2018"]
[null,null,null,"ОТП-18-00366 от 28.06.2018","ЕМР",null,null,"550 р.","Нет информации","Нет информации","Нет информации","Нет информации","Нет информации","Нет информации","Нет информации","Нет информации","Нет информации","Нет информации",167,0,0,0,0,15,"-","ГП-51 от 07.11.2018"]
[null,null,null,"ОТП-18-00364 от 29.06.2018","ЕМР",null,null,"550 р.","Нет информации","Нет информации","Нет информации","Нет информации","Нет информации","Нет информации","Нет информации","Нет информации","Нет информации","Нет информации",90,0,0,0,0,15,"-","ГП-51 от 07.11.2018"]
[null,null,null,"ОТП-18-00348 от 09.06.2018","ПКГО",null,null,"550 р.","Нет информации","Нет информации","Нет информации","Нет информации","Нет информации","Нет информации","Нет информации","Нет информации","Нет информации","Нет информации",50,0,0,0,0,15,"-","ГП-51 от 07.11.2018"]
[null,null,null,"ОТП-18-00333 от 29.05.2018\n(ОТП-18-00334)","ПКГО","\"Парковка\", распорложенный по адресу: Камчатский край, г. П-К",null,1,"-","-","-","-","-","-","-","-","-","-",0,0,15,15,1,null,"+",null,null,null,null,null,null,"Договор планируется к расторжению.\nПервый вариант трассы, разработанный к 07.02.2019, точно не согласовался бы. К 14.02.2019 был разработан второй вариант, 12.03.2019 направлено письмо в МКУ «Служба автомобильных дорог ПКГО» для получения ТУ."]
[null,548,"15.04.2020",{"$f":"CONCATENATE(\"ОТП-\",IF(COUNTIF(C446,\"*2016*\"),2016,IF(COUNTIF(C446,\"*2017*\"),2017,IF(COUNTIF(C446,\"*2018*\"),2018,IF(COUNTIF(C446,\"*2019*\"),2019,IF(COUNTIF(C446,\"*2020*\"),2020,IF(COUNTIF(C446,\"*2021*\"),2021,IF(COUNTIF(C446,\"*2022*\"),2022,IF(COUNTIF(C446,\"*2023*\"),2023,IF(COUNTIF(C446,\"*2024*\"),2024,IF(COUNTIF(C446,\"*2025*\"),2025,\"добавьте значения в формулу, плиз (или введите правильную дату\"))))))))))-2000,\"-\",B446,\" от \",C446)","v":"ОТП-20-548 от 15.04.2020"}]

{"sheet":"Лист1","index":1,"n_rows":0,"n_cols":0,"rows_kept":0,"cut":false,"hidden":true,"merged":[]}

{"sheet":"Параметры","index":2,"n_rows":8,"n_cols":9,"rows_kept":8,"cut":false,"hidden":false,"merged":[]}
["ОТП-18-00316 от 04.06.2018",null,null,null,"Район работ"]
["ОТП-17-00524 от 22.08.2017",null,null,null,"ПКГО",null,null,null,"ОТП-00721 от 24.12.2015"]
["ОТП-18-00289 от 29.05.2018",null,null,null,"ЕМР",null,null,null,"2019-10-10"]
["ОТП-18-00282 от 28.05.2018",null,null,null,"ЕГП"]
["ОТП-17-00437 от 12.07.2017"]
["ОТП-00721 от 24.12.2015"]
["ОТП-18-00313 от 30.05.2018"]
["ОТП-00765 от 28.12.2015"]